Workbook

Sheet Support (hidden)
A1: INVOICE DATE (YYYY-MM-DD) | B1: =TEXT(Main!$B$1,"yyyy-mm-dd") -> 2019-08-15 | C1: This is normally today's date, but may be future dated for some distributions
A2: ACCOUNTING DATE (YYYY-MM-DD) | B2: =B1 -> 2019-08-15 | C2: This is normally today's date, but may be future dated for some distributions
A3: SCHEDULED TO PAY DATE (YYYY-MM-DD) | B3: =B1 -> 2019-08-15 | C3: This is normally today's date, but may be future dated for some distributions
A4: BUDGET DATE (YYYY-MM-DD) | B4: =B1 -> 2019-08-15 | C4: This is normally today's date, but may be future dated for some distributions
A5: MONTH: | B5: =TEXT(Main!$B$1,"mm") -> 08 | C5: Current Month (This is for the invoice number)
A6: Day | B6: =TEXT(Main!$B$1,"dd") -> 15 | C6: Current Day (This is for the invoice number)
A7: YEAR: | B7: =TEXT(Main!$B$1,"yy") -> 19 | C7: Current Year (This is for the invoice number)
A8: DISTRIBUTION INDICATOR CODE: | B8: RRS | C8: This is the Settlement Department assigned Distribution Indicator for the invoice number
A9: SETTLEMENT DEPT INDICATOR: | B9: SD | C9: This is "SD" for Settlement Department
A10: BUDGET REFERENCE: | B10: =IF(MONTH(Main!$B$1)>6,YEAR(Main!$B$1)+1,YEAR(Main!$B$1)) -> 2020
A11: BU # | B11: =Main!L10 -> 00050
A14: 1 | B14: 2 | C14: 3 | D14: 4 | E14: 5 | F14: 6 | G14: 7 | H14: 8 | I14: 9 | J14: 10 | K14: 11 | L14: 12 | M14: 13 | N14: 14 | O14: 15 | P14: 16 | Q14: 17 | R14: 18 | S14: 19 | T14: 20 | U14: 21 | V14: 22 | W14: 23 | X14: 24 | Y14: 25 | Z14: 26 | AA14: 27 | AB14: 28 | AC14: 29 | AD14: 30 | AE14: 31 | AF14: 32 | AG14: 33 | AH14: 34
A15: GL BUSINESS UNIT | B15: AGCY # | C15: SETTLEMENT DEPT INDICATOR | D15: MTH | E15: Day | F15: YEAR | G15: DIST INDICATOR | H15: INVOICE OR COUNTY NUMBER | I15: INVOICE NUMBER | J15: INVOICE DATE (YYYY-MM-DD) | K15: ORIGIN | L15: TOTAL INVOICE AMOUNT | M15: Voucher Source | N15: VENDOR ID | O15: VENDOR LOCATION | P15: INVOICE FROM ADDRESS SEQ NBR | Q15: REMITTING TO ADDRESS SEQ NBR | R15: DESCRIPTION | S15: ACCOUNT | T15: FUND | U15: PROGRAM | V15: LOCALITY | W15: BUDGET REFERENCE | X15: BUDGET DATE (YYYY-MM-DD) | Y15: DEPARTMENT | Z15: PAYMENT MESSAGE | AA15: SCHEDULED TO PAY (YYYY-MM-DD) | AB15: PROJECT | AC15: PC BUSINESS UNIT | AD15: ACTIVITY | AE15: Source Type | AF15: Category | AG15: Subcategory | AH15: ANALYSIS TYPE
A16: =Main!L10 -> 00050 | B16: =RIGHT(A16,3) -> 050 | C16: =$B$9 -> SD | D16: =$B$5 -> 08 | E16: =$B$6 -> 15 | F16: =$B$7 -> 19 | G16: =$B$8 -> RRS | H16: 0001 | I16: =CONCATENATE(B16,C16,D16,E16,F16,G16,H16) -> 050SD081519RRS0001
A17: =Main!L11 -> 00050 | B17: =RIGHT(A17,3) -> 050 | C17: =$B$9 -> SD | D17: =$B$5 -> 08 | E17: =$B$6 -> 15 | F17: =$B$7 -> 19 | G17: =$B$8 -> RRS | H17: 0002 | I17: =CONCATENATE(B17,C17,D17,E17,F17,G17,H17) -> 050SD081519RRS0002
A18: =Main!L12 -> 00050 | B18: 050 | C18: SD | D18: 08 | E18: 15 | F18: 19 | G18: RRS | H18: 0003 | I18: 050SD081519RRS0003
A19: =Main!L13 -> 00050 | B19: 050 | C19: SD | D19: 08 | E19: 15 | F19: 19 | G19: RRS | H19: 0004 | I19: 050SD081519RRS0004
A20: =Main!L14 -> 00050 | B20: 050 | C20: SD | D20: 08 | E20: 15 | F20: 19 | G20: RRS | H20: 0005 | I20: 050SD081519RRS0005
A21: =Main!L15 -> 00050 | B21: 050 | C21: SD | D21: 08 | E21: 15 | F21: 19 | G21: RRS | H21: 0006 | I21: 050SD081519RRS0006
A22: =Main!L16 -> 00050 | B22: 050 | C22: SD | D22: 08 | E22: 15 | F22: 19 | G22: RRS | H22: 0007 | I22: 050SD081519RRS0007
A23: =Main!L17 -> 00050 | B23: 050 | C23: SD | D23: 08 | E23: 15 | F23: 19 | G23: RRS | H23: 0008 | I23: 050SD081519RRS0008
A24: =Main!L18 -> 00050 | B24: 050 | C24: SD | D24: 08 | E24: 15 | F24: 19 | G24: RRS | H24: 0009 | I24: 050SD081519RRS0009
A25: =Main!L19 -> 00050 | B25: 050 | C25: SD | D25: 08 | E25: 15 | F25: 19 | G25: RRS | H25: 0010 | I25: 050SD081519RRS0010
A26: =Main!L20 -> 00050 | B26: 050 | C26: SD | D26: 08 | E26: 15 | F26: 19 | G26: RRS | H26: 0011 | I26: 050SD081519RRS0011
A27: =Main!L21 -> 00050 | B27: 050 | C27: SD | D27: 08 | E27: 15 | F27: 19 | G27: RRS | H27: 0012 | I27: 050SD081519RRS0012
A28: =Main!L22 -> 00050 | B28: 050 | C28: SD | D28: 08 | E28: 15 | F28: 19 | G28: RRS | H28: 0013 | I28: 050SD081519RRS0013
A29: =Main!L23 -> 00050 | B29: 050 | C29: SD | D29: 08 | E29: 15 | F29: 19 | G29: RRS | H29: 0014 | I29: 050SD081519RRS0014
A30: =Main!L24 -> 00050 | B30: 050 | C30: SD | D30: 08 | E30: 15 | F30: 19 | G30: RRS | H30: 0015 | I30: 050SD081519RRS0015
A31: =Main!L25 -> 00050 | B31: 050 | C31: SD | D31: 08 | E31: 15 | F31: 19 | G31: RRS | H31: 0016 | I31: 050SD081519RRS0016
A32: =Main!L26 -> 00050 | B32: 050 | C32: SD | D32: 08 | E32: 15 | F32: 19 | G32: RRS | H32: 0017 | I32: 050SD081519RRS0017
A33: =Main!L27 -> 00050 | B33: 050 | C33: SD | D33: 08 | E33: 15 | F33: 19 | G33: RRS | H33: 0018 | I33: 050SD081519RRS0018
A34: =Main!L28 -> 00050 | B34: 050 | C34: SD | D34: 08 | E34: 15 | F34: 19 | G34: RRS | H34: 0019 | I34: 050SD081519RRS0019
A35: =Main!L29 -> 00050 | B35: 050 | C35: SD | D35: 08 | E35: 15 | F35: 19 | G35: RRS | H35: 0020 | I35: 050SD081519RRS0020
A36: =Main!L30 -> 00050 | B36: 050 | C36: SD | D36: 08 | E36: 15 | F36: 19 | G36: RRS | H36: 0021 | I36: 050SD081519RRS0021
A37: =Main!L31 -> 00050 | B37: 050 | C37: SD | D37: 08 | E37: 15 | F37: 19 | G37: RRS | H37: 0022 | I37: 050SD081519RRS0022
A38: =Main!L32 -> 00050 | B38: 050 | C38: SD | D38: 08 | E38: 15 | F38: 19 | G38: RRS | H38: 0023 | I38: 050SD081519RRS0023
A39: =Main!L33 -> 00050 | B39: 050 | C39: SD | D39: 08 | E39: 15 | F39: 19 | G39: RRS | H39: 0024 | I39: 050SD081519RRS0024
A40: =Main!L34 -> 00050 | B40: 050 | C40: SD | D40: 08 | E40: 15 | F40: 19 | G40: RRS | H40: 0025 | I40: 050SD081519RRS0025
A41: =Main!L35 -> 00050 | B41: 050 | C41: SD | D41: 08 | E41: 15 | F41: 19 | G41: RRS | H41: 0026 | I41: 050SD081519RRS0026
A42: =Main!L36 -> 00050 | B42: 050 | C42: SD | D42: 08 | E42: 15 | F42: 19 | G42: RRS | H42: 0027 | I42: 050SD081519RRS0027
A43: =Main!L37 -> 00050 | B43: 050 | C43: SD | D43: 08 | E43: 15 | F43: 19 | G43: RRS | H43: 0028 | I43: 050SD081519RRS0028
A44: =Main!L38 -> 00050 | B44: 050 | C44: SD | D44: 08 | E44: 15 | F44: 19 | G44: RRS | H44: 0029 | I44: 050SD081519RRS0029
A45: =Main!L39 -> 00050 | B45: 050 | C45: SD | D45: 08 | E45: 15 | F45: 19 | G45: RRS | H45: 0030 | I45: 050SD081519RRS0030
A46: =Main!L40 -> 00050 | B46: 050 | C46: SD | D46: 08 | E46: 15 | F46: 19 | G46: RRS | H46: 0031 | I46: 050SD081519RRS0031
A47: =Main!L41 -> 00050 | B47: 050 | C47: SD | D47: 08 | E47: 15 | F47: 19 | G47: RRS | H47: 0032 | I47: 050SD081519RRS0032
A48: =Main!L42 -> 00050 | B48: 050 | C48: SD | D48: 08 | E48: 15 | F48: 19 | G48: RRS | H48: 0033 | I48: 050SD081519RRS0033
A49: =Main!L43 -> 00050 | B49: 050 | C49: SD | D49: 08 | E49: 15 | F49: 19 | G49: RRS | H49: 0034 | I49: 050SD081519RRS0034
A50: =Main!L44 -> 00050 | B50: 050 | C50: SD | D50: 08 | E50: 15 | F50: 19 | G50: RRS | H50: 0035 | I50: 050SD081519RRS0035
A51: =Main!L45 -> 00050 | B51: 050 | C51: SD | D51: 08 | E51: 15 | F51: 19 | G51: RRS | H51: 0036 | I51: 050SD081519RRS0036
A52: =Main!L46 -> 00050 | B52: 050 | C52: SD | D52: 08 | E52: 15 | F52: 19 | G52: RRS | H52: 0037 | I52: 050SD081519RRS0037
A53: =Main!L47 -> 00050 | B53: 050 | C53: SD | D53: 08 | E53: 15 | F53: 19 | G53: RRS | H53: 0038 | I53: 050SD081519RRS0038
A54: =Main!L48 -> 00050 | B54: 050 | C54: SD | D54: 08 | E54: 15 | F54: 19 | G54: RRS | H54: 0039 | I54: 050SD081519RRS0039
A55: =Main!L49 -> 00050 | B55: 050 | C55: SD | D55: 08 | E55: 15 | F55: 19 | G55: RRS | H55: 0040 | I55: 050SD081519RRS0040
A56: =Main!L50 -> 00050 | B56: 050 | C56: SD | D56: 08 | E56: 15 | F56: 19 | G56: RRS | H56: 0041 | I56: 050SD081519RRS0041
A57: =Main!L51 -> 00050 | B57: 050 | C57: SD | D57: 08 | E57: 15 | F57: 19 | G57: RRS | H57: 0042 | I57: 050SD081519RRS0042
A58: =Main!L52 -> 00050 | B58: 050 | C58: SD | D58: 08 | E58: 15 | F58: 19 | G58: RRS | H58: 0043 | I58: 050SD081519RRS0043
A59: =Main!L53 -> 00050 | B59: 050 | C59: SD | D59: 08 | E59: 15 | F59: 19 | G59: RRS | H59: 0044 | I59: 050SD081519RRS0044
A60: =Main!L54 -> 00050 | B60: 050 | C60: SD | D60: 08 | E60: 15 | F60: 19 | G60: RRS | H60: 0045 | I60: 050SD081519RRS0045
A61: =Main!L55 -> 00050 | B61: 050 | C61: SD | D61: 08 | E61: 15 | F61: 19 | G61: RRS | H61: 0046 | I61: 050SD081519RRS0046
A62: =Main!L56 -> 00050 | B62: 050 | C62: SD | D62: 08 | E62: 15 | F62: 19 | G62: RRS | H62: 0047 | I62: 050SD081519RRS0047
A63: =Main!L57 -> 00050 | B63: 050 | C63: SD | D63: 08 | E63: 15 | F63: 19 | G63: RRS | H63: 0048 | I63: 050SD081519RRS0048
A64: =Main!L58 -> 00050 | B64: 050 | C64: SD | D64: 08 | E64: 15 | F64: 19 | G64: RRS | H64: 0049 | I64: 050SD081519RRS0049
A65: =Main!L59 -> 00050 | B65: 050 | C65: SD | D65: 08 | E65: 15 | F65: 19 | G65: RRS | H65: 0050 | I65: 050SD081519RRS0050
A66: =Main!L60 -> 00050 | B66: 050 | C66: SD | D66: 08 | E66: 15 | F66: 19 | G66: RRS | H66: 0051 | I66: 050SD081519RRS0051
A67: =Main!L61 -> 00050 | B67: 050 | C67: SD | D67: 08 | E67: 15 | F67: 19 | G67: RRS | H67: 0052 | I67: 050SD081519RRS0052
A68: =Main!L62 -> 00050 | B68: 050 | C68: SD | D68: 08 | E68: 15 | F68: 19 | G68: RRS | H68: 0053 | I68: 050SD081519RRS0053
A69: =Main!L63 -> 00050 | B69: 050 | C69: SD | D69: 08 | E69: 15 | F69: 19 | G69: RRS | H69: 0054 | I69: 050SD081519RRS0054
A70: =Main!L64 -> 00050 | B70: 050 | C70: SD | D70: 08 | E70: 15 | F70: 19 | G70: RRS | H70: 0055 | I70: 050SD081519RRS0055
A71: =Main!L65 -> 00050 | B71: 050 | C71: SD | D71: 08 | E71: 15 | F71: 19 | G71: RRS | H71: 0056 | I71: 050SD081519RRS0056
A72: =Main!L66 -> 00050 | B72: 050 | C72: SD | D72: 08 | E72: 15 | F72: 19 | G72: RRS | H72: 0057 | I72: 050SD081519RRS0057
A73: =Main!L67 -> 00050 | B73: 050 | C73: SD | D73: 08 | E73: 15 | F73: 19 | G73: RRS | H73: 0058 | I73: 050SD081519RRS0058
A74: =Main!L68 -> 00050 | B74: 050 | C74: SD | D74: 08 | E74: 15 | F74: 19 | G74: RRS | H74: 0059 | I74: 050SD081519RRS0059
A75: =Main!L69 -> 00050 | B75: 050 | C75: SD | D75: 08 | E75: 15 | F75: 19 | G75: RRS | H75: 0060 | I75: 050SD081519RRS0060
A76: =Main!L70 -> 00050 | B76: 050 | C76: SD | D76: 08 | E76: 15 | F76: 19 | G76: RRS | H76: 0061 | I76: 050SD081519RRS0061
A77: =Main!L71 -> 00050 | B77: 050 | C77: SD | D77: 08 | E77: 15 | F77: 19 | G77: RRS | H77: 0062 | I77: 050SD081519RRS0062
A78: =Main!L72 -> 00050 | B78: 050 | C78: SD | D78: 08 | E78: 15 | F78: 19 | G78: RRS | H78: 0063 | I78: 050SD081519RRS0063
A79: =Main!L73 -> 00050 | B79: 050 | C79: SD | D79: 08 | E79: 15 | F79: 19 | G79: RRS | H79: 0064 | I79: 050SD081519RRS0064
A80: =Main!L74 -> 00050 | B80: 050 | C80: SD | D80: 08 | E80: 15 | F80: 19 | G80: RRS | H80: 0065 | I80: 050SD081519RRS0065
A81: =Main!L75 -> 00050 | B81: =RIGHT(A81,3) -> 050 | C81: =$B$9 -> SD | D81: =$B$5 -> 08 | E81: =$B$6 -> 15 | F81: =$B$7 -> 19 | G81: =$B$8 -> RRS | H81: 0066 | I81: =CONCATENATE(B81,C81,D81,E81,F81,G81,H81) -> 050SD081519RRS0066
A82: =Main!L76 -> 00050 | B82: 050 | C82: SD | D82: 08 | E82: 15 | F82: 19 | G82: RRS | H82: 0067 | I82: 050SD081519RRS0067
A83: =Main!L77 -> 00050 | B83: 050 | C83: SD | D83: 08 | E83: 15 | F83: 19 | G83: RRS | H83: 0068 | I83: 050SD081519RRS0068
A84: =Main!L78 -> 00050 | B84: 050 | C84: SD | D84: 08 | E84: 15 | F84: 19 | G84: RRS | H84: 0069 | I84: 050SD081519RRS0069
A85: =Main!L79 -> 00050 | B85: 050 | C85: SD | D85: 08 | E85: 15 | F85: 19 | G85: RRS | H85: 0070 | I85: 050SD081519RRS0070
A86: =Main!L80 -> 00050 | B86: 050 | C86: SD | D86: 08 | E86: 15 | F86: 19 | G86: RRS | H86: 0071 | I86: 050SD081519RRS0071
A87: =Main!L81 -> 00050 | B87: 050 | C87: SD | D87: 08 | E87: 15 | F87: 19 | G87: RRS | H87: 0072 | I87: 050SD081519RRS0072
A88: =Main!L82 -> 00050 | B88: 050 | C88: SD | D88: 08 | E88: 15 | F88: 19 | G88: RRS | H88: 0073 | I88: 050SD081519RRS0073
A89: =Main!L83 -> 00050 | B89: 050 | C89: SD | D89: 08 | E89: 15 | F89: 19 | G89: RRS | H89: 0074 | I89: 050SD081519RRS0074
A90: =Main!L84 -> 00050 | B90: 050 | C90: SD | D90: 08 | E90: 15 | F90: 19 | G90: RRS | H90: 0075 | I90: 050SD081519RRS0075
A91: =Main!L85 -> 00050 | B91: 050 | C91: SD | D91: 08 | E91: 15 | F91: 19 | G91: RRS | H91: 0076 | I91: 050SD081519RRS0076
A92: =Main!L86 -> 00050 | B92: 050 | C92: SD | D92: 08 | E92: 15 | F92: 19 | G92: RRS | H92: 0077 | I92: 050SD081519RRS0077
A93: =Main!L87 -> 00050 | B93: 050 | C93: SD | D93: 08 | E93: 15 | F93: 19 | G93: RRS | H93: 0078 | I93: 050SD081519RRS0078
A94: =Main!L88 -> 00050 | B94: 050 | C94: SD | D94: 08 | E94: 15 | F94: 19 | G94: RRS | H94: 0079 | I94: 050SD081519RRS0079
A95: =Main!L89 -> 00050 | B95: 050 | C95: SD | D95: 08 | E95: 15 | F95: 19 | G95: RRS | H95: 0080 | I95: 050SD081519RRS0080
A96: =Main!L90 -> 00050 | B96: 050 | C96: SD | D96: 08 | E96: 15 | F96: 19 | G96: RRS | H96: 0081 | I96: 050SD081519RRS0081
A97: =Main!L91 -> 00050 | B97: 050 | C97: SD | D97: 08 | E97: 15 | F97: 19 | G97: RRS | H97: 0082 | I97: 050SD081519RRS0082
A98: =Main!L92 -> 00050 | B98: 050 | C98: SD | D98: 08 | E98: 15 | F98: 19 | G98: RRS | H98: 0083 | I98: 050SD081519RRS0083
A99: =Main!L93 -> 00050 | B99: 050 | C99: SD | D99: 08 | E99: 15 | F99: 19 | G99: RRS | H99: 0084 | I99: 050SD081519RRS0084
A100: =Main!L94 -> 00050 | B100: 050 | C100: SD | D100: 08 | E100: 15 | F100: 19 | G100: RRS | H100: 0085 | I100: 050SD081519RRS0085
A101: =Main!L95 -> 00050 | B101: 050 | C101: SD | D101: 08 | E101: 15 | F101: 19 | G101: RRS | H101: 0086 | I101: 050SD081519RRS0086
A102: =Main!L96 -> 00050 | B102: 050 | C102: SD | D102: 08 | E102: 15 | F102: 19 | G102: RRS | H102: 0087 | I102: 050SD081519RRS0087
A103: =Main!L97 -> 00050 | B103: 050 | C103: SD | D103: 08 | E103: 15 | F103: 19 | G103: RRS | H103: 0088 | I103: 050SD081519RRS0088
A104: =Main!L98 -> 00050 | B104: 050 | C104: SD | D104: 08 | E104: 15 | F104: 19 | G104: RRS | H104: 0089 | I104: 050SD081519RRS0089
A105: =Main!L99 -> 00050 | B105: 050 | C105: SD | D105: 08 | E105: 15 | F105: 19 | G105: RRS | H105: 0090 | I105: 050SD081519RRS0090
A106: =Main!L100 -> 00050 | B106: 050 | C106: SD | D106: 08 | E106: 15 | F106: 19 | G106: RRS | H106: 0091 | I106: 050SD081519RRS0091
A107: =Main!L101 -> 00050 | B107: 050 | C107: SD | D107: 08 | E107: 15 | F107: 19 | G107: RRS | H107: 0092 | I107: 050SD081519RRS0092

Sheet Website Report
A1: Riverboat Wagering Tax Distribution
A2: for State Fiscal Year 2020
A3: Prepared by Indiana Auditor of State
A4: August 15, 2020
R5: Population
A6: County | G6: 2010 Census | I6: Percent of | N6: Prior | R6: Proof to calculation
A7: Code | C7: Type | E7: Locality Name | G7: Population (1) | I7: Total Population | K7: Unit Share (2) | M7: Proof | N7: Year | R7: Population | S7: Variance
A8: ='[1]Distribution Factors'!F2 -> 1 | C8: County | E8: Adams County | G8: 18848 | I8: =+G8/$G$13 -> 0.5481141129 | K8: =M13-SUM(K9:K12) -> 111654.06 | N8: 111654.06 | P8: =K8-N8 -> 0
A9: ='[1]Distribution Factors'!F3 -> 1 | C9: City/Town | E9: BERNE | G9: 3999 | I9: =+G9/$G$13 -> 0.1162939483 | K9: =ROUND(I9*$M$13,2) -> 23689.76 | N9: 23689.76 | P9: 0
A10: ='[1]Distribution Factors'!F4 -> 1 | C10: City/Town | E10: DECATUR | G10: 9405 | I10: =+G10/$G$13 -> 0.2735045221 | K10: =ROUND(I10*$M$13,2) -> 55714.47 | N10: 55714.47 | P10: 0
A11: ='[1]Distribution Factors'!F5 -> 1 | C11: City/Town | E11: GENEVA | G11: 1293 | I11: =+G11/$G$13 -> 0.03760141914 | K11: =ROUND(I11*$M$13,2) -> 7659.63 | N11: 7659.63 | P11: 0
A12: ='[1]Distribution Factors'!F6 -> 1 | C12: City/Town | E12: MONROE | G12: 842 | I12: =+G12/$G$13 -> 0.02448599762 | K12: =ROUND(I12*$M$13,2) -> 4987.94 | N12: 4987.94 | P12: 0
E13: Sub-Total | G13: =SUM(G8:G12) -> 34387 | I13: =SUM(I8:I12) -> 1 | K13: =SUM(K8:K12) -> 203705.86 | M13: =Calculation!I8 -> 203705.86 | N13: =SUM(N8:N12) -> 203705.86 | O13: =K13=M13 -> TRUE | P13: 0 | R13: =Calculation!E8 -> 34387 | S13: =R13-G13 -> 0 | U13: =K13=M13 -> TRUE
A15: ='[1]Distribution Factors'!F7 -> 2 | C15: County | E15: ALLEN COUNTY | G15: 74496 | I15: =+G15/$G$24 -> 0.2096547687 | K15: =M24-SUM(K16:K23) -> 441310.88 | N15: 441308.4 | P15: =K15-N15 -> 2.48
A16: ='[1]Distribution Factors'!F8 -> 2 | C16: City/Town | E16: FORTWAYNE | G16: 253689 | I16: =+G16/$G$24 -> 0.7139592544 | K16: =ROUND(I16*$M$24,2) -> 1502841.98 | N16: 1502833.52 | P16: 8.46
A17: ='[1]Distribution Factors'!F9 -> 2 | C17: City/Town | E17: GRABILL | G17: 1053 | I17: 0.002963467454 | K17: =ROUND(I17*$M$24,2) -> 6237.92 | N17: 6237.89 | P17: 0.03
A18: ='[1]Distribution Factors'!F10 -> 2 | C18: City/Town | E18: HUNTERTOWN | G18: 4810 | I18: 0.01353682664 | K18: =ROUND(I18*$M$24,2) -> 28494.22 | N18: 28494.06 | P18: 0.16
A19: ='[1]Distribution Factors'!F11 -> 2 | C19: City/Town | E19: LEO-CEDARVILLE | G19: 3603 | I19: 0.01013995559 | K19: =ROUND(I19*$M$24,2) -> 21344.01 | N19: 21343.89 | P19: 0.12
A20: ='[1]Distribution Factors'!F12 -> 2 | C20: City/Town | E20: MONROEVILLE | G20: 1235 | I20: =+G20/$G$24 -> 0.003475671705 | K20: =ROUND(I20*$M$24,2) -> 7316.08 | N20: 7316.04 | P20: 0.04
A21: ='[1]Distribution Factors'!F13 -> 2 | C21: City/Town | E21: NEW HAVEN | G21: 14794 | I21: 0.04163488843 | K21: =ROUND(I21*$M$24,2) -> 87638.98 | N21: 87638.48 | P21: 0.5
A22: ='[1]Distribution Factors'!F14 -> 2 | C22: City/Town | E22: WOODBURN | G22: 1520 | I22: =+G22/$G$24 -> 0.004277749791 | K22: =ROUND(I22*$M$24,2) -> 9004.41 | N22: 9004.36 | P22: 0.05
A23: ='[1]Distribution Factors'!F15 -> 2 | C23: City/Town | E23: ZANESVILLE | G23: 127 | I23: 0.0003574172523 | K23: =ROUND(I23*$M$24,2) -> 752.34 | N23: 752.34 | P23: 0
E24: Sub-Total | G24: =SUM(G15:G23) -> 355327 | I24: =SUM(I15:I23) -> 1 | K24: =SUM(K15:K23) -> 2104940.82 | M24: =Calculation!I9 -> 2104940.82 | O24: =K24=M24 -> TRUE | P24: 2104940.82 | R24: =Calculation!E9 -> 355329 | S24: =R24-G24 -> 2 | U24: =K24=M24 -> TRUE
A26: ='[1]Distribution Factors'!F16 -> 3 | C26: County | E26: BARTHOLOMEW | G26: 28979 | I26: =G26/$G$34 -> 0.3773602104 | K26: =M34-SUM(K27:K33) -> 171669.31 | N26: 171669.3 | P26: =K26-N26 -> 0.009999999951
A27: ='[1]Distribution Factors'!F17 -> 3 | C27: City/Town | E27: CLIFFORD | G27: 233 | I27: =G27/$G$34 -> 0.003034091205 | K27: =ROUND(I27*$M$34,2) -> 1380.27 | N27: 1380.27 | P27: 0
A28: ='[1]Distribution Factors'!F18 -> 3 | C28: City/Town | E28: COLUMBUS | G28: 44061 | I28: 0.5737557622 | K28: =ROUND(I28*$M$34,2) -> 261013.87 | N28: 261013.87 | P28: 0
A29: ='[1]Distribution Factors'!F19 -> 3 | C29: City/Town | E29: EDINBURGH | G29: 376 | I29: 0.00489621585 | K29: =ROUND(I29*$M$34,2) -> 2227.39 | N29: 2227.39 | P29: 0
A30: ='[1]Distribution Factors'!F20 -> 3 | C30: City/Town | E30: ELIZABETHTOWN | G30: 504 | I30: 0.006563012735 | K30: =ROUND(I30*$M$34,2) -> 2985.66 | N30: 2985.66 | P30: 0
A31: ='[1]Distribution Factors'!F21 -> 3 | C31: City/Town | E31: HARTSVILLE | G31: 362 | I31: 0.004713909941 | K31: =ROUND(I31*$M$34,2) -> 2144.46 | N31: 2144.46 | P31: 0
A32: ='[1]Distribution Factors'!F22 -> 3 | C32: City/Town | E32: HOPE | G32: 2102 | I32: 0.0273719301 | K32: =ROUND(I32*$M$34,2) -> 12452.08 | N32: 12452.08 | P32: 0
A33: ='[1]Distribution Factors'!F23 -> 3 | C33: City/Town | E33: JONESVILLE | G33: 177 | I33: 0.002304867568 | K33: =ROUND(I33*$M$34,2) -> 1048.53 | N33: 1048.53 | P33: 0
E34: Sub-Total | G34: =SUM(G26:G33) -> 76794 | I34: =SUM(I25:I33) -> 1 | K34: =SUM(K26:K33) -> 454921.57 | M34: =Calculation!I10 -> 454921.57 | O34: =K34=M34 -> TRUE | R34: =Calculation!E10 -> 76794 | S34: =R34-G34 -> 0 | U34: =K34=M34 -> TRUE
A36: ='[1]Distribution Factors'!F24 -> 4 | C36: County | E36: BENTON | G36: 3115 | I36: =+G36/$G$43 -> 0.3518183872 | K36: =M43-SUM(K37:K42) -> 18453.01 | N36: 18453.01 | P36: =K36-N36 -> 0
A37: ='[1]Distribution Factors'!F25 -> 4 | C37: City/Town | E37: AMBIA | G37: 239 | I37: =+G37/$G$43 -> 0.02699344929 | K37: =ROUND(I37*$M$43,2) -> 1415.82 | N37: 1415.82 | P37: 0
A38: ='[1]Distribution Factors'!F26 -> 4 | C38: City/Town | E38: BOSWELL | G38: 778 | I38: 0.08786988932 | K38: =ROUND(I38*$M$43,2) -> 4608.81 | N38: 4608.81 | P38: 0
A39: ='[1]Distribution Factors'!F27 -> 4 | C39: City/Town | E39: EARL PARK | G39: 348 | I39: 0.03930426926 | K39: =ROUND(I39*$M$43,2) -> 2061.52 | N39: 2061.52 | P39: 0
A40: ='[1]Distribution Factors'!F28 -> 4 | C40: City/Town | E40: FOWLER | G40: 2317 | I40: 0.2616896318 | K40: =ROUND(I40*$M$43,2) -> 13725.72 | N40: 13725.72 | P40: 0
A41: ='[1]Distribution Factors'!F29 -> 4 | C41: City/Town | E41: OTTERBEIN | G41: 895 | I41: 0.1010842557 | K41: =ROUND(I41*$M$43,2) -> 5301.91 | N41: 5301.91 | P41: 0
A42: ='[1]Distribution Factors'!F30 -> 4 | C42: City/Town | E42: OXFORD | G42: 1162 | I42: 0.1312401175 | K42: =ROUND(I42*$M$43,2) -> 6883.6 | N42: 6883.6 | P42: 0
E43: Sub-Total | G43: =SUM(G36:G42) -> 8854 | I43: =SUM(I36:I42) -> 1 | K43: =SUM(K36:K42) -> 52450.39 | M43: =Calculation!I11 -> 52450.39 | O43: =K43=M43 -> TRUE | R43: =Calculation!E11 -> 8854 | S43: =R43-G43 -> 0 | U43: =K43=M43 -> TRUE
A45: ='[1]Distribution Factors'!F31 -> 5 | C45: County | E45: BLACKFORD | G45: 4365 | I45: =+G45/$G$50 -> 0.3419238603 | K45: =M50-SUM(K46:K49) -> 25857.9 | N45: 25857.91 | P45: =K45-N45 -> -0.009999999998
A46: ='[1]Distribution Factors'!F32 -> 5 | C46: City/Town | E46: DUNKIRK | G46: 145 | I46: =+G46/$G$50 -> 0.01135829547 | K46: =ROUND(I46*$M$50,2) -> 858.97 | N46: 858.97 | P46: 0
A47: ='[1]Distribution Factors'!F33 -> 5 | C47: City/Town | E47: HARTFORD | G47: 6220 | I47: 0.4872317092 | K47: =ROUND(I47*$M$50,2) -> 36846.79 | N47: 36846.79 | P47: 0
A48: ='[1]Distribution Factors'!F34 -> 5 | C48: City/Town | E48: MONTPELIER | G48: 1805 | I48: 0.1413911954 | K48: =ROUND(I48*$M$50,2) -> 10692.68 | N48: 10692.68 | P48: 0
A49: ='[1]Distribution Factors'!F35 -> 5 | C49: City/Town | E49: SHAMROCK LAKES | G49: 231 | I49: 0.01809493968 | K49: =ROUND(I49*$M$50,2) -> 1368.43 | N49: 1368.43 | P49: 0
E50: Sub-Total | G50: =SUM(G45:G49) -> 12766 | I50: =SUM(I45:I49) -> 1 | K50: =SUM(K45:K49) -> 75624.77 | M50: =Calculation!I12 -> 75624.77 | O50: =K50=M50 -> TRUE | R50: =Calculation!E12 -> 12766 | S50: =R50-G50 -> 0 | U50: =K50=M50 -> TRUE
P51: =K51-N51 -> 0
A52: ='[1]Distribution Factors'!F36 -> 6 | C52: County | E52: BOONE | G52: 20774 | I52: =+G52/$G$60 -> 0.3667725989 | K52: =M60-SUM(K53:K59) -> 123063.52 | N52: 123063.53 | P52: -0.01000000001
A53: ='[1]Distribution Factors'!F37 -> 6 | C53: City/Town | E53: ADVANCE | G53: 477 | I53: =+G53/$G$60 -> 0.008421610169 | K53: =ROUND(I53*$M$60,2) -> 2825.71 | N53: 2825.71 | P53: 0
A54: ='[1]Distribution Factors'!F38 -> 6 | C54: City/Town | E54: JAMESTOWN | G54: 933 | I54: 0.01647245763 | K54: =ROUND(I54*$M$60,2) -> 5527.02 | N54: 5527.02 | P54: 0
A55: ='[1]Distribution Factors'!F39 -> 6 | C55: City/Town | E55: LEBANON | G55: 15792 | I55: 0.2788135593 | K55: =ROUND(I55*$M$60,2) -> 93550.56 | N55: 93550.56 | P55: 0
A56: ='[1]Distribution Factors'!F40 -> 6 | C56: City/Town | E56: THORNTOWN | G56: 1520 | I56: 0.02683615819 | K56: =ROUND(I56*$M$60,2) -> 9004.36 | N56: 9004.36 | P56: 0
A57: ='[1]Distribution Factors'!F41 -> 6 | C57: City/Town | E57: ULEN | G57: 117 | I57: 0.002065677966 | K57: =ROUND(I57*$M$60,2) -> 693.1 | N57: 693.1 | P57: 0
A58: ='[1]Distribution Factors'!F42 -> 6 | C58: City/Town | E58: WHITESTOWN | G58: 2867 | I58: 0.05061793785 | K58: =ROUND(I58*$M$60,2) -> 16983.88 | N58: 16983.88 | P58: 0
A59: ='[1]Distribution Factors'!F43 -> 6 | C59: City/Town | E59: ZIONSVILLE | G59: 14160 | I59: 0.25 | K59: =ROUND(I59*$M$60,2) -> 83882.72 | N59: 83882.72 | P59: 0
E60: Sub-Total | G60: =SUM(G52:G59) -> 56640 | I60: =SUM(I52:I59) -> 1 | K60: =SUM(K52:K59) -> 335530.87 | M60: =Calculation!I13 -> 335530.87 | O60: =K60=M60 -> TRUE | R60: =Calculation!E13 -> 56640 | S60: =R60-G60 -> 0 | U60: =K60=M60 -> TRUE
A62: ='[1]Distribution Factors'!F44 -> 7 | C62: County | E62: BROWN | G62: 14439 | I62: =+G62/$G$64 -> 0.9473166251 | K62: =M64-SUM(K63) -> 85535.49 | N62: 85535.49 | P62: =K62-N62 -> 0
A63: ='[1]Distribution Factors'!F45 -> 7 | C63: City/Town | E63: NASHVILLE | G63: 803 | I63: =+G63/$G$64 -> 0.05268337489 | K63: =ROUND(I63*$M$64,2) -> 4756.91 | N63: 4756.91 | P63: 0
E64: Sub-Total | G64: =SUM(G62:G63) -> 15242 | I64: =SUM(I62:I63) -> 1 | K64: =SUM(K62:K63) -> 90292.4 | M64: =Calculation!I14 -> 90292.4 | N64: =M64-K64 -> 0 | O64: =K64=M64 -> TRUE | R64: =Calculation!E14 -> 15242 | S64: =R64-G64 -> 0 | U64: =K64=M64 -> TRUE
A66: ='[1]Distribution Factors'!F46 -> 8 | C66: County | E66: CARROLL | G66: 13873 | I66: =+G66/$G$72 -> 0.6883155545 | K66: =M72-SUM(K67:K71) -> 82182.56 | N66: 82182.55 | P66: =K66-N66 -> 0.009999999995
A67: ='[1]Distribution Factors'!F47 -> 8 | C67: City/Town | E67: BURLINGTON | G67: 603 | I67: =+G67/$G$72 -> 0.02991813446 | K67: =ROUND(I67*$M$72,2) -> 3572.12 | N67: 3572.12 | P67: 0
A68: ='[1]Distribution Factors'!F48 -> 8 | C68: City/Town | E68: CAMDEN | G68: 611 | I68: 0.0303150583 | K68: =ROUND(I68*$M$72,2) -> 3619.52 | N68: 3619.52 | P68: 0
A69: ='[1]Distribution Factors'!F49 -> 8 | C69: City/Town | E69: DELPHI | G69: 2893 | I69: 0.1435375837 | K69: =ROUND(I69*$M$72,2) -> 17137.9 | N69: 17137.9 | P69: 0
A70: ='[1]Distribution Factors'!F50 -> 8 | C70: City/Town | E70: FLORA | G70: 2036 | I70: 0.1010171173 | K70: =ROUND(I70*$M$72,2) -> 12061.1 | N70: 12061.1 | P70: 0
A71: ='[1]Distribution Factors'!F51 -> 8 | C71: City/Town | E71: YEOMAN | G71: 139 | I71: 0.006896551724 | K71: =ROUND(I71*$M$72,2) -> 823.42 | N71: 823.42 | P71: 0
E72: Sub-Total | G72: =SUM(G66:G71) -> 20155 | I72: =SUM(I66:I71) -> 1 | K72: =SUM(K66:K71) -> 119396.62 | M72: =Calculation!I15 -> 119396.62 | O72: =K72=M72 -> TRUE | P72: =K72-M72 -> 0 | R72: =Calculation!E15 -> 20155 | S72: =R72-G72 -> 0 | U72: =K72=M72 -> TRUE
A74: ='[1]Distribution Factors'!F52 -> 9 | C74: County | E74: CASS | G74: 17379 | I74: =+G74/$G$80 -> 0.4460042088 | K74: =M80-SUM(K75:K79) -> 102951.82 | N74: 102951.82 | P74: =K74-N74 -> 0
A75: ='[1]Distribution Factors'!F53 -> 9 | C75: City/Town | E75: GALVESTON | G75: 1311 | I75: =+G75/$G$80 -> 0.03364471591 | K75: =ROUND(I75*$M$80,2) -> 7766.26 | N75: 7766.26 | P75: 0
A76: ='[1]Distribution Factors'!F54 -> 9 | C76: City/Town | E76: LOGANSPORT | G76: 18266 | I76: =+G76/$G$80 -> 0.4687676436 | K76: =ROUND(I76*$M$80,2) -> 108206.33 | N76: 108206.34 | P76: -0.009999999995
A77: ='[1]Distribution Factors'!F55 -> 9 | C77: City/Town | E77: ONWARD | G77: 100 | I77: 0.002566339886 | K77: =ROUND(I77*$M$80,2) -> 592.39 | N77: 592.39 | P77: 0
A78: ='[1]Distribution Factors'!F56 -> 9 | C78: City/Town | E78: ROYAL CENTER | G78: 861 | I78: 0.02209618642 | K78: =ROUND(I78*$M$80,2) -> 5100.5 | N78: 5100.5 | P78: 0
A79: ='[1]Distribution Factors'!F57 -> 9 | C79: City/Town | E79: WALTON | G79: 1049 | I79: 0.0269209054 | K79: =ROUND(I79*$M$80,2) -> 6214.19 | N79: 6214.19 | P79: 0
E80: Sub-Total | G80: =SUM(G74:G79) -> 38966 | I80: =SUM(I74:I79) -> 1 | K80: =SUM(K74:K79) -> 230831.49 | M80: =Calculation!I16 -> 230831.49 | N80: =M80-K80 -> 0 | O80: =K80=M80 -> TRUE | P80: =K80-M80 -> 0 | R80: =Calculation!E16 -> 38966 | S80: =R80-G80 -> 0 | U80: =K80=M80 -> TRUE
A82: ='[1]Distribution Factors'!F58 -> 10 | C82: County | E82: CLARK | G82: 28258 | I82: =+G82/$G$89 -> 0.2563502431 | K82: =M89-SUM(K83:K88) -> 167398.15 | N82: 167398.15 | P82: =K82-N82 -> 0
A83: ='[1]Distribution Factors'!F59 -> 10 | C83: City/Town | E83: CHARLESTOWN | G83: 7585 | I83: =+G83/$G$89 -> 0.06880942013 | K83: =ROUND(I83*$M$89,2) -> 44932.94 | N83: 44932.94 | P83: 0
A84: ='[1]Distribution Factors'!F60 -> 10 | C84: City/Town | E84: CLARKSVILLE | G84: 21724 | I84: 0.1970752595 | K84: =ROUND(I84*$M$89,2) -> 128691.25 | N84: 128691.25 | P84: 0
A85: ='[1]Distribution Factors'!F61 -> 10 | C85: City/Town | E85: JEFFERSONVILLE | G85: 44953 | I85: 0.4078035416 | K85: =ROUND(I85*$M$89,2) -> 266298.01 | N85: 266298.01 | P85: 0
A86: ='[1]Distribution Factors'!F62 -> 10 | C86: City/Town | E86: BORDEN | G86: 808 | I86: 0.00732999492 | K86: =ROUND(I86*$M$89,2) -> 4786.53 | N86: 4786.53 | P86: 0
A87: ='[1]Distribution Factors'!F63 -> 10 | C87: City/Town | E87: SELLERSBURG | G87: 6128 | I87: 0.05559184266 | K87: =ROUND(I87*$M$89,2) -> 36301.79 | N87: 36301.79 | P87: 0
A88: ='[1]Distribution Factors'!F64 -> 10 | C88: City/Town | E88: UTICA | G88: 776 | I88: 0.007039698091 | K88: =ROUND(I88*$M$89,2) -> 4596.96 | N88: 4596.96 | P88: 0
E89: Sub-Total | G89: =SUM(G82:G88) -> 110232 | I89: =SUM(I82:I88) -> 1 | K89: =SUM(K82:K88) -> 653005.63 | M89: =Calculation!I17 -> 653005.63 | N89: =M89-K89 -> 0 | O89: =K89=M89 -> TRUE | P89: =K89-M89 -> 0 | R89: =Calculation!E17 -> 110232 | S89: =R89-G89 -> 0 | U89: =K89=M89 -> TRUE
A91: ='[1]Distribution Factors'!F65 -> 11 | C91: County | E91: CLAY | G91: 15416 | I91: =+G91/$G$99 -> 0.573298624 | K91: =M99-SUM(K92:K98) -> 91323.16 | N91: 91323.16 | P91: =K91-N91 -> 0
A92: ='[1]Distribution Factors'!F66 -> 11 | C92: City/Town | E92: BRAZIL | G92: 7912 | I92: =+G92/$G$99 -> 0.2942357754 | K92: =ROUND(I92*$M$99,2) -> 46870.06 | N92: 46870.06 | P92: 0
A93: ='[1]Distribution Factors'!F67 -> 11 | C93: City/Town | E93: CARBON | G93: 397 | I93: 0.01476385273 | K93: =ROUND(I93*$M$99,2) -> 2351.8 | N93: 2351.8 | P93: 0
A94: ='[1]Distribution Factors'!F68 -> 11 | C94: City/Town | E94: CENTER POINT | G94: 242 | I94: 0.008999628115 | K94: =ROUND(I94*$M$99,2) -> 1433.59 | N94: 1433.59 | P94: 0
A95: ='[1]Distribution Factors'!F69 -> 11 | C95: City/Town | E95: CLAY | G95: 861 | I95: 0.03201933804 | K95: =ROUND(I95*$M$99,2) -> 5100.5 | N95: 5100.5 | P95: 0
A96: ='[1]Distribution Factors'!F70 -> 11 | C96: City/Town | E96: HARMONY | G96: 656 | I96: 0.02439568613 | K96: =ROUND(I96*$M$99,2) -> 3886.09 | N96: 3886.09 | P96: 0
A97: ='[1]Distribution Factors'!F71 -> 11 | C97: City/Town | E97: KNIGHTSVILLE | G97: 872 | I97: 0.03242841205 | K97: =ROUND(I97*$M$99,2) -> 5165.66 | N97: 5165.66 | P97: 0
A98: ='[1]Distribution Factors'!F72 -> 11 | C98: City/Town | E98: STAUNTON | G98: 534 | I98: 0.01985868353 | K98: =ROUND(I98*$M$99,2) -> 3163.37 | N98: 3163.37 | P98: 0
E99: Sub-Total | G99: =SUM(G91:G98) -> 26890 | I99: =SUM(I91:I98) -> 1 | K99: =SUM(K91:K98) -> 159294.23 | M99: =Calculation!I18 -> 159294.23 | N99: =M99-K99 -> 0 | P99: =K99-M99 -> 0 | R99: =Calculation!E18 -> 26890 | S99: =R99-G99 -> 0 | U99: =K99=M99 -> TRUE
G100: .
A101: ='[1]Distribution Factors'!F73 -> 12 | C101: County | E101: CLINTON | G101: 11949 | I101: =+G101/$G$108 -> 0.3596496509 | K101: =M108-SUM(K102:K107) -> 70784.92 | N101: 70784.93 | P101: =K101-N101 -> -0.01000000001
A102: ='[1]Distribution Factors'!F74 -> 12 | C102: City/Town | E102: COLFAX | G102: 691 | I102: =+G102/$G$108 -> 0.02079821816 | K102: =ROUND(I102*$M$108,2) -> 4093.43 | N102: 4093.43 | P102: 0
A103: ='[1]Distribution Factors'!F75 -> 12 | C103: City/Town | E103: FRANKFORT | G103: 16422 | I103: 0.4942812425 | K103: =ROUND(I103*$M$108,2) -> 97282.63 | N103: 97282.63 | P103: 0
A104: ='[1]Distribution Factors'!F76 -> 12 | C104: City/Town | E104: KIRKLIN | G104: 788 | I104: 0.02371779437 | K104: =ROUND(I104*$M$108,2) -> 4668.05 | N104: 4668.05 | P104: 0
A105: ='[1]Distribution Factors'!F77 -> 12 | C105: City/Town | E105: MICHIGANTOWN | G105: 467 | I105: 0.01405610402 | K105: =ROUND(I105*$M$108,2) -> 2766.47 | N105: 2766.47 | P105: 0
A106: ='[1]Distribution Factors'!F78 -> 12 | C106: City/Town | E106: MULBERRY | G106: 1254 | I106: 0.03774379966 | K106: =ROUND(I106*$M$108,2) -> 7428.6 | N106: 7428.6 | P106: 0
A107: ='[1]Distribution Factors'!F79 -> 12 | C107: City/Town | E107: ROSSVILLE | G107: 1653 | I107: 0.04975319046 | K107: =ROUND(I107*$M$108,2) -> 9792.24 | N107: 9792.24 | P107: 0
E108: Sub-Total | G108: =SUM(G101:G107) -> 33224 | I108: =SUM(I101:I107) -> 1 | K108: =SUM(K101:K107) -> 196816.34 | M108: =Calculation!I19 -> 196816.34 | N108: =M108-K108 -> 0 | R108: =Calculation!E19 -> 33224 | S108: =R108-G108 -> 0 | U108: =K108=M108 -> TRUE
A110: ='[1]Distribution Factors'!F80 -> 13 | C110: County | E110: CRAWFORD | G110: 8502 | I110: =+G110/$G$116 -> 0.7936152338 | K110: =M116-SUM(K111:K115) -> 50365.17 | N110: 50365.17 | P110: =K110-N110 -> 0
A111: ='[1]Distribution Factors'!F81 -> 13 | C111: City/Town | E111: ALTON | G111: 55 | I111: 0.005133949407 | K111: =ROUND(I111*$M$116,2) -> 325.82 | N111: 325.82 | P111: 0
A112: ='[1]Distribution Factors'!F82 -> 13 | C112: City/Town | E112: ENGLISH | G112: 645 | I112: 0.06020722487 | K112: =ROUND(I112*$M$116,2) -> 3820.93 | N112: 3820.93 | P112: 0
A113: ='[1]Distribution Factors'!F83 -> 13 | C113: City/Town | E113: LEAVENWORTH | G113: 238 | I113: 0.02221599925 | K113: =ROUND(I113*$M$116,2) -> 1409.89 | N113: 1409.89 | P113: 0
A114: ='[1]Distribution Factors'!F84 -> 13 | C114: City/Town | E114: MARENGO | G114: 828 | I114: 0.07728927471 | K114: =ROUND(I114*$M$116,2) -> 4905.01 | N114: 4905.01 | P114: 0
A115: ='[1]Distribution Factors'!F85 -> 13 | C115: City/Town | E115: MILLTOWN | G115: 445 | I115: 0.04153831793 | K115: =ROUND(I115*$M$116,2) -> 2636.14 | N115: 2636.14 | P115: 0
E116: Sub-Total | G116: =SUM(G110:G115) -> 10713 | I116: =SUM(I109:I115) -> 1 | K116: =SUM(K110:K115) -> 63462.96 | M116: =Calculation!I20 -> 63462.96 | N116: =M116-K116 -> 0 | R116: =Calculation!E20 -> 10713 | S116: =R116-G116 -> 0 | U116: =K116=M116 -> TRUE
A118: ='[1]Distribution Factors'!F86 -> 14 | C118: County | E118: DAVIESS | G118: 17090 | I118: =+G118/$G$126 -> 0.5400025278 | K118: =M126-SUM(K119:K125) -> 101239.8 | N118: 101239.8 | P118: =K118-N118 -> 0
A119: ='[1]Distribution Factors'!F87 -> 14 | C119: City/Town | E119: ALFORDSVILLE | G119: 101 | I119: =+G119/$G$126 -> 0.003191354904 | K119: =ROUND(I119*$M$126,2) -> 598.32 | N119: 598.32 | P119: 0
A120: ='[1]Distribution Factors'!F88 -> 14 | C120: City/Town | E120: CANNELBURG | G120: 135 | I120: 0.004265672396 | K120: =ROUND(I120*$M$126,2) -> 799.73 | N120: 799.73 | P120: 0
A121: ='[1]Distribution Factors'!F89 -> 14 | C121: City/Town | E121: ELNORA | G121: 640 | I121: 0.02022244692 | K121: =ROUND(I121*$M$126,2) -> 3791.31 | N121: 3791.31 | P121: 0
A122: ='[1]Distribution Factors'!F90 -> 14 | C122: City/Town | E122: MONTGOMERY | G122: 343 | I122: 0.01083796764 | K122: =ROUND(I122*$M$126,2) -> 2031.9 | N122: 2031.9 | P122: 0
A123: ='[1]Distribution Factors'!F91 -> 14 | C123: City/Town | E123: ODON | G123: 1354 | I123: 0.04278311426 | K123: =ROUND(I123*$M$126,2) -> 8020.99 | N123: 8020.99 | P123: 0
A124: ='[1]Distribution Factors'!F92 -> 14 | C124: City/Town | E124: PLAINVILLE | G124: 476 | I124: 0.01504044489 | K124: =ROUND(I124*$M$126,2) -> 2819.79 | N124: 2819.79 | P124: 0
A125: ='[1]Distribution Factors'!F93 -> 14 | C125: City/Town | E125: WASHINGTON | G125: 11509 | I125: 0.3636564712 | K125: =ROUND(I125*$M$126,2) -> 68178.4 | N125: 68178.4
E126: Sub-Total | G126: =SUM(G118:G125) -> 31648 | I126: =SUM(I118:I125) -> 1 | K126: =SUM(K118:K125) -> 187480.24 | M126: =Calculation!I21 -> 187480.24 | N126: =M126-K126 -> 0 | R126: =Calculation!E21 -> 31648 | S126: =R126-G126 -> 0 | U126: =K126=M126 -> TRUE
A128: ='[1]Distribution Factors'!F94 -> 16 | C128: County | E128: DECATUR | G128: 11796 | I128: =+G128/$G$134 -> 0.4582750583 | K128: =M134-SUM(K129:K133) -> 69878.56 | N128: 69878.57 | P128: =K128-N128 -> -0.01000000001
A129: ='[1]Distribution Factors'!F95 -> 16 | C129: City/Town | E129: GREENSBURG | G129: 11492 | I129: =+G129/$G$134 -> 0.4464646465 | K129: =ROUND(I129*$M$134,2) -> 68077.7 | N129: 68077.7 | P129: 0
A130: ='[1]Distribution Factors'!F96 -> 16 | C130: City/Town | E130: MILLHOUSEN | G130: 127 | I130: 0.004933954934 | K130: =ROUND(I130*$M$134,2) -> 752.34 | N130: 752.34 | P130: 0
A131: ='[1]Distribution Factors'!F97 -> 16 | C131: City/Town | E131: NEWPOINT | G131: 331 | I131: 0.01285936286 | K131: =ROUND(I131*$M$134,2) -> 1960.82 | N131: 1960.82 | P131: 0
A132: ='[1]Distribution Factors'!F98 -> 16 | C132: City/Town | E132: ST. PAUL | G132: 615 | I132: 0.02389277389 | K132: =ROUND(I132*$M$134,2) -> 3643.21 | N132: 3643.21 | P132: 0
A133: ='[1]Distribution Factors'!F99 -> 16 | C133: City/Town | E133: WESTPORT | G133: 1379 | I133: 0.05357420357 | K133: =ROUND(I133*$M$134,2) -> 8169.09 | N133: 8169.09 | P133: 0
E134: Sub-Total | G134: =SUM(G128:G133) -> 25740 | I134: =SUM(I128:I133) -> 1 | K134: =SUM(K128:K133) -> 152481.72 | M134: =Calculation!I23 -> 152481.72 | N134: =M134-K134 -> 0 | R134: =Calculation!E23 -> 25740 | S134: =R134-G134 -> 0 | U134: =K134=M134 -> TRUE
A136: ='[1]Distribution Factors'!F100 -> 17 | C136: County | E136: DEKALB | G136: 16481 | I136: =+G136/$G$146 -> 0.3903322834 | K136: =M146-SUM(K137:K145) -> 97632.15 | N136: 97632.14 | P136: =K136-N136 -> 0.01000000002
A137: ='[1]Distribution Factors'!F101 -> 17 | C137: City/Town | E137: ALTONA | G137: 197 | I137: =+G137/$G$146 -> 0.004665703527 | K137: =ROUND(I137*$M$146,2) -> 1167.01 | N137: 1167.01 | P137: 0
A138: ='[1]Distribution Factors'!F102 -> 17 | C138: City/Town | E138: ASHLEY | G138: 644 | I138: 0.01525235061 | K138: =ROUND(I138*$M$146,2) -> 3815 | N138: 3815 | P138: 0
A139: ='[1]Distribution Factors'!F103 -> 17 | C139: City/Town | E139: AUBURN | G139: 12731 | I139: 0.3015181299 | K139: =ROUND(I139*$M$146,2) -> 75417.43 | N139: 75417.43 | P139: 0
A140: ='[1]Distribution Factors'!F104 -> 17 | C140: City/Town | E140: BUTLER | G140: 2684 | I140: 0.06356725008 | K140: =ROUND(I140*$M$146,2) -> 15899.8 | N140: 15899.8 | P140: 0
A141: ='[1]Distribution Factors'!F105 -> 17 | C141: City/Town | E141: CORUNNA | G141: 254 | I141: 0.006015678659 | K141: =ROUND(I141*$M$146,2) -> 1504.68 | N141: 1504.68 | P141: 0
A142: ='[1]Distribution Factors'!F106 -> 17 | C142: City/Town | E142: GARRETT | G142: 6286 | I142: 0.1488762049 | K142: =ROUND(I142*$M$146,2) -> 37237.76 | N142: 37237.77 | P142: -0.009999999995
A143: ='[1]Distribution Factors'!F107 -> 17 | C143: City/Town | E143: HAMILTON | G143: 244 | I143: 0.005778840916 | K143: =ROUND(I143*$M$146,2) -> 1445.44 | N143: 1445.44 | P143: 0
A144: ='[1]Distribution Factors'!F108 -> 17 | C144: City/Town | E144: ST. JOE | G144: 460 | I144: 0.01089453615 | K144: =ROUND(I144*$M$146,2) -> 2725 | N144: 2725 | P144: 0
A145: ='[1]Distribution Factors'!F109 -> 17 | C145: City/Town | E145: WATERLOO | G145: 2242 | I145: 0.05309902186 | K145: =ROUND(I145*$M$146,2) -> 13281.43 | N145: 13281.43 | P145: 0
E146: Sub-Total | G146: =SUM(G136:G145) -> 42223 | I146: =SUM(I136:I145) -> 1 | K146: =SUM(K136:K145) -> 250125.7 | M146: =Calculation!I24 -> 250125.7 | N146: =M146-K146 -> 0 | R146: =Calculation!E24 -> 42223 | S146: =R146-G146 -> 0 | U146: =K146=M146 -> TRUE
A148: ='[1]Distribution Factors'!F110 -> 18 | C148: County | E148: DELAWARE | G148: 31030 | I148: =+G148/$G$157 -> 0.2637013368 | K148: =M157-SUM(K149:K156) -> 183819.26 | N148: 183819.26 | P148: =K148-N148 -> 0
A149: ='[1]Distribution Factors'!F111 -> 18 | C149: City/Town | E149: ALBANY | G149: 1961 | I149: =+G149/$G$157 -> 0.01666510865 | K149: =ROUND(I149*$M$157,2) -> 11616.81 | N149: 11616.81 | P149: 0
A150: ='[1]Distribution Factors'!F112 -> 18 | C150: City/Town | E150: CHESTERFIELD | G150: 1 | I150: 8.498270602e-06 | K150: =ROUND(I150*$M$157,2) -> 5.92 | N150: 5.92 | P150: 0
A151: ='[1]Distribution Factors'!F113 -> 18 | C151: City/Town | E151: DALEVILLE | G151: 1647 | I151: 0.01399665168 | K151: =ROUND(I151*$M$157,2) -> 9756.7 | N151: 9756.7 | P151: 0
A152: ='[1]Distribution Factors'!F114 -> 18 | C152: City/Town | E152: EATON | G152: 1805 | I152: 0.01533937844 | K152: =ROUND(I152*$M$157,2) -> 10692.68 | N152: 10692.68 | P152: 0
A153: ='[1]Distribution Factors'!F115 -> 18 | C153: City/Town | E153: GASTON | G153: 871 | I153: 0.007401993694 | K153: =ROUND(I153*$M$157,2) -> 5159.73 | N153: 5159.73 | P153: 0
A154: ='[1]Distribution Factors'!F116 -> 18 | C154: City/Town | E154: MUNCIE | G154: 70085 | I154: 0.5956012951 | K154: =ROUND(I154*$M$157,2) -> 415177.98 | N154: 415177.98 | P154: 0
A155: ='[1]Distribution Factors'!F117 -> 18 | C155: City/Town | E155: SELMA | G155: 866 | I155: 0.007359502341 | K155: =ROUND(I155*$M$157,2) -> 5130.12 | N155: 5130.12 | P155: 0
A156: ='[1]Distribution Factors'!F118 -> 18 | C156: City/Town | E156: YORKTOWN | G156: 9405 | I156: 0.07992623501 | K156: =ROUND(I156*$M$157,2) -> 55714.47 | N156: 55714.47 | P156: 0
E157: Sub-Total | G157: =SUM(G148:G156) -> 117671 | I157: =SUM(I148:I156) -> 1 | K157: =SUM(K148:K156) -> 697073.67 | M157: =Calculation!I25 -> 697073.67 | N157: =M157-K157 -> 0 | R157: =Calculation!E25 -> 117671 | S157: =R157-G157 -> 0 | U157: =K157=M157 -> TRUE
A159: ='[1]Distribution Factors'!F119 -> 19 | C159: County | E159: DUBOIS | G159: 17595 | I159: =+G159/$G$165 -> 0.4200386736 | K159: =M165-SUM(K160:K164) -> 104231.38 | N159: 104231.38 | P159: =K159-N159 -> 0
A160: ='[1]Distribution Factors'!F120 -> 19 | C160: City/Town | E160: BIRDSEYE | G160: 416 | I160: =+G160/$G$165 -> 0.009931008141 | K160: =ROUND(I160*$M$165,2) -> 2464.35 | N160: 2464.35 | P160: 0
A161: ='[1]Distribution Factors'!F121 -> 19 | C161: City/Town | E161: FERDINAND | G161: 2157 | I161: 0.05149323211 | K161: =ROUND(I161*$M$165,2) -> 12777.9 | N161: 12777.9 | P161: 0
A162: ='[1]Distribution Factors'!F122 -> 19 | C162: City/Town | E162: HOLLAND | G162: 626 | I162: 0.01494425744 | K162: =ROUND(I162*$M$165,2) -> 3708.37 | N162: 3708.37 | P162: 0
A163: ='[1]Distribution Factors'!F123 -> 19 | C163: City/Town | E163: HUNTINGBURG | G163: 6057 | I163: 0.1445964334 | K163: =ROUND(I163*$M$165,2) -> 35881.19 | N163: 35881.19 | P163: 0
A164: ='[1]Distribution Factors'!F124 -> 19 | C164: City/Town | E164: JASPER | G164: 15038 | I164: 0.3589963952 | K164: =ROUND(I164*$M$165,2) -> 89083.92 | N164: 89083.92 | P164: 0
E165: Sub-Total | G165: =SUM(G159:G164) -> 41889 | I165: =SUM(I159:I164) -> 1 | K165: =SUM(K159:K164) -> 248147.11 | M165: =Calculation!I26 -> 248147.11 | N165: =M165-K165 -> 0 | R165: =Calculation!E26 -> 41889 | S165: =R165-G165 -> 0 | U165: =K165=M165 -> TRUE
A167: ='[1]Distribution Factors'!F125 -> 20 | C167: County | E167: ELKHART | G167: 101046 | I167: =+G167/$G$175 -> 0.5114725221 | K167: =M175-SUM(K168:K174) -> 598588.49 | N167: 598588.49 | P167: =K167-N167 -> 0
A168: ='[1]Distribution Factors'!F126 -> 20 | C168: City/Town | E168: BRISTOL | G168: 1602 | I168: =+G168/$G$175 -> 0.008108969979 | K168: =ROUND(I168*$M$175,2) -> 9490.12 | N168: 9490.12 | P168: 0
A169: ='[1]Distribution Factors'!F127 -> 20 | C169: City/Town | E169: ELKHART | G169: 50949 | I169: 0.2578925789 | K169: =ROUND(I169*$M$175,2) -> 301817.84 | N169: 301817.84 | P169: 0
A170: ='[1]Distribution Factors'!F128 -> 20 | C170: City/Town | E170: GOSHEN | G170: 31719 | I170: 0.1605545685 | K170: =ROUND(I170*$M$175,2) -> 187900.84 | N170: 187900.84 | P170: 0
A171: ='[1]Distribution Factors'!F129 -> 20 | C171: City/Town | E171: MIDDLEBURY | G171: 3420 | I171: 0.01731128422 | K171: =ROUND(I171*$M$175,2) -> 20259.81 | N171: 20259.81 | P171: 0
A172: ='[1]Distribution Factors'!F130 -> 20 | C172: City/Town | E172: MILLERSBURG | G172: 903 | I172: 0.004570786449 | K172: =ROUND(I172*$M$175,2) -> 5349.3 | N172: 5349.3 | P172: 0
A173: ='[1]Distribution Factors'!F131 -> 20 | C173: City/Town | E173: NAPPANEE | G173: 6162 | I173: 0.03119068228 | K173: =ROUND(I173*$M$175,2) -> 36503.2 | N173: 36503.2 | P173: 0
A174: ='[1]Distribution Factors'!F132 -> 20 | C174: City/Town | E174: WAKARUSA | G174: 1758 | I174: 0.008898607505 | K174: =ROUND(I174*$M$175,2) -> 10414.25 | N174: 10414.25 | P174: 0
E175: Sub-Total | G175: =SUM(G167:G174) -> 197559 | I175: =SUM(I167:I174) -> 1 | K175: =SUM(K167:K174) -> 1170323.85 | M175: =Calculation!I27 -> 1170323.85 | N175: =M175-K175 -> 0 | R175: =Calculation!E27 -> 197559 | S175: =R175-G175 -> 0 | U175: =K175=M175 -> TRUE
A177: ='[1]Distribution Factors'!F133 -> 21 | C177: County | E177: FAYETTE | G177: 10720 | I177: =+G177/$G$180 -> 0.4415702105 | K177: =M180-SUM(K178:K179) -> 63504.43 | N177: 63504.43 | P177: =K177-N177 -> 0
A178: ='[1]Distribution Factors'!F134 -> 21 | C178: City/Town | E178: CONNERSVILLE | G178: 13481 | I178: =+G178/$G$180 -> 0.5552992544 | K178: =ROUND(I178*$M$180,2) -> 79860.37 | N178: 79860.37 | P178: 0
A179: ='[1]Distribution Factors'!F135 -> 21 | C179: City/Town | E179: GLENWOOD | G179: 76 | I179: =+G179/$G$180 -> 0.003130535074 | K179: =ROUND(I179*$M$180,2) -> 450.22 | N179: 450.22 | P179: 0
E180: Sub-Total | G180: =SUM(G177:G179) -> 24277 | I180: =SUM(I177:I179) -> 1 | K180: =SUM(K177:K179) -> 143815.02 | M180: =Calculation!I28 -> 143815.02 | N180: =M180-K180 -> 0 | R180: =Calculation!E28 -> 24277 | S180: =R180-G180 -> 0 | U180: =K180=M180 -> TRUE
A182: ='[1]Distribution Factors'!F136 -> 22 | C182: County | E182: FLOYD | G182: 34735 | I182: =+G182/$G$186 -> 0.4657539757 | K182: =M186-SUM(K183:K185) -> 205767.39 | N182: 205767.39 | P182: =K182-N182 -> 0
A183: ='[1]Distribution Factors'!F137 -> 22 | C183: City/Town | E183: GEORGETOWN | G183: 2876 | I183: =+G183/$G$186 -> 0.03856365148 | K183: =ROUND(I183*$M$186,2) -> 17037.2 | N183: 17037.2 | P183: 0
A184: ='[1]Distribution Factors'!F138 -> 22 | C184: City/Town | E184: GREENVILLE | G184: 595 | I184: =+G184/$G$186 -> 0.007978224141 | K184: =ROUND(I184*$M$186,2) -> 3524.73 | N184: 3524.73 | P184: 0
A185: ='[1]Distribution Factors'!F139 -> 22 | C185: City/Town | E185: NEW ALBANY | G185: 36372 | I185: =+G185/$G$186 -> 0.4877041487 | K185: =ROUND(I185*$M$186,2) -> 215464.84 | N185: 215464.84 | P185: 0
E186: Sub-Total | G186: =SUM(G182:G185) -> 74578 | I186: =SUM(I182:I185) -> 1 | K186: =SUM(K182:K185) -> 441794.16 | M186: =Calculation!I29 -> 441794.16 | N186: =M186-K186 -> 0 | R186: =Calculation!E29 -> 74578 | S186: =R186-G186 -> 0 | U186: =K186=M186 -> TRUE
A188: ='[1]Distribution Factors'!F140 -> 23 | C188: County | E188: FOUNTAIN | G188: 7563 | I188: =+G188/$G$197 -> 0.4386890951 | K188: =M197-SUM(K189:K196) -> 44802.62 | N188: 44802.61 | P188: =K188-N188 -> 0.009999999995
A189: ='[1]Distribution Factors'!F141 -> 23 | C189: City/Town | E189: ATTICA | G189: 3245 | I189: =+G189/$G$197 -> 0.188225058 | K189: =ROUND(I189*$M$197,2) -> 19223.12 | N189: 19223.12 | P189: 0
A190: ='[1]Distribution Factors'!F142 -> 23 | C190: City/Town | E190: COVINGTON | G190: 2645 | I190: 0.1534222738 | K190: =ROUND(I190*$M$197,2) -> 15668.77 | N190: 15668.77 | P190: 0
A191: ='[1]Distribution Factors'!F143 -> 23 | C191: City/Town | E191: HILLSBORO | G191: 538 | I191: 0.03120649652 | K191: =ROUND(I191*$M$197,2) -> 3187.07 | N191: 3187.07 | P191: 0
A192: ='[1]Distribution Factors'!F144 -> 23 | C192: City/Town | E192: KINGMAN | G192: 511 | I192: 0.02964037123 | K192: =ROUND(I192*$M$197,2) -> 3027.12 | N192: 3027.12 | P192: 0
A193: ='[1]Distribution Factors'!F145 -> 23 | C193: City/Town | E193: MELLOTT | G193: 197 | I193: 0.01142691415 | K193: =ROUND(I193*$M$197,2) -> 1167.01 | N193: 1167.01 | P193: 0
A194: ='[1]Distribution Factors'!F146 -> 23 | C194: City/Town | E194: NEWTOWN | G194: 256 | I194: 0.01484918794 | K194: =ROUND(I194*$M$197,2) -> 1516.52 | N194: 1516.52 | P194: 0
A195: ='[1]Distribution Factors'!F147 -> 23 | C195: City/Town | E195: VEEDERSBURG | G195: 2180 | I195: 0.126450116 | K195: =ROUND(I195*$M$197,2) -> 12914.15 | N195: 12914.15 | P195: 0
A196: ='[1]Distribution Factors'!F148 -> 23 | C196: City/Town | E196: WALLACE | G196: 105 | I196: 0.006090487239 | K196: =ROUND(I196*$M$197,2) -> 622.01 | N196: 622.01 | P196: 0
E197: Sub-Total | G197: =SUM(G188:G196) -> 17240 | I197: =SUM(I188:I196) -> 1 | K197: =SUM(K188:K196) -> 102128.39 | M197: =Calculation!I30 -> 102128.39 | N197: =M197-K197 -> 0 | R197: =Calculation!E30 -> 17240 | S197: =R197-G197 -> 0
A199: ='[1]Distribution Factors'!F149 -> 24 | C199: County | E199: FRANKLIN | G199: 17424 | I199: =+G199/$G$206 -> 0.7547104431 | K199: =M206-SUM(K200:K205) -> 103218.39 | N199: 103218.39 | P199: =K199-N199 -> 0
A200: ='[1]Distribution Factors'!F150 -> 24 | C200: City/Town | E200: BATESVILLE | G200: 1639 | I200: =+G200/$G$206 -> 0.07099233335 | K200: =ROUND(I200*$M$206,2) -> 9709.31 | N200: 9709.31 | P200: 0
A201: ='[1]Distribution Factors'!F151 -> 24 | C201: City/Town | E201: BROOKVILLE | G201: 2596 | I201: 0.1124442327 | K201: =ROUND(I201*$M$206,2) -> 15378.5 | N201: 15378.5 | P201: 0
A202: ='[1]Distribution Factors'!F152 -> 24 | C202: City/Town | E202: CEDAR GROVE | G202: 156 | I202: 0.006757049422 | K202: =ROUND(I202*$M$206,2) -> 924.13 | N202: 924.13 | P202: 0
A203: ='[1]Distribution Factors'!F153 -> 24 | C203: City/Town | E203: LAUREL | G203: 512 | I203: 0.02217698272 | K203: =ROUND(I203*$M$206,2) -> 3033.05 | N203: 3033.05 | P203: 0
A204: ='[1]Distribution Factors'!F154 -> 24 | C204: City/Town | E204: MOUNT CARMEL | G204: 86 | I204: 0.003725040066 | K204: =ROUND(I204*$M$206,2) -> 509.46 | N204: 509.46 | P204: 0
A205: ='[1]Distribution Factors'!F155 -> 24 | C205: City/Town | E205: OLDENBURG | G205: 674 | I205: 0.02919391866 | K205: =ROUND(I205*$M$206,2) -> 3992.72 | N205: 3992.72 | P205: 0
E206: Sub-Total | G206: =SUM(G199:G205) -> 23087 | I206: =SUM(I199:I205) -> 1 | K206: =SUM(K199:K205) -> 136765.56 | M206: =Calculation!I31 -> 136765.56 | N206: =M206-K206 -> 0 | R206: =Calculation!E31 -> 23087 | S206: =R206-G206 -> 0
A208: ='[1]Distribution Factors'!F156 -> 25 | C208: County | E208: FULTON | G208: 12505 | I208: =+G208/$G$213 -> 0.6001631791 | K208: =M213-SUM(K209:K212) -> 74078.62 | N208: 74078.63 | P208: =K208-N208 -> -0.01000000001
A209: ='[1]Distribution Factors'!F157 -> 25 | C209: City/Town | E209: AKRON | G209: 1167 | I209: =+G209/$G$213 -> 0.05600883087 | K209: =ROUND(I209*$M$213,2) -> 6913.22 | N209: 6913.22 | P209: 0
A210: ='[1]Distribution Factors'!F158 -> 25 | C210: City/Town | E210: FULTON | G210: 333 | I210: 0.01598195431 | K210: =ROUND(I210*$M$213,2) -> 1972.67 | N210: 1972.67 | P210: 0
A211: ='[1]Distribution Factors'!F159 -> 25 | C211: City/Town | E211: KEWANNA | G211: 613 | I211: 0.02942023421 | K211: =ROUND(I211*$M$213,2) -> 3631.36 | N211: 3631.36 | P211: 0
A212: ='[1]Distribution Factors'!F160 -> 25 | C212: City/Town | E212: ROCHESTER | G212: 6218 | I212: 0.2984258015 | K212: =ROUND(I212*$M$213,2) -> 36834.94 | N212: 36834.94 | P212: 0
E213: Sub-Total | G213: =SUM(G208:G212) -> 20836 | I213: =SUM(I208:I212) -> 1 | K213: =SUM(K208:K212) -> 123430.81 | M213: =Calculation!I32 -> 123430.81 | N213: =M213-K213 -> 0 | R213: =Calculation!E32 -> 20836 | S213: =R213-G213 -> 0
A215: ='[1]Distribution Factors'!F161 -> 26 | C215: County | E215: GIBSON | G215: 14932 | I215: =+G215/$G$226 -> 0.4456914306 | K215: =M226-SUM(K216:K225) -> 88456 | N215: 88455.98 | P215: =K215-N215 -> 0.01999999999
A216: ='[1]Distribution Factors'!F162 -> 26 | C216: City/Town | E216: FORT BRANCH | G216: 2771 | I216: =+G216/$G$226 -> 0.08270901113 | K216: =ROUND(I216*$M$226,2) -> 16415.18 | N216: 16415.18 | P216: 0
A217: ='[1]Distribution Factors'!F163 -> 26 | C217: City/Town | E217: FRANCISCO | G217: 469 | I217: 0.01399874638 | K217: =ROUND(I217*$M$226,2) -> 2778.32 | N217: 2778.32 | P217: 0
A218: ='[1]Distribution Factors'!F164 -> 26 | C218: City/Town | E218: HAUBSTADT | G218: 1577 | I218: 0.0470704116 | K218: =ROUND(I218*$M$226,2) -> 9342.02 | N218: 9342.02 | P218: 0
A219: ='[1]Distribution Factors'!F165 -> 26 | C219: City/Town | E219: HAZELTON | G219: 263 | I219: 0.00785004328 | K219: =ROUND(I219*$M$226,2) -> 1557.99 | N219: 1557.99 | P219: 0
A220: ='[1]Distribution Factors'!F166 -> 26 | C220: City/Town | E220: MACKEY | G220: 106 | I220: 0.003163895771 | K220: =ROUND(I220*$M$226,2) -> 627.94 | N220: 627.94 | P220: 0
A221: ='[1]Distribution Factors'!F167 -> 26 | C221: City/Town | E221: OAKLAND CITY | G221: 2429 | I221: 0.07250097006 | K221: =ROUND(I221*$M$226,2) -> 14389.2 | N221: 14389.2 | P221: 0
A222: ='[1]Distribution Factors'!F168 -> 26 | C222: City/Town | E222: OWENSVILLE | G222: 1284 | I222: 0.03832492613 | K222: =ROUND(I222*$M$226,2) -> 7606.31 | N222: 7606.31 | P222: 0
... 511 more rows

Sheet Calculation (hidden)
A1: State of Indiana Auditor of State
A2: Calcuation of Riverboat Revenue Sharing (Distribution to County Auditors)
A3: IC 4-33-13-5€
A5: County | C5: County | E5: 2010 Cencus | G5: Percentage of | I5: County
A6: Number | C6: Name | E6: Population | G6: Total Population | I6: Share (1)
A8: 1 | C8: ADAMS COUNTY | E8: ='County Population'!B2 -> 34387 | G8: =E8/$E$101 -> 0.006172904884 | I8: =ROUND(G8*33000000,2) -> 203705.86
A9: =A8+1 -> 2 | C9: ALLEN COUNTY | E9: ='County Population'!B3 -> 355329 | G9: =E9/$E$101 -> 0.06378608543 | I9: 2104940.82
A10: =A9+1 -> 3 | C10: BARTHOLOMEW COUNTY | E10: ='County Population'!B4 -> 76794 | G10: 0.01378550201 | I10: 454921.57
A11: 4 | C11: BENTON COUNTY | E11: ='County Population'!B5 -> 8854 | G11: 0.001589405876 | I11: 52450.39
A12: 5 | C12: BLACKFORD COUNTY | E12: ='County Population'!B6 -> 12766 | G12: 0.002291659748 | I12: 75624.77
A13: 6 | C13: BOONE COUNTY | E13: ='County Population'!B7 -> 56640 | G13: 0.01016760208 | I13: 335530.87
A14: 7 | C14: BROWN COUNTY | E14: ='County Population'!B8 -> 15242 | G14: 0.002736133313 | I14: 90292.4
A15: 8 | C15: CARROLL COUNTY | E15: ='County Population'!B9 -> 20155 | G15: 0.003618079447 | I15: 119396.62
A16: 9 | C16: CASS COUNTY | E16: ='County Population'!B10 -> 38966 | G16: 0.00699489376 | I16: 230831.49
A17: 10 | C17: CLARK COUNTY | E17: ='County Population'!B11 -> 110232 | G17: 0.0197880493 | I17: 653005.63
A18: 11 | C18: CLAY COUNTY | E18: ='County Population'!B12 -> 26890 | G18: 0.004827097808 | I18: =ROUND(G18*33000000,2) -> 159294.23
A19: 12 | C19: CLINTON COUNTY | E19: ='County Population'!B13 -> 33224 | G19: 0.005964131558 | I19: 196816.34
A20: 13 | C20: CRAWFORD COUNTY | E20: ='County Population'!B14 -> 10713 | G20: 0.001923120075 | I20: 63462.96
A21: 14 | C21: DAVIESS COUNTY | E21: ='County Population'!B15 -> 31648 | G21: 0.005681219466 | I21: 187480.24
A22: 15 | C22: DEARBORN COUNTY | E22: 0 | G22: 0 | I22: 0
A23: 16 | C23: DECATUR COUNTY | E23: ='County Population'!B17 -> 25740 | G23: 0.004620658148 | I23: 152481.72
A24: 17 | C24: DEKALB COUNTY | E24: ='County Population'!B18 -> 42223 | G24: 0.007579566782 | I24: 250125.7
A25: 18 | C25: DELAWARE COUNTY | E25: ='County Population'!B19 -> 117671 | G25: 0.02112344463 | I25: 697073.67
A26: 19 | C26: DUBOIS COUNTY | E26: ='County Population'!B20 -> 41889 | G26: 0.007519609524 | I26: 248147.11
A27: 20 | C27: ELKHART COUNTY | E27: ='County Population'!B21 -> 197559 | G27: 0.03546435909 | I27: 1170323.85
A28: 21 | C28: FAYETTE COUNTY | E28: ='County Population'!B22 -> 24277 | G28: 0.004358030996 | I28: 143815.02
A29: 22 | C29: FLOYD COUNTY | E29: ='County Population'!B23 -> 74578 | G29: 0.01338770176 | I29: 441794.16
A30: 23 | C30: FOUNTAIN COUNTY | E30: ='County Population'!B24 -> 17240 | G30: 0.003094799785 | I30: 102128.39
A31: 24 | C31: FRANKLIN COUNTY | E31: ='County Population'!B25 -> 23087 | G31: 0.004144410826 | I31: 136765.56
A32: 25 | C32: FULTON COUNTY | E32: ='County Population'!B26 -> 20836 | G32: 0.003740327629 | I32: 123430.81
A33: 26 | C33: GIBSON COUNTY | E33: ='County Population'!B27 -> 33503 | G33: 0.006014215615 | I33: 198469.12
A34: 27 | C34: GRANT COUNTY | E34: ='County Population'!B28 -> 70061 | G34: 0.01257684268 | I34: 415035.81
A35: 28 | C35: GREENE COUNTY | E35: ='County Population'!B29 -> 33165 | G35: 0.005953540306 | I35: 196466.83
A36: 29 | C36: HAMILTON COUNTY | E36: ='County Population'!B30 -> 274569 | G36: 0.04928863586 | I36: 1626524.98
A37: 30 | C37: HANCOCK COUNTY | E37: ='County Population'!B31 -> 70002 | G37: 0.01256625142 | I37: 414686.3
A38: 31 | C38: HARRISON COUNTY | E38: 0 | G38: 0 | I38: 0
A39: 32 | C39: HENDRICKS COUNTY | E39: ='County Population'!B33 -> 145448 | G39: 0.02610977025 | I39: 861622.42
A40: 33 | C40: HENRY COUNTY | E40: ='County Population'!B34 -> 49462 | G40: 0.008879059569 | I40: 293008.97
A41: 34 | C41: HOWARD COUNTY | E41: ='County Population'!B35 -> 82752 | G41: 0.01485503897 | I41: 490216.29
A42: 35 | C42: HUNTINGTON COUNTY | E42: ='County Population'!B36 -> 37124 | G42: 0.006664231277 | I42: 219919.63
A43: 36 | C43: JACKSON COUNTY | E43: ='County Population'!B37 -> 42376 | G43: 0.007607032232 | I43: 251032.06
A44: 37 | C44: JASPER COUNTY | E44: ='County Population'!B38 -> 33478 | G44: 0.006009727796 | I44: 198321.02
A45: 38 | C45: JAY COUNTY | E45: ='County Population'!B39 -> 21253 | G45: 0.003815184445 | I45: 125901.09
A46: 39 | C46: JEFFERSON COUNTY | E46: ='County Population'!B40 -> 32428 | G46: 0.00582123941 | I46: 192100.9
A47: 40 | C47: JENNINGS COUNTY | E47: ='County Population'!B41 -> 28525 | G47: 0.005120601152 | I47: 168979.84
A48: 41 | C48: JOHNSON COUNTY | E48: ='County Population'!B42 -> 139654 | G48: 0.02506967339 | I48: 827299.22
A49: 42 | C49: KNOX COUNTY | E49: ='County Population'!B43 -> 38440 | G49: 0.006900470054 | I49: 227715.51
A50: 43 | C50: KOSCIUSKO COUNTY | E50: ='County Population'!B44 -> 77358 | G50: 0.0138867472 | I50: 458262.66
A51: 44 | C51: LA GRANGE COUNTY | E51: ='County Population'!B45 -> 37128 | G51: 0.006664949328 | I51: 219943.33
A52: 45 | C52: LAKE COUNTY | E52: 0 | G52: 0 | I52: 0
A53: 46 | C53: LA PORTE COUNTY | E53: 0 | G53: 0 | I53: 0
A54: 47 | C54: LAWRENCE COUNTY | E54: ='County Population'!B48 -> 46134 | G54: 0.008281641141 | I54: 273294.16
A55: 48 | C55: MADISON COUNTY | E55: ='County Population'!B49 -> 131636 | G55: 0.02363034017 | I55: 779801.23
A56: 49 | C56: MARION COUNTY | E56: ='County Population'!B50 -> 903393 | G56: 0.1621705604 | I56: 5351628.49
A57: 50 | C57: MARSHALL COUNTY | E57: ='County Population'!B51 -> 47051 | G57: 0.008446254332 | I57: 278726.39
A58: 51 | C58: MARTIN COUNTY | E58: ='County Population'!B52 -> 10334 | G58: 0.001855084743 | I58: 61217.8
A59: 52 | C59: MIAMI COUNTY | E59: ='County Population'!B53 -> 36903 | G59: 0.00662455896 | I59: 218610.45
A60: 53 | C60: MONROE COUNTY | E60: ='County Population'!B54 -> 137974 | G60: 0.02476809197 | I60: 817347.03
A61: 54 | C61: MONTGOMERY COUNTY | E61: ='County Population'!B55 -> 38124 | G61: 0.006843744026 | I61: 225843.55
A62: 55 | C62: MORGAN COUNTY | E62: ='County Population'!B56 -> 68894 | G62: 0.0123673513 | I62: 408122.59
A63: 56 | C63: NEWTON COUNTY | E63: ='County Population'!B57 -> 14244 | G63: 0.00255697959 | I63: 84380.33
A64: 57 | C64: NOBLE COUNTY | E64: ='County Population'!B58 -> 47536 | G64: 0.008533318015 | I64: 281599.49
A65: 58 | C65: OHIO COUNTY | E65: 0 | G65: 0 | I65: 0
A66: 59 | C66: ORANGE COUNTY | E66: 0 | G66: 0 | I66: 0
A67: 60 | C67: OWEN COUNTY | E67: ='County Population'!B61 -> 21575 | G67: 0.00387298755 | I67: 127808.59
A68: 61 | C68: PARKE COUNTY | E68: ='County Population'!B62 -> 17339 | G68: 0.003112571547 | I68: 102714.86
A69: 62 | C69: PERRY COUNTY | E69: ='County Population'!B63 -> 19338 | G69: 0.003471417531 | I69: 114556.78
A70: 63 | C70: PIKE COUNTY | E70: ='County Population'!B64 -> 12845 | G70: 0.002305841255 | I70: 76092.76
A71: 64 | C71: PORTER COUNTY | E71: ='County Population'!B65 -> 164343 | G71: 0.02950166363 | I71: 973554.9
A72: 65 | C72: POSEY COUNTY | E72: ='County Population'!B66 -> 25910 | G72: 0.004651175315 | I72: 153488.79
A73: 66 | C73: PULASKI COUNTY | E73: ='County Population'!B67 -> 13402 | G73: =E73/$E$101 -> 0.002405829856 | I73: 79392.39
A74: =A73+1 -> 67 | C74: PUTNAM COUNTY | E74: ='County Population'!B68 -> 37963 | G74: 0.006814842473 | I74: 224889.8
A75: 68 | C75: RANDOLPH COUNTY | E75: ='County Population'!B69 -> 26171 | G75: 0.004698028142 | I75: 155034.93
A76: 69 | C76: RIPLEY COUNTY | E76: ='County Population'!B70 -> 28818 | G76: 0.005173198388 | I76: 170715.55
A77: 70 | C77: RUSH COUNTY | E77: ='County Population'!B71 -> 17392 | G77: 0.003122085723 | I77: 103028.83
A78: 71 | C78: ST. JOSEPH COUNTY | E78: ='County Population'!B72 -> 266931 | G78: 0.04791751748 | I78: 1581278.08
A79: 72 | C79: SCOTT COUNTY | E79: ='County Population'!B73 -> 24181 | G79: 0.004340797773 | I79: 143246.33
A80: 73 | C80: SHELBY COUNTY | E80: ='County Population'!B74 -> 44436 | G80: 0.007976828494 | I80: 263235.34
A81: 74 | C81: SPENCER COUNTY | E81: ='County Population'!B75 -> 20952 | G81: 0.003761151108 | I81: 124117.99
A82: 75 | C82: STARKE COUNTY | E82: ='County Population'!B76 -> 23363 | G82: 0.004193956344 | I82: =ROUND(G82*33000000,2) -> 138400.56
A83: 76 | C83: STEUBEN COUNTY | E83: ='County Population'!B77 -> 34185 | G83: 0.006136643309 | I83: 202509.23
A84: 77 | C84: SULLIVAN COUNTY | E84: ='County Population'!B78 -> 21475 | G84: 0.003855036275 | I84: 127216.2
A85: 78 | C85: SWITZERLAND COUNTY | E85: 0 | G85: 0 | I85: 0
A86: 79 | C86: TIPPECANOE COUNTY | E86: ='County Population'!B80 -> 172780 | G86: 0.03101621269 | I86: 1023535.02
A87: 80 | C87: TIPTON COUNTY | E87: ='County Population'!B81 -> 15936 | G87: 0.002860715161 | I87: 94403.6
A88: 81 | C88: UNION COUNTY | E88: ='County Population'!B82 -> 7516 | G88: 0.001349217818 | I88: 44524.19
A89: 82 | C89: VANDERBURGH COUNTY | E89: 0 | G89: 0 | I89: 0
A90: 83 | C90: VERMILLION COUNTY | E90: ='County Population'!B84 -> 16212 | G90: 0.002910260679 | I90: 96038.6
A91: 84 | C91: VIGO COUNTY | E91: ='County Population'!B85 -> 107848 | G91: 0.01936009091 | I91: 638883
A92: 85 | C92: WABASH COUNTY | E92: ='County Population'!B86 -> 32888 | G92: 0.005903815274 | I92: 194825.9
A93: 86 | C93: WARREN COUNTY | E93: ='County Population'!B87 -> 8508 | G93: 0.001527294465 | I93: 50400.72
A94: 87 | C94: WARRICK COUNTY | E94: ='County Population'!B88 -> 59689 | G94: 0.01071493645 | I94: 353592.9
A95: 88 | C95: WASHINGTON COUNTY | E95: ='County Population'!B89 -> 28262 | G95: 0.005073389299 | I95: 167421.85
A96: 89 | C96: WAYNE COUNTY | E96: ='County Population'!B90 -> 68917 | G96: 0.01237148009 | I96: 408258.84
A97: 90 | C97: WELLS COUNTY | E97: ='County Population'!B91 -> 27636 | G97: 0.004961014319 | I97: 163713.47
A98: 91 | C98: WHITE COUNTY | E98: ='County Population'!B92 -> 24643 | G98: 0.004423732662 | I98: 145983.18
A99: 92 | C99: WHITLEY COUNTY | E99: ='County Population'!B93 -> 33292 | G99: 0.005976338425 | I99: =ROUND(G99*33000000,2)-0.02 -> 197219.15
E101: =SUM(E8:E99) -> 5570635 | G101: =SUM(G8:G99) -> 1 | I101: =SUM(I8:I99) -> 33000000
A103: Note: Any rounding amounts were added or subtracted from the Whitley County distribution.

Sheet Main (hidden)
A1: Date: | B1: 2019-08-15 | C1: =IF(MONTH(B1)=1," In January, be sure to update distribution amounts",IF(MONTH(B1)=12," Use December distribution amounts","")) -> 
A2: WORKSHEET COMPLETED BY: | B2: Janie Cope
A3: DISTRIBUTION NAME (invoice): | B3: ="Riverboat Rev Sharing "&UPPER(TEXT($B$1,"yyyy-mm")) -> Riverboat Rev Sharing 2019-08 | C3: =LEN(B3)&" of 30 character max" -> 29 of 30 character max
A4: REMITTANCE MESSAGE (ACH): | B4: ="Riverboat Rev Sharing "&UPPER(TEXT($B$1,"yyyy-mm")) -> Riverboat Rev Sharing 2019-08 | C4: =LEN(B4)&" of 70 character max" -> 29 of 70 character max
A5: TOTAL BATCH COUNT | B5: =COUNTIF(Main!E10:E101,">0") -> 84 | C5: =IF(B5='Voucher Build'!B3,"","Error: Worksheet does not match Voucher Build") -> 
A6: TOTAL BATCH AMOUNT | B6: =SUM(Main!E10:E101) -> 33000000 | C6: =IF(B6='Voucher Build'!B2,"","Error: Worksheet does not match Voucher Build") -> 
A8: COUNTY NUMBER | B8: COUNTY NAME | C8: GROSS DISTRIBUTION | D8: INTERCEPT | E8: NET DISTRIBUTION | G8: Vendor | H8: Vendor: Location | I8: Vendor: Address | J8: Remit Address | K8: CF: Locality | L8: Business Unit | M8: Fund | N8: Account | O8: Program | P8: Department
A10: 01 | B10: ADAMS COUNTY | C10: =Calculation!I8 -> 203705.86 | D10: 0 | E10: =+C10-D10 -> 203705.86 | G10: 0000082927 | H10: REMIT001 | I10: 1 | J10: 1 | K10: C01 | L10: 00050 | M10: 37060 | N10: 562000 | O10: 10000 | P10: 007005
A11: 02 | B11: ALLEN COUNTY | C11: =Calculation!I9 -> 2104940.82 | D11: 0 | E11: 2104940.82 | G11: 0000075752 | H11: REMIT001 | I11: 1 | J11: 1 | K11: C02 | L11: 00050 | M11: 37060 | N11: 562000 | O11: 10000 | P11: 007005
A12: 03 | B12: BARTHOLOMEW COUNTY | C12: =Calculation!I10 -> 454921.57 | D12: 0 | E12: 454921.57 | G12: 0000082929 | H12: REMIT001 | I12: 1 | J12: 1 | K12: C03 | L12: 00050 | M12: 37060 | N12: 562000 | O12: 10000 | P12: 007005
A13: 04 | B13: BENTON COUNTY | C13: =Calculation!I11 -> 52450.39 | D13: 0 | E13: 52450.39 | G13: 0000057928 | H13: REMIT001 | I13: 1 | J13: 1 | K13: C04 | L13: 00050 | M13: 37060 | N13: 562000 | O13: 10000 | P13: 007005
A14: 05 | B14: BLACKFORD COUNTY | C14: =Calculation!I12 -> 75624.77 | D14: 0 | E14: 75624.77 | G14: 0000076034 | H14: REMIT001 | I14: 1 | J14: 1 | K14: C05 | L14: 00050 | M14: 37060 | N14: 562000 | O14: 10000 | P14: 007005
A15: 06 | B15: BOONE COUNTY | C15: =Calculation!I13 -> 335530.87 | D15: 0 | E15: 335530.87 | G15: 0000082930 | H15: REMIT001 | I15: 1 | J15: 1 | K15: C06 | L15: 00050 | M15: 37060 | N15: 562000 | O15: 10000 | P15: 007005
A16: 07 | B16: BROWN COUNTY | C16: =Calculation!I14 -> 90292.4 | D16: 0 | E16: 90292.4 | G16: 0000082931 | H16: REMIT001 | I16: 1 | J16: 1 | K16: C07 | L16: 00050 | M16: 37060 | N16: 562000 | O16: 10000 | P16: 007005
A17: 08 | B17: CARROLL COUNTY | C17: =Calculation!I15 -> 119396.62 | D17: 0 | E17: 119396.62 | G17: 0000082932 | H17: REMIT001 | I17: 1 | J17: 1 | K17: C08 | L17: 00050 | M17: 37060 | N17: 562000 | O17: 10000 | P17: 007005
A18: 09 | B18: CASS COUNTY | C18: =Calculation!I16 -> 230831.49 | D18: 0 | E18: 230831.49 | G18: 0000079011 | H18: REMIT001 | I18: 1 | J18: 1 | K18: C09 | L18: 00050 | M18: 37060 | N18: 562000 | O18: 10000 | P18: 007005
A19: 10 | B19: CLARK COUNTY | C19: =Calculation!I17 -> 653005.63 | D19: 0 | E19: 653005.63 | G19: 0000082937 | H19: REMIT001 | I19: 1 | J19: 1 | K19: C10 | L19: 00050 | M19: 37060 | N19: 562000 | O19: 10000 | P19: 007005
A20: 11 | B20: CLAY COUNTY | C20: =Calculation!I18 -> 159294.23 | D20: 0 | E20: 159294.23 | G20: 0000082939 | H20: REMIT001 | I20: 1 | J20: 1 | K20: C11 | L20: 00050 | M20: 37060 | N20: 562000 | O20: 10000 | P20: 007005
A21: 12 | B21: CLINTON COUNTY | C21: =Calculation!I19 -> 196816.34 | D21: 0 | E21: 196816.34 | G21: 0000082940 | H21: REMIT001 | I21: 1 | J21: 1 | K21: C12 | L21: 00050 | M21: 37060 | N21: 562000 | O21: 10000 | P21: 007005
A22: 13 | B22: CRAWFORD COUNTY | C22: =Calculation!I20 -> 63462.96 | D22: 0 | E22: 63462.96 | G22: 0000082942 | H22: REMIT001 | I22: 1 | J22: 1 | K22: C13 | L22: 00050 | M22: 37060 | N22: 562000 | O22: 10000 | P22: 007005
A23: 14 | B23: DAVIESS COUNTY | C23: =Calculation!I21 -> 187480.24 | D23: 0 | E23: 187480.24 | G23: 0000082943 | H23: REMIT001 | I23: 1 | J23: 1 | K23: C14 | L23: 00050 | M23: 37060 | N23: 562000 | O23: 10000 | P23: 007005
A24: 15 | B24: DEARBORN COUNTY | C24: =Calculation!I22 -> 0 | D24: 0 | E24: 0 | G24: 0000082945 | H24: REMIT001 | I24: 1 | J24: 1 | K24: C15 | L24: 00050 | M24: 37060 | N24: 562000 | O24: 10000 | P24: 007005
A25: 16 | B25: DECATUR COUNTY | C25: =Calculation!I23 -> 152481.72 | D25: 0 | E25: 152481.72 | G25: 0000082946 | H25: REMIT001 | I25: 1 | J25: 1 | K25: C16 | L25: 00050 | M25: 37060 | N25: 562000 | O25: 10000 | P25: 007005
A26: 17 | B26: DEKALB COUNTY | C26: =Calculation!I24 -> 250125.7 | D26: 0 | E26: 250125.7 | G26: 0000082948 | H26: REMIT001 | I26: 1 | J26: 1 | K26: C17 | L26: 00050 | M26: 37060 | N26: 562000 | O26: 10000 | P26: 007005
A27: 18 | B27: DELAWARE COUNTY | C27: =Calculation!I25 -> 697073.67 | D27: 0 | E27: 697073.67 | G27: 0000076139 | H27: REMIT001 | I27: 1 | J27: 1 | K27: C18 | L27: 00050 | M27: 37060 | N27: 562000 | O27: 10000 | P27: 007005
A28: 19 | B28: DUBOIS COUNTY | C28: =Calculation!I26 -> 248147.11 | D28: 0 | E28: 248147.11 | G28: 0000075245 | H28: REMIT001 | I28: 1 | J28: 1 | K28: C19 | L28: 00050 | M28: 37060 | N28: 562000 | O28: 10000 | P28: 007005
A29: 20 | B29: ELKHART COUNTY | C29: =Calculation!I27 -> 1170323.85 | D29: 0 | E29: 1170323.85 | G29: 0000075247 | H29: REMIT001 | I29: 1 | J29: 1 | K29: C20 | L29: 00050 | M29: 37060 | N29: 562000 | O29: 10000 | P29: 007005
A30: 21 | B30: FAYETTE COUNTY | C30: =Calculation!I28 -> 143815.02 | D30: 0 | E30: 143815.02 | G30: 0000078425 | H30: REMIT001 | I30: 1 | J30: 1 | K30: C21 | L30: 00050 | M30: 37060 | N30: 562000 | O30: 10000 | P30: 007005
A31: 22 | B31: FLOYD COUNTY | C31: =Calculation!I29 -> 441794.16 | D31: 0 | E31: 441794.16 | G31: 0000077217 | H31: REMIT001 | I31: 1 | J31: 1 | K31: C22 | L31: 00050 | M31: 37060 | N31: 562000 | O31: 10000 | P31: 007005
A32: 23 | B32: FOUNTAIN COUNTY | C32: =Calculation!I30 -> 102128.39 | D32: 0 | E32: 102128.39 | G32: 0000075172 | H32: REMIT001 | I32: 1 | J32: 1 | K32: C23 | L32: 00050 | M32: 37060 | N32: 562000 | O32: 10000 | P32: 007005
A33: 24 | B33: FRANKLIN COUNTY | C33: =Calculation!I31 -> 136765.56 | D33: 0 | E33: 136765.56 | G33: 0000082949 | H33: REMIT001 | I33: 1 | J33: 1 | K33: C24 | L33: 00050 | M33: 37060 | N33: 562000 | O33: 10000 | P33: 007005
A34: 25 | B34: FULTON COUNTY | C34: =Calculation!I32 -> 123430.81 | D34: 0 | E34: 123430.81 | G34: 0000077206 | H34: REMIT001 | I34: 1 | J34: 1 | K34: C25 | L34: 00050 | M34: 37060 | N34: 562000 | O34: 10000 | P34: 007005
A35: 26 | B35: GIBSON COUNTY | C35: =Calculation!I33 -> 198469.12 | D35: 0 | E35: 198469.12 | G35: 0000079008 | H35: REMIT001 | I35: 1 | J35: 1 | K35: C26 | L35: 00050 | M35: 37060 | N35: 562000 | O35: 10000 | P35: 007005
A36: 27 | B36: GRANT COUNTY | C36: =Calculation!I34 -> 415035.81 | D36: 0 | E36: 415035.81 | G36: 0000076781 | H36: REMIT001 | I36: 1 | J36: 1 | K36: C27 | L36: 00050 | M36: 37060 | N36: 562000 | O36: 10000 | P36: 007005
A37: 28 | B37: GREENE COUNTY | C37: =Calculation!I35 -> 196466.83 | D37: 0 | E37: 196466.83 | G37: 0000082965 | H37: REMIT001 | I37: 1 | J37: 1 | K37: C28 | L37: 00050 | M37: 37060 | N37: 562000 | O37: 10000 | P37: 007005
A38: 29 | B38: HAMILTON COUNTY | C38: =Calculation!I36 -> 1626524.98 | D38: 0 | E38: 1626524.98 | G38: 0000075809 | H38: REMIT001 | I38: 1 | J38: 1 | K38: C29 | L38: 00050 | M38: 37060 | N38: 562000 | O38: 10000 | P38: 007005
A39: 30 | B39: HANCOCK COUNTY | C39: =Calculation!I37 -> 414686.3 | D39: 0 | E39: 414686.3 | G39: 0000082966 | H39: REMIT001 | I39: 1 | J39: 1 | K39: C30 | L39: 00050 | M39: 37060 | N39: 562000 | O39: 10000 | P39: 007005
A40: 31 | B40: HARRISON COUNTY | C40: =Calculation!I38 -> 0 | D40: 0 | E40: 0 | G40: 0000082967 | H40: REMIT001 | I40: 1 | J40: 1 | K40: C31 | L40: 00050 | M40: 37060 | N40: 562000 | O40: 10000 | P40: 007005
A41: 32 | B41: HENDRICKS COUNTY | C41: =Calculation!I39 -> 861622.42 | D41: 0 | E41: 861622.42 | G41: 0000082968 | H41: REMIT001 | I41: 1 | J41: 1 | K41: C32 | L41: 00050 | M41: 37060 | N41: 562000 | O41: 10000 | P41: 007005
A42: 33 | B42: HENRY COUNTY | C42: =Calculation!I40 -> 293008.97 | D42: 0 | E42: 293008.97 | G42: 0000082969 | H42: REMIT001 | I42: 1 | J42: 1 | K42: C33 | L42: 00050 | M42: 37060 | N42: 562000 | O42: 10000 | P42: 007005
A43: 34 | B43: HOWARD COUNTY | C43: =Calculation!I41 -> 490216.29 | D43: 0 | E43: 490216.29 | G43: 0000075284 | H43: REMIT001 | I43: 1 | J43: 1 | K43: C34 | L43: 00050 | M43: 37060 | N43: 562000 | O43: 10000 | P43: 007005
A44: 35 | B44: HUNTINGTON COUNTY | C44: =Calculation!I42 -> 219919.63 | D44: 0 | E44: 219919.63 | G44: 0000075168 | H44: REMIT001 | I44: 1 | J44: 1 | K44: C35 | L44: 00050 | M44: 37060 | N44: 562000 | O44: 10000 | P44: 007005
A45: 36 | B45: JACKSON COUNTY | C45: =Calculation!I43 -> 251032.06 | D45: 0 | E45: 251032.06 | G45: 0000075169 | H45: REMIT001 | I45: 1 | J45: 1 | K45: C36 | L45: 00050 | M45: 37060 | N45: 562000 | O45: 10000 | P45: 007005
A46: 37 | B46: JASPER COUNTY | C46: =Calculation!I44 -> 198321.02 | D46: 0 | E46: 198321.02 | G46: 0000082970 | H46: REMIT001 | I46: 1 | J46: 1 | K46: C37 | L46: 00050 | M46: 37060 | N46: 562000 | O46: 10000 | P46: 007005
A47: 38 | B47: JAY COUNTY | C47: =Calculation!I45 -> 125901.09 | D47: 0 | E47: 125901.09 | G47: 0000082971 | H47: REMIT001 | I47: 1 | J47: 1 | K47: C38 | L47: 00050 | M47: 37060 | N47: 562000 | O47: 10000 | P47: 007005
A48: 39 | B48: JEFFERSON COUNTY | C48: =Calculation!I46 -> 192100.9 | D48: 0 | E48: 192100.9 | G48: 0000082972 | H48: REMIT001 | I48: 1 | J48: 1 | K48: C39 | L48: 00050 | M48: 37060 | N48: 562000 | O48: 10000 | P48: 007005
A49: 40 | B49: JENNINGS COUNTY | C49: =Calculation!I47 -> 168979.84 | D49: 0 | E49: 168979.84 | G49: 0000076144 | H49: REMIT001 | I49: 1 | J49: 1 | K49: C40 | L49: 00050 | M49: 37060 | N49: 562000 | O49: 10000 | P49: 007005
A50: 41 | B50: JOHNSON COUNTY | C50: =Calculation!I48 -> 827299.22 | D50: 0 | E50: 827299.22 | G50: 0000077904 | H50: REMIT001 | I50: 1 | J50: 1 | K50: C41 | L50: 00050 | M50: 37060 | N50: 562000 | O50: 10000 | P50: 007005
A51: 42 | B51: KNOX COUNTY | C51: =Calculation!I49 -> 227715.51 | D51: 0 | E51: 227715.51 | G51: 0000077216 | H51: REMIT001 | I51: 1 | J51: 1 | K51: C42 | L51: 00050 | M51: 37060 | N51: 562000 | O51: 10000 | P51: 007005
A52: 43 | B52: KOSCIUSKO COUNTY | C52: =Calculation!I50 -> 458262.66 | D52: 0 | E52: 458262.66 | G52: 0000075246 | H52: REMIT001 | I52: 1 | J52: 1 | K52: C43 | L52: 00050 | M52: 37060 | N52: 562000 | O52: 10000 | P52: 007005
A53: 44 | B53: LA GRANGE COUNTY | C53: =Calculation!I51 -> 219943.33 | D53: 0 | E53: 219943.33 | G53: 0000077908 | H53: REMIT001 | I53: 1 | J53: 1 | K53: C44 | L53: 00050 | M53: 37060 | N53: 562000 | O53: 10000 | P53: 007005
A54: 45 | B54: LAKE COUNTY | C54: =Calculation!I52 -> 0 | D54: 0 | E54: 0 | G54: 0000075244 | H54: REMIT001 | I54: 1 | J54: 1 | K54: C45 | L54: 00050 | M54: 37060 | N54: 562000 | O54: 10000 | P54: 007005
A55: 46 | B55: LA PORTE COUNTY | C55: =Calculation!I53 -> 0 | D55: 0 | E55: 0 | G55: 0000082973 | H55: REMIT001 | I55: 1 | J55: 1 | K55: C46 | L55: 00050 | M55: 37060 | N55: 562000 | O55: 10000 | P55: 007005
A56: 47 | B56: LAWRENCE COUNTY | C56: =Calculation!I54 -> 273294.16 | D56: 0 | E56: 273294.16 | G56: 0000077084 | H56: REMIT001 | I56: 1 | J56: 1 | K56: C47 | L56: 00050 | M56: 37060 | N56: 562000 | O56: 10000 | P56: 007005
A57: 48 | B57: MADISON COUNTY | C57: =Calculation!I55 -> 779801.23 | D57: 0 | E57: 779801.23 | G57: 0000075404 | H57: REMIT001 | I57: 1 | J57: 1 | K57: C48 | L57: 00050 | M57: 37060 | N57: 562000 | O57: 10000 | P57: 007005
A58: 49 | B58: MARION COUNTY | C58: =Calculation!I56 -> 5351628.49 | D58: 0 | E58: 5351628.49 | G58: 0000076138 | H58: REMIT001 | I58: 1 | J58: 1 | K58: C49 | L58: 00050 | M58: 37060 | N58: 562000 | O58: 10000 | P58: 007005
A59: 50 | B59: MARSHALL COUNTY | C59: =Calculation!I57 -> 278726.39 | D59: 0 | E59: 278726.39 | G59: 0000075755 | H59: REMIT001 | I59: 1 | J59: 1 | K59: C50 | L59: 00050 | M59: 37060 | N59: 562000 | O59: 10000 | P59: 007005
A60: 51 | B60: MARTIN COUNTY | C60: =Calculation!I58 -> 61217.8 | D60: 0 | E60: 61217.8 | G60: 0000082950 | H60: REMIT001 | I60: 1 | J60: 1 | K60: C51 | L60: 00050 | M60: 37060 | N60: 562000 | O60: 10000 | P60: 007005
A61: 52 | B61: MIAMI COUNTY | C61: =Calculation!I59 -> 218610.45 | D61: 0 | E61: 218610.45 | G61: 0000075197 | H61: REMIT001 | I61: 1 | J61: 1 | K61: C52 | L61: 00050 | M61: 37060 | N61: 562000 | O61: 10000 | P61: 007005
A62: 53 | B62: MONROE COUNTY | C62: =Calculation!I60 -> 817347.03 | D62: 0 | E62: 817347.03 | G62: 0000082923 | H62: REMIT001 | I62: 1 | J62: 1 | K62: C53 | L62: 00050 | M62: 37060 | N62: 562000 | O62: 10000 | P62: 007005
A63: 54 | B63: MONTGOMERY COUNTY | C63: =Calculation!I61 -> 225843.55 | D63: 0 | E63: 225843.55 | G63: 0000076687 | H63: REMIT001 | I63: 1 | J63: 1 | K63: C54 | L63: 00050 | M63: 37060 | N63: 562000 | O63: 10000 | P63: 007005
A64: 55 | B64: MORGAN COUNTY | C64: =Calculation!I62 -> 408122.59 | D64: 0 | E64: 408122.59 | G64: 0000077086 | H64: REMIT001 | I64: 1 | J64: 1 | K64: C55 | L64: 00050 | M64: 37060 | N64: 562000 | O64: 10000 | P64: 007005
A65: 56 | B65: NEWTON COUNTY | C65: =Calculation!I63 -> 84380.33 | D65: 0 | E65: 84380.33 | G65: 0000082924 | H65: REMIT001 | I65: 1 | J65: 1 | K65: C56 | L65: 00050 | M65: 37060 | N65: 562000 | O65: 10000 | P65: 007005
A66: 57 | B66: NOBLE COUNTY | C66: =Calculation!I64 -> 281599.49 | D66: 0 | E66: 281599.49 | G66: 0000082974 | H66: REMIT001 | I66: 1 | J66: 1 | K66: C57 | L66: 00050 | M66: 37060 | N66: 562000 | O66: 10000 | P66: 007005
A67: 58 | B67: OHIO COUNTY | C67: =Calculation!I65 -> 0 | D67: 0 | E67: 0 | G67: 0000075167 | H67: REMIT001 | I67: 1 | J67: 1 | K67: C58 | L67: 00050 | M67: 37060 | N67: 562000 | O67: 10000 | P67: 007005
A68: 59 | B68: ORANGE COUNTY | C68: =Calculation!I66 -> 0 | D68: 0 | E68: 0 | G68: 0000082975 | H68: REMIT001 | I68: 1 | J68: 1 | K68: C59 | L68: 00050 | M68: 37060 | N68: 562000 | O68: 10000 | P68: 007005
A69: 60 | B69: OWEN COUNTY | C69: =Calculation!I67 -> 127808.59 | D69: 0 | E69: 127808.59 | G69: 0000082976 | H69: REMIT001 | I69: 1 | J69: 1 | K69: C60 | L69: 00050 | M69: 37060 | N69: 562000 | O69: 10000 | P69: 007005
A70: 61 | B70: PARKE COUNTY | C70: =Calculation!I68 -> 102714.86 | D70: 0 | E70: 102714.86 | G70: 0000075192 | H70: REMIT001 | I70: 1 | J70: 1 | K70: C61 | L70: 00050 | M70: 37060 | N70: 562000 | O70: 10000 | P70: 007005
A71: 62 | B71: PERRY COUNTY | C71: =Calculation!I69 -> 114556.78 | D71: 0 | E71: 114556.78 | G71: 0000081432 | H71: REMIT001 | I71: 1 | J71: 1 | K71: C62 | L71: 00050 | M71: 37060 | N71: 562000 | O71: 10000 | P71: 007005
A72: 63 | B72: PIKE COUNTY | C72: =Calculation!I70 -> 76092.76 | D72: 0 | E72: 76092.76 | G72: 0000082977 | H72: REMIT001 | I72: 1 | J72: 1 | K72: C63 | L72: 00050 | M72: 37060 | N72: 562000 | O72: 10000 | P72: 007005
A73: 64 | B73: PORTER COUNTY | C73: =Calculation!I71 -> 973554.9 | D73: 0 | E73: 973554.9 | G73: 0000082978 | H73: REMIT001 | I73: 1 | J73: 1 | K73: C64 | L73: 00050 | M73: 37060 | N73: 562000 | O73: 10000 | P73: 007005
A74: 65 | B74: POSEY COUNTY | C74: =Calculation!I72 -> 153488.79 | D74: 0 | E74: =+C74-D74 -> 153488.79 | G74: 0000075465 | H74: REMIT001 | I74: 1 | J74: 1 | K74: C65 | L74: 00050 | M74: 37060 | N74: 562000 | O74: 10000 | P74: 007005
A75: 66 | B75: PULASKI COUNTY | C75: =Calculation!I73 -> 79392.39 | D75: 0 | E75: 79392.39 | G75: 0000075464 | H75: REMIT001 | I75: 1 | J75: 1 | K75: C66 | L75: 00050 | M75: 37060 | N75: 562000 | O75: 10000 | P75: 007005
A76: 67 | B76: PUTNAM COUNTY | C76: =Calculation!I74 -> 224889.8 | D76: 0 | E76: 224889.8 | G76: 0000077906 | H76: REMIT001 | I76: 1 | J76: 1 | K76: C67 | L76: 00050 | M76: 37060 | N76: 562000 | O76: 10000 | P76: 007005
A77: 68 | B77: RANDOLPH COUNTY | C77: =Calculation!I75 -> 155034.93 | D77: 0 | E77: 155034.93 | G77: 0000075352 | H77: REMIT001 | I77: 1 | J77: 1 | K77: C68 | L77: 00050 | M77: 37060 | N77: 562000 | O77: 10000 | P77: 007005
A78: 69 | B78: RIPLEY COUNTY | C78: =Calculation!I76 -> 170715.55 | D78: 0 | E78: 170715.55 | G78: 0000082979 | H78: REMIT001 | I78: 1 | J78: 1 | K78: C69 | L78: 00050 | M78: 37060 | N78: 562000 | O78: 10000 | P78: 007005
A79: 70 | B79: RUSH COUNTY | C79: =Calculation!I77 -> 103028.83 | D79: 0 | E79: 103028.83 | G79: 0000077690 | H79: REMIT001 | I79: 1 | J79: 1 | K79: C70 | L79: 00050 | M79: 37060 | N79: 562000 | O79: 10000 | P79: 007005
A80: 71 | B80: ST. JOSEPH COUNTY | C80: =Calculation!I78 -> 1581278.08 | D80: 0 | E80: 1581278.08 | G80: 0000082980 | H80: REMIT001 | I80: 1 | J80: 1 | K80: C71 | L80: 00050 | M80: 37060 | N80: 562000 | O80: 10000 | P80: 007005
A81: 72 | B81: SCOTT COUNTY | C81: =Calculation!I79 -> 143246.33 | D81: 0 | E81: 143246.33 | G81: 0000075171 | H81: REMIT001 | I81: 1 | J81: 1 | K81: C72 | L81: 00050 | M81: 37060 | N81: 562000 | O81: 10000 | P81: 007005
A82: 73 | B82: SHELBY COUNTY | C82: =Calculation!I80 -> 263235.34 | D82: 0 | E82: 263235.34 | G82: 0000076143 | H82: REMIT001 | I82: 1 | J82: 1 | K82: C73 | L82: 00050 | M82: 37060 | N82: 562000 | O82: 10000 | P82: 007005
A83: 74 | B83: SPENCER COUNTY | C83: =Calculation!I81 -> 124117.99 | D83: 0 | E83: 124117.99 | G83: 0000082981 | H83: REMIT001 | I83: 1 | J83: 1 | K83: C74 | L83: 00050 | M83: 37060 | N83: 562000 | O83: 10000 | P83: 007005
A84: 75 | B84: STARKE COUNTY | C84: =Calculation!I82 -> 138400.56 | D84: 0 | E84: 138400.56 | G84: 0000075170 | H84: REMIT001 | I84: 1 | J84: 1 | K84: C75 | L84: 00050 | M84: 37060 | N84: 562000 | O84: 10000 | P84: 007005
A85: 76 | B85: STEUBEN COUNTY | C85: =Calculation!I83 -> 202509.23 | D85: 0 | E85: 202509.23 | G85: 0000082982 | H85: REMIT001 | I85: 1 | J85: 1 | K85: C76 | L85: 00050 | M85: 37060 | N85: 562000 | O85: 10000 | P85: 007005
A86: 77 | B86: SULLIVAN COUNTY | C86: =Calculation!I84 -> 127216.2 | D86: 0 | E86: 127216.2 | G86: 0000079009 | H86: REMIT001 | I86: 1 | J86: 1 | K86: C77 | L86: 00050 | M86: 37060 | N86: 562000 | O86: 10000 | P86: 007005
A87: 78 | B87: SWITZERLAND COUNTY | C87: =Calculation!I85 -> 0 | D87: 0 | E87: 0 | G87: 0000075193 | H87: REMIT001 | I87: 1 | J87: 1 | K87: C78 | L87: 00050 | M87: 37060 | N87: 562000 | O87: 10000 | P87: 007005
A88: 79 | B88: TIPPECANOE COUNTY | C88: =Calculation!I86 -> 1023535.02 | D88: 0 | E88: 1023535.02 | G88: 0000079010 | H88: REMIT001 | I88: 1 | J88: 1 | K88: C79 | L88: 00050 | M88: 37060 | N88: 562000 | O88: 10000 | P88: 007005
A89: 80 | B89: TIPTON COUNTY | C89: =Calculation!I87 -> 94403.6 | D89: 0 | E89: 94403.6 | G89: 0000082983 | H89: REMIT001 | I89: 1 | J89: 1 | K89: C80 | L89: 00050 | M89: 37060 | N89: 562000 | O89: 10000 | P89: 007005
A90: 81 | B90: UNION COUNTY | C90: =Calculation!I88 -> 44524.19 | D90: 0 | E90: 44524.19 | G90: 0000082984 | H90: REMIT001 | I90: 1 | J90: 1 | K90: C81 | L90: 00050 | M90: 37060 | N90: 562000 | O90: 10000 | P90: 007005
A91: 82 | B91: VANDERBURGH COUNTY | C91: =Calculation!I89 -> 0 | D91: 0 | E91: 0 | G91: 0000076188 | H91: REMIT001 | I91: 1 | J91: 1 | K91: C82 | L91: 00050 | M91: 37060 | N91: 562000 | O91: 10000 | P91: 007005
A92: 83 | B92: VERMILLION COUNTY | C92: =Calculation!I90 -> 96038.6 | D92: 0 | E92: 96038.6 | G92: 0000075194 | H92: REMIT001 | I92: 1 | J92: 1 | K92: C83 | L92: 00050 | M92: 37060 | N92: 562000 | O92: 10000 | P92: 007005
A93: 84 | B93: VIGO COUNTY | C93: =Calculation!I91 -> 638883 | D93: 0 | E93: 638883 | G93: 0000082985 | H93: REMIT001 | I93: 1 | J93: 1 | K93: C84 | L93: 00050 | M93: 37060 | N93: 562000 | O93: 10000 | P93: 007005
A94: 85 | B94: WABASH COUNTY | C94: =Calculation!I92 -> 194825.9 | D94: 0 | E94: 194825.9 | G94: 0000082986 | H94: REMIT001 | I94: 1 | J94: 1 | K94: C85 | L94: 00050 | M94: 37060 | N94: 562000 | O94: 10000 | P94: 007005
A95: 86 | B95: WARREN COUNTY | C95: =Calculation!I93 -> 50400.72 | D95: 0 | E95: 50400.72 | G95: 0000075196 | H95: REMIT001 | I95: 1 | J95: 1 | K95: C86 | L95: 00050 | M95: 37060 | N95: 562000 | O95: 10000 | P95: 007005
A96: 87 | B96: WARRICK COUNTY | C96: =Calculation!I94 -> 353592.9 | D96: 0 | E96: 353592.9 | G96: 0000077907 | H96: REMIT001 | I96: 1 | J96: 1 | K96: C87 | L96: 00050 | M96: 37060 | N96: 562000 | O96: 10000 | P96: 007005
A97: 88 | B97: WASHINGTON COUNTY | C97: =Calculation!I95 -> 167421.85 | D97: 0 | E97: 167421.85 | G97: 0000082987 | H97: REMIT001 | I97: 1 | J97: 1 | K97: C88 | L97: 00050 | M97: 37060 | N97: 562000 | O97: 10000 | P97: 007005
A98: 89 | B98: WAYNE COUNTY | C98: =Calculation!I96 -> 408258.84 | D98: 0 | E98: 408258.84 | G98: 0000082952 | H98: REMIT001 | I98: 1 | J98: 1 | K98: C89 | L98: 00050 | M98: 37060 | N98: 562000 | O98: 10000 | P98: 007005
A99: 90 | B99: WELLS COUNTY | C99: =Calculation!I97 -> 163713.47 | D99: 0 | E99: 163713.47 | G99: 0000082953 | H99: REMIT001 | I99: 1 | J99: 1 | K99: C90 | L99: 00050 | M99: 37060 | N99: 562000 | O99: 10000 | P99: 007005
A100: 91 | B100: WHITE COUNTY | C100: =Calculation!I98 -> 145983.18 | D100: 0 | E100: 145983.18 | G100: 0000082954 | H100: REMIT001 | I100: 1 | J100: 1 | K100: C91 | L100: 00050 | M100: 37060 | N100: 562000 | O100: 10000 | P100: 007005
A101: 92 | B101: WHITLEY COUNTY | C101: =Calculation!I99 -> 197219.15 | D101: 0 | E101: 197219.15 | G101: 0000076691 | H101: REMIT001 | I101: 1 | J101: 1 | K101: C92 | L101: 00050 | M101: 37060 | N101: 562000 | O101: 10000 | P101: 007005
C103: =SUM(C10:C101) -> 33000000 | D103: =SUM(D10:D101) -> 0 | E103: =SUM(E10:E101) -> 33000000

Sheet Voucher Build (hidden)
A1: V2015.07.30 | E1: SAVE FILE TO LOCATION | G1: \\10.1.43.237\shared\peoplesoft\DEPARTMENTS\SETTLEMENTS\Distributions
A2: TOTAL BATCH AMOUNT | B2: =SUM(D10:D65000) -> 33000000 | E2: SAVE FILE TO NAME | G2: RIVERBOAT_REVENUE_SHARING.TXT
A3: TOTAL BATCH COUNT | B3: =COUNTIF(D10:D65000,"> 0") -> 84
A4: EMAIL ID | B4: localgovernment@auditor.in.gov
A5: BUSINESS UNIT AP | B5: 00050
A6: BUILD CONTROL GROUP? | B6: Y
A8: 1 | B8: 2 | C8: 3 | D8: 4 | E8: 5 | F8: 6 | G8: 7 | H8: 8 | I8: 9 | J8: 10 | K8: 11 | L8: 12 | M8: 13 | N8: 14 | O8: 15 | P8: 16 | Q8: 17 | R8: 18 | S8: 19 | T8: 20 | U8: 21 | V8: 22 | W8: 23 | X8: 24 | Y8: 25 | Z8: 26 | AA8: 27 | AB8: 28 | AC8: 29 | AD8: 30 | AE8: 31 | AF8: 32 | AG8: 33 | AH8: 34 | AI8: 35 | AJ8: 36
A9: INVOICE NUMBER* | B9: INVOICE DATE (YYYY-MM-DD)* | C9: ORIGIN* | D9: TOTAL INVOICE AMOUNT (Calculated) | E9: Voucher Source | F9: VENDOR ID* | G9: VENDOR LOCATION | H9: INVOICE FROM ADDRESS SEQ NBR | I9: REMITTING TO ADDRESS SEQ NBR | J9: ACCOUNTING DATE | K9: SCHEDULED TO PAY (YYYY-MM-DD) | L9: PACKING SLIP NUMBER | M9: PAYMENT MESSAGE | N9: PAYMENT HANDLING CODE | O9: LINE DESCRIPTION* | P9: RECEIPT DATE (YYYY-MM-DD)* | Q9: MERCHANDISE AMOUNT (Calculated) | R9: Merchandise Amount* | S9: DISTRIBUTION DESCRIPTION* | T9: BUSINESS UNIT GL* | U9: ACCOUNT* | V9: FUND* | W9: PROGRAM* | X9: LOCALITY | Y9: BUDGET REFERENCE* | Z9: BUDGET DATE (YYYY-MM-DD)* | AA9: DEPARTMENT* | AB9: PRODUCT | AC9: PROJECT | AD9: PC BUSINESS UNIT | AE9: ACTIVITY | AF9: Source Type | AG9: Category | AH9: Subcategory | AI9: ANALYSIS TYPE | AJ9: INCIDENT
A10: =Support!I16 -> 050SD081519RRS0001 | B10: =Support!$B$1 -> 2019-08-15 | C10: EXT | D10: 203705.86 | E10: ONL | F10: =Main!G10 -> 0000082927 | G10: =Main!H10 -> REMIT001 | H10: =Main!I10 -> 1 | I10: =Main!J10 -> 1 | K10: =Support!$B$3 -> 2019-08-15 | M10: =Main!$B$4 -> Riverboat Rev Sharing 2019-08 | N10: AS | O10: =Main!$B$3 -> Riverboat Rev Sharing 2019-08 | P10: =Support!$B$2 -> 2019-08-15 | Q10: 203705.86 | R10: =Main!E10 -> 203705.86 | S10: =Main!$B$3 -> Riverboat Rev Sharing 2019-08 | T10: =Main!L10 -> 00050 | U10: =Main!N10 -> 562000 | V10: =Main!M10 -> 37060 | W10: =Main!O10 -> 10000 | X10: =Main!K10 -> C01 | Y10: =Support!$B$10 -> 2020 | Z10: =Support!$B$4 -> 2019-08-15 | AA10: =Main!P10 -> 007005
A11: =Support!I17 -> 050SD081519RRS0002 | B11: =Support!$B$1 -> 2019-08-15 | C11: EXT | D11: 2104940.82 | E11: ONL | F11: =Main!G11 -> 0000075752 | G11: =Main!H11 -> REMIT001 | H11: =Main!I11 -> 1 | I11: =Main!J11 -> 1 | K11: =Support!$B$3 -> 2019-08-15 | M11: =Main!$B$4 -> Riverboat Rev Sharing 2019-08 | N11: AS | O11: =Main!$B$3 -> Riverboat Rev Sharing 2019-08 | P11: =Support!$B$2 -> 2019-08-15 | Q11: 2104940.82 | R11: =Main!E11 -> 2104940.82 | S11: =Main!$B$3 -> Riverboat Rev Sharing 2019-08 | T11: =Main!L11 -> 00050 | U11: =Main!N11 -> 562000 | V11: =Main!M11 -> 37060 | W11: =Main!O11 -> 10000 | X11: =Main!K11 -> C02 | Y11: =Support!$B$10 -> 2020 | Z11: =Support!$B$4 -> 2019-08-15 | AA11: =Main!P11 -> 007005
A12: =Support!I18 -> 050SD081519RRS0003 | B12: =Support!$B$1 -> 2019-08-15 | C12: EXT | D12: 454921.57 | E12: ONL | F12: =Main!G12 -> 0000082929 | G12: =Main!H12 -> REMIT001 | H12: =Main!I12 -> 1 | I12: =Main!J12 -> 1 | K12: =Support!$B$3 -> 2019-08-15 | M12: =Main!$B$4 -> Riverboat Rev Sharing 2019-08 | N12: AS | O12: =Main!$B$3 -> Riverboat Rev Sharing 2019-08 | P12: =Support!$B$2 -> 2019-08-15 | Q12: 454921.57 | R12: =Main!E12 -> 454921.57 | S12: =Main!$B$3 -> Riverboat Rev Sharing 2019-08 | T12: =Main!L12 -> 00050 | U12: =Main!N12 -> 562000 | V12: =Main!M12 -> 37060 | W12: =Main!O12 -> 10000 | X12: =Main!K12 -> C03 | Y12: =Support!$B$10 -> 2020 | Z12: =Support!$B$4 -> 2019-08-15 | AA12: =Main!P12 -> 007005
A13: =Support!I19 -> 050SD081519RRS0004 | B13: =Support!$B$1 -> 2019-08-15 | C13: EXT | D13: 52450.39 | E13: ONL | F13: =Main!G13 -> 0000057928 | G13: =Main!H13 -> REMIT001 | H13: =Main!I13 -> 1 | I13: =Main!J13 -> 1 | K13: =Support!$B$3 -> 2019-08-15 | M13: =Main!$B$4 -> Riverboat Rev Sharing 2019-08 | N13: AS | O13: =Main!$B$3 -> Riverboat Rev Sharing 2019-08 | P13: =Support!$B$2 -> 2019-08-15 | Q13: 52450.39 | R13: =Main!E13 -> 52450.39 | S13: =Main!$B$3 -> Riverboat Rev Sharing 2019-08 | T13: =Main!L13 -> 00050 | U13: =Main!N13 -> 562000 | V13: =Main!M13 -> 37060 | W13: =Main!O13 -> 10000 | X13: =Main!K13 -> C04 | Y13: =Support!$B$10 -> 2020 | Z13: =Support!$B$4 -> 2019-08-15 | AA13: =Main!P13 -> 007005
A14: =Support!I20 -> 050SD081519RRS0005 | B14: =Support!$B$1 -> 2019-08-15 | C14: EXT | D14: 75624.77 | E14: ONL | F14: =Main!G14 -> 0000076034 | G14: =Main!H14 -> REMIT001 | H14: =Main!I14 -> 1 | I14: =Main!J14 -> 1 | K14: =Support!$B$3 -> 2019-08-15 | M14: =Main!$B$4 -> Riverboat Rev Sharing 2019-08 | N14: AS | O14: =Main!$B$3 -> Riverboat Rev Sharing 2019-08 | P14: =Support!$B$2 -> 2019-08-15 | Q14: 75624.77 | R14: =Main!E14 -> 75624.77 | S14: =Main!$B$3 -> Riverboat Rev Sharing 2019-08 | T14: =Main!L14 -> 00050 | U14: =Main!N14 -> 562000 | V14: =Main!M14 -> 37060 | W14: =Main!O14 -> 10000 | X14: =Main!K14 -> C05 | Y14: =Support!$B$10 -> 2020 | Z14: =Support!$B$4 -> 2019-08-15 | AA14: =Main!P14 -> 007005
A15: =Support!I21 -> 050SD081519RRS0006 | B15: =Support!$B$1 -> 2019-08-15 | C15: EXT | D15: 335530.87 | E15: ONL | F15: =Main!G15 -> 0000082930 | G15: =Main!H15 -> REMIT001 | H15: =Main!I15 -> 1 | I15: =Main!J15 -> 1 | K15: =Support!$B$3 -> 2019-08-15 | M15: =Main!$B$4 -> Riverboat Rev Sharing 2019-08 | N15: AS | O15: =Main!$B$3 -> Riverboat Rev Sharing 2019-08 | P15: =Support!$B$2 -> 2019-08-15 | Q15: 335530.87 | R15: =Main!E15 -> 335530.87 | S15: =Main!$B$3 -> Riverboat Rev Sharing 2019-08 | T15: =Main!L15 -> 00050 | U15: =Main!N15 -> 562000 | V15: =Main!M15 -> 37060 | W15: =Main!O15 -> 10000 | X15: =Main!K15 -> C06 | Y15: =Support!$B$10 -> 2020 | Z15: =Support!$B$4 -> 2019-08-15 | AA15: =Main!P15 -> 007005
A16: =Support!I22 -> 050SD081519RRS0007 | B16: =Support!$B$1 -> 2019-08-15 | C16: EXT | D16: 90292.4 | E16: ONL | F16: =Main!G16 -> 0000082931 | G16: =Main!H16 -> REMIT001 | H16: =Main!I16 -> 1 | I16: =Main!J16 -> 1 | K16: =Support!$B$3 -> 2019-08-15 | M16: =Main!$B$4 -> Riverboat Rev Sharing 2019-08 | N16: AS | O16: =Main!$B$3 -> Riverboat Rev Sharing 2019-08 | P16: =Support!$B$2 -> 2019-08-15 | Q16: 90292.4 | R16: =Main!E16 -> 90292.4 | S16: =Main!$B$3 -> Riverboat Rev Sharing 2019-08 | T16: =Main!L16 -> 00050 | U16: =Main!N16 -> 562000 | V16: =Main!M16 -> 37060 | W16: =Main!O16 -> 10000 | X16: =Main!K16 -> C07 | Y16: =Support!$B$10 -> 2020 | Z16: =Support!$B$4 -> 2019-08-15 | AA16: =Main!P16 -> 007005
A17: =Support!I23 -> 050SD081519RRS0008 | B17: =Support!$B$1 -> 2019-08-15 | C17: EXT | D17: 119396.62 | E17: ONL | F17: =Main!G17 -> 0000082932 | G17: =Main!H17 -> REMIT001 | H17: =Main!I17 -> 1 | I17: =Main!J17 -> 1 | K17: =Support!$B$3 -> 2019-08-15 | M17: =Main!$B$4 -> Riverboat Rev Sharing 2019-08 | N17: AS | O17: =Main!$B$3 -> Riverboat Rev Sharing 2019-08 | P17: =Support!$B$2 -> 2019-08-15 | Q17: 119396.62 | R17: =Main!E17 -> 119396.62 | S17: =Main!$B$3 -> Riverboat Rev Sharing 2019-08 | T17: =Main!L17 -> 00050 | U17: =Main!N17 -> 562000 | V17: =Main!M17 -> 37060 | W17: =Main!O17 -> 10000 | X17: =Main!K17 -> C08 | Y17: =Support!$B$10 -> 2020 | Z17: =Support!$B$4 -> 2019-08-15 | AA17: =Main!P17 -> 007005
A18: =Support!I24 -> 050SD081519RRS0009 | B18: =Support!$B$1 -> 2019-08-15 | C18: EXT | D18: 230831.49 | E18: ONL | F18: =Main!G18 -> 0000079011 | G18: =Main!H18 -> REMIT001 | H18: =Main!I18 -> 1 | I18: =Main!J18 -> 1 | K18: =Support!$B$3 -> 2019-08-15 | M18: =Main!$B$4 -> Riverboat Rev Sharing 2019-08 | N18: AS | O18: =Main!$B$3 -> Riverboat Rev Sharing 2019-08 | P18: =Support!$B$2 -> 2019-08-15 | Q18: 230831.49 | R18: =Main!E18 -> 230831.49 | S18: =Main!$B$3 -> Riverboat Rev Sharing 2019-08 | T18: =Main!L18 -> 00050 | U18: =Main!N18 -> 562000 | V18: =Main!M18 -> 37060 | W18: =Main!O18 -> 10000 | X18: =Main!K18 -> C09 | Y18: =Support!$B$10 -> 2020 | Z18: =Support!$B$4 -> 2019-08-15 | AA18: =Main!P18 -> 007005
A19: =Support!I25 -> 050SD081519RRS0010 | B19: =Support!$B$1 -> 2019-08-15 | C19: EXT | D19: 653005.63 | E19: ONL | F19: =Main!G19 -> 0000082937 | G19: =Main!H19 -> REMIT001 | H19: =Main!I19 -> 1 | I19: =Main!J19 -> 1 | K19: =Support!$B$3 -> 2019-08-15 | M19: =Main!$B$4 -> Riverboat Rev Sharing 2019-08 | N19: AS | O19: =Main!$B$3 -> Riverboat Rev Sharing 2019-08 | P19: =Support!$B$2 -> 2019-08-15 | Q19: 653005.63 | R19: =Main!E19 -> 653005.63 | S19: =Main!$B$3 -> Riverboat Rev Sharing 2019-08 | T19: =Main!L19 -> 00050 | U19: =Main!N19 -> 562000 | V19: =Main!M19 -> 37060 | W19: =Main!O19 -> 10000 | X19: =Main!K19 -> C10 | Y19: =Support!$B$10 -> 2020 | Z19: =Support!$B$4 -> 2019-08-15 | AA19: =Main!P19 -> 007005
A20: =Support!I26 -> 050SD081519RRS0011 | B20: =Support!$B$1 -> 2019-08-15 | C20: EXT | D20: 159294.23 | E20: ONL | F20: =Main!G20 -> 0000082939 | G20: =Main!H20 -> REMIT001 | H20: =Main!I20 -> 1 | I20: =Main!J20 -> 1 | K20: =Support!$B$3 -> 2019-08-15 | M20: =Main!$B$4 -> Riverboat Rev Sharing 2019-08 | N20: AS | O20: =Main!$B$3 -> Riverboat Rev Sharing 2019-08 | P20: =Support!$B$2 -> 2019-08-15 | Q20: 159294.23 | R20: =Main!E20 -> 159294.23 | S20: =Main!$B$3 -> Riverboat Rev Sharing 2019-08 | T20: =Main!L20 -> 00050 | U20: =Main!N20 -> 562000 | V20: =Main!M20 -> 37060 | W20: =Main!O20 -> 10000 | X20: =Main!K20 -> C11 | Y20: =Support!$B$10 -> 2020 | Z20: =Support!$B$4 -> 2019-08-15 | AA20: =Main!P20 -> 007005
A21: =Support!I27 -> 050SD081519RRS0012 | B21: =Support!$B$1 -> 2019-08-15 | C21: EXT | D21: 196816.34 | E21: ONL | F21: =Main!G21 -> 0000082940 | G21: =Main!H21 -> REMIT001 | H21: =Main!I21 -> 1 | I21: =Main!J21 -> 1 | K21: =Support!$B$3 -> 2019-08-15 | M21: =Main!$B$4 -> Riverboat Rev Sharing 2019-08 | N21: AS | O21: =Main!$B$3 -> Riverboat Rev Sharing 2019-08 | P21: =Support!$B$2 -> 2019-08-15 | Q21: 196816.34 | R21: =Main!E21 -> 196816.34 | S21: =Main!$B$3 -> Riverboat Rev Sharing 2019-08 | T21: =Main!L21 -> 00050 | U21: =Main!N21 -> 562000 | V21: =Main!M21 -> 37060 | W21: =Main!O21 -> 10000 | X21: =Main!K21 -> C12 | Y21: =Support!$B$10 -> 2020 | Z21: =Support!$B$4 -> 2019-08-15 | AA21: =Main!P21 -> 007005
A22: =Support!I28 -> 050SD081519RRS0013 | B22: =Support!$B$1 -> 2019-08-15 | C22: EXT | D22: 63462.96 | E22: ONL | F22: =Main!G22 -> 0000082942 | G22: =Main!H22 -> REMIT001 | H22: =Main!I22 -> 1 | I22: =Main!J22 -> 1 | K22: =Support!$B$3 -> 2019-08-15 | M22: =Main!$B$4 -> Riverboat Rev Sharing 2019-08 | N22: AS | O22: =Main!$B$3 -> Riverboat Rev Sharing 2019-08 | P22: =Support!$B$2 -> 2019-08-15 | Q22: 63462.96 | R22: =Main!E22 -> 63462.96 | S22: =Main!$B$3 -> Riverboat Rev Sharing 2019-08 | T22: =Main!L22 -> 00050 | U22: =Main!N22 -> 562000 | V22: =Main!M22 -> 37060 | W22: =Main!O22 -> 10000 | X22: =Main!K22 -> C13 | Y22: =Support!$B$10 -> 2020 | Z22: =Support!$B$4 -> 2019-08-15 | AA22: =Main!P22 -> 007005
A23: =Support!I29 -> 050SD081519RRS0014 | B23: =Support!$B$1 -> 2019-08-15 | C23: EXT | D23: 187480.24 | E23: ONL | F23: =Main!G23 -> 0000082943 | G23: =Main!H23 -> REMIT001 | H23: =Main!I23 -> 1 | I23: =Main!J23 -> 1 | K23: =Support!$B$3 -> 2019-08-15 | M23: =Main!$B$4 -> Riverboat Rev Sharing 2019-08 | N23: AS | O23: =Main!$B$3 -> Riverboat Rev Sharing 2019-08 | P23: =Support!$B$2 -> 2019-08-15 | Q23: 187480.24 | R23: =Main!E23 -> 187480.24 | S23: =Main!$B$3 -> Riverboat Rev Sharing 2019-08 | T23: =Main!L23 -> 00050 | U23: =Main!N23 -> 562000 | V23: =Main!M23 -> 37060 | W23: =Main!O23 -> 10000 | X23: =Main!K23 -> C14 | Y23: =Support!$B$10 -> 2020 | Z23: =Support!$B$4 -> 2019-08-15 | AA23: =Main!P23 -> 007005
A24: =Support!I30 -> 050SD081519RRS0015 | B24: =Support!$B$1 -> 2019-08-15 | C24: EXT | D24: 0 | E24: ONL | F24: =Main!G24 -> 0000082945 | G24: =Main!H24 -> REMIT001 | H24: =Main!I24 -> 1 | I24: =Main!J24 -> 1 | K24: =Support!$B$3 -> 2019-08-15 | M24: =Main!$B$4 -> Riverboat Rev Sharing 2019-08 | N24: AS | O24: =Main!$B$3 -> Riverboat Rev Sharing 2019-08 | P24: =Support!$B$2 -> 2019-08-15 | Q24: 0 | R24: =Main!E24 -> 0 | S24: =Main!$B$3 -> Riverboat Rev Sharing 2019-08 | T24: =Main!L24 -> 00050 | U24: =Main!N24 -> 562000 | V24: =Main!M24 -> 37060 | W24: =Main!O24 -> 10000 | X24: =Main!K24 -> C15 | Y24: =Support!$B$10 -> 2020 | Z24: =Support!$B$4 -> 2019-08-15 | AA24: =Main!P24 -> 007005
A25: =Support!I31 -> 050SD081519RRS0016 | B25: =Support!$B$1 -> 2019-08-15 | C25: EXT | D25: 152481.72 | E25: ONL | F25: =Main!G25 -> 0000082946 | G25: =Main!H25 -> REMIT001 | H25: =Main!I25 -> 1 | I25: =Main!J25 -> 1 | K25: =Support!$B$3 -> 2019-08-15 | M25: =Main!$B$4 -> Riverboat Rev Sharing 2019-08 | N25: AS | O25: =Main!$B$3 -> Riverboat Rev Sharing 2019-08 | P25: =Support!$B$2 -> 2019-08-15 | Q25: 152481.72 | R25: =Main!E25 -> 152481.72 | S25: =Main!$B$3 -> Riverboat Rev Sharing 2019-08 | T25: =Main!L25 -> 00050 | U25: =Main!N25 -> 562000 | V25: =Main!M25 -> 37060 | W25: =Main!O25 -> 10000 | X25: =Main!K25 -> C16 | Y25: =Support!$B$10 -> 2020 | Z25: =Support!$B$4 -> 2019-08-15 | AA25: =Main!P25 -> 007005
A26: =Support!I32 -> 050SD081519RRS0017 | B26: =Support!$B$1 -> 2019-08-15 | C26: EXT | D26: 250125.7 | E26: ONL | F26: =Main!G26 -> 0000082948 | G26: =Main!H26 -> REMIT001 | H26: =Main!I26 -> 1 | I26: =Main!J26 -> 1 | K26: =Support!$B$3 -> 2019-08-15 | M26: =Main!$B$4 -> Riverboat Rev Sharing 2019-08 | N26: AS | O26: =Main!$B$3 -> Riverboat Rev Sharing 2019-08 | P26: =Support!$B$2 -> 2019-08-15 | Q26: 250125.7 | R26: =Main!E26 -> 250125.7 | S26: =Main!$B$3 -> Riverboat Rev Sharing 2019-08 | T26: =Main!L26 -> 00050 | U26: =Main!N26 -> 562000 | V26: =Main!M26 -> 37060 | W26: =Main!O26 -> 10000 | X26: =Main!K26 -> C17 | Y26: =Support!$B$10 -> 2020 | Z26: =Support!$B$4 -> 2019-08-15 | AA26: =Main!P26 -> 007005
A27: =Support!I33 -> 050SD081519RRS0018 | B27: =Support!$B$1 -> 2019-08-15 | C27: EXT | D27: 697073.67 | E27: ONL | F27: =Main!G27 -> 0000076139 | G27: =Main!H27 -> REMIT001 | H27: =Main!I27 -> 1 | I27: =Main!J27 -> 1 | K27: =Support!$B$3 -> 2019-08-15 | M27: =Main!$B$4 -> Riverboat Rev Sharing 2019-08 | N27: AS | O27: =Main!$B$3 -> Riverboat Rev Sharing 2019-08 | P27: =Support!$B$2 -> 2019-08-15 | Q27: 697073.67 | R27: =Main!E27 -> 697073.67 | S27: =Main!$B$3 -> Riverboat Rev Sharing 2019-08 | T27: =Main!L27 -> 00050 | U27: =Main!N27 -> 562000 | V27: =Main!M27 -> 37060 | W27: =Main!O27 -> 10000 | X27: =Main!K27 -> C18 | Y27: =Support!$B$10 -> 2020 | Z27: =Support!$B$4 -> 2019-08-15 | AA27: =Main!P27 -> 007005
A28: =Support!I34 -> 050SD081519RRS0019 | B28: =Support!$B$1 -> 2019-08-15 | C28: EXT | D28: 248147.11 | E28: ONL | F28: =Main!G28 -> 0000075245 | G28: =Main!H28 -> REMIT001 | H28: =Main!I28 -> 1 | I28: =Main!J28 -> 1 | K28: =Support!$B$3 -> 2019-08-15 | M28: =Main!$B$4 -> Riverboat Rev Sharing 2019-08 | N28: AS | O28: =Main!$B$3 -> Riverboat Rev Sharing 2019-08 | P28: =Support!$B$2 -> 2019-08-15 | Q28: 248147.11 | R28: =Main!E28 -> 248147.11 | S28: =Main!$B$3 -> Riverboat Rev Sharing 2019-08 | T28: =Main!L28 -> 00050 | U28: =Main!N28 -> 562000 | V28: =Main!M28 -> 37060 | W28: =Main!O28 -> 10000 | X28: =Main!K28 -> C19 | Y28: =Support!$B$10 -> 2020 | Z28: =Support!$B$4 -> 2019-08-15 | AA28: =Main!P28 -> 007005
A29: =Support!I35 -> 050SD081519RRS0020 | B29: =Support!$B$1 -> 2019-08-15 | C29: EXT | D29: 1170323.85 | E29: ONL | F29: =Main!G29 -> 0000075247 | G29: =Main!H29 -> REMIT001 | H29: =Main!I29 -> 1 | I29: =Main!J29 -> 1 | K29: =Support!$B$3 -> 2019-08-15 | M29: =Main!$B$4 -> Riverboat Rev Sharing 2019-08 | N29: AS | O29: =Main!$B$3 -> Riverboat Rev Sharing 2019-08 | P29: =Support!$B$2 -> 2019-08-15 | Q29: 1170323.85 | R29: =Main!E29 -> 1170323.85 | S29: =Main!$B$3 -> Riverboat Rev Sharing 2019-08 | T29: =Main!L29 -> 00050 | U29: =Main!N29 -> 562000 | V29: =Main!M29 -> 37060 | W29: =Main!O29 -> 10000 | X29: =Main!K29 -> C20 | Y29: =Support!$B$10 -> 2020 | Z29: =Support!$B$4 -> 2019-08-15 | AA29: =Main!P29 -> 007005
A30: =Support!I36 -> 050SD081519RRS0021 | B30: =Support!$B$1 -> 2019-08-15 | C30: EXT | D30: 143815.02 | E30: ONL | F30: =Main!G30 -> 0000078425 | G30: =Main!H30 -> REMIT001 | H30: =Main!I30 -> 1 | I30: =Main!J30 -> 1 | K30: =Support!$B$3 -> 2019-08-15 | M30: =Main!$B$4 -> Riverboat Rev Sharing 2019-08 | N30: AS | O30: =Main!$B$3 -> Riverboat Rev Sharing 2019-08 | P30: =Support!$B$2 -> 2019-08-15 | Q30: 143815.02 | R30: =Main!E30 -> 143815.02 | S30: =Main!$B$3 -> Riverboat Rev Sharing 2019-08 | T30: =Main!L30 -> 00050 | U30: =Main!N30 -> 562000 | V30: =Main!M30 -> 37060 | W30: =Main!O30 -> 10000 | X30: =Main!K30 -> C21 | Y30: =Support!$B$10 -> 2020 | Z30: =Support!$B$4 -> 2019-08-15 | AA30: =Main!P30 -> 007005
A31: =Support!I37 -> 050SD081519RRS0022 | B31: =Support!$B$1 -> 2019-08-15 | C31: EXT | D31: 441794.16 | E31: ONL | F31: =Main!G31 -> 0000077217 | G31: =Main!H31 -> REMIT001 | H31: =Main!I31 -> 1 | I31: =Main!J31 -> 1 | K31: =Support!$B$3 -> 2019-08-15 | M31: =Main!$B$4 -> Riverboat Rev Sharing 2019-08 | N31: AS | O31: =Main!$B$3 -> Riverboat Rev Sharing 2019-08 | P31: =Support!$B$2 -> 2019-08-15 | Q31: 441794.16 | R31: =Main!E31 -> 441794.16 | S31: =Main!$B$3 -> Riverboat Rev Sharing 2019-08 | T31: =Main!L31 -> 00050 | U31: =Main!N31 -> 562000 | V31: =Main!M31 -> 37060 | W31: =Main!O31 -> 10000 | X31: =Main!K31 -> C22 | Y31: =Support!$B$10 -> 2020 | Z31: =Support!$B$4 -> 2019-08-15 | AA31: =Main!P31 -> 007005
A32: =Support!I38 -> 050SD081519RRS0023 | B32: =Support!$B$1 -> 2019-08-15 | C32: EXT | D32: 102128.39 | E32: ONL | F32: =Main!G32 -> 0000075172 | G32: =Main!H32 -> REMIT001 | H32: =Main!I32 -> 1 | I32: =Main!J32 -> 1 | K32: =Support!$B$3 -> 2019-08-15 | M32: =Main!$B$4 -> Riverboat Rev Sharing 2019-08 | N32: AS | O32: =Main!$B$3 -> Riverboat Rev Sharing 2019-08 | P32: =Support!$B$2 -> 2019-08-15 | Q32: 102128.39 | R32: =Main!E32 -> 102128.39 | S32: =Main!$B$3 -> Riverboat Rev Sharing 2019-08 | T32: =Main!L32 -> 00050 | U32: =Main!N32 -> 562000 | V32: =Main!M32 -> 37060 | W32: =Main!O32 -> 10000 | X32: =Main!K32 -> C23 | Y32: =Support!$B$10 -> 2020 | Z32: =Support!$B$4 -> 2019-08-15 | AA32: =Main!P32 -> 007005
A33: =Support!I39 -> 050SD081519RRS0024 | B33: =Support!$B$1 -> 2019-08-15 | C33: EXT | D33: 136765.56 | E33: ONL | F33: =Main!G33 -> 0000082949 | G33: =Main!H33 -> REMIT001 | H33: =Main!I33 -> 1 | I33: =Main!J33 -> 1 | K33: =Support!$B$3 -> 2019-08-15 | M33: =Main!$B$4 -> Riverboat Rev Sharing 2019-08 | N33: AS | O33: =Main!$B$3 -> Riverboat Rev Sharing 2019-08 | P33: =Support!$B$2 -> 2019-08-15 | Q33: 136765.56 | R33: =Main!E33 -> 136765.56 | S33: =Main!$B$3 -> Riverboat Rev Sharing 2019-08 | T33: =Main!L33 -> 00050 | U33: =Main!N33 -> 562000 | V33: =Main!M33 -> 37060 | W33: =Main!O33 -> 10000 | X33: =Main!K33 -> C24 | Y33: =Support!$B$10 -> 2020 | Z33: =Support!$B$4 -> 2019-08-15 | AA33: =Main!P33 -> 007005
A34: =Support!I40 -> 050SD081519RRS0025 | B34: =Support!$B$1 -> 2019-08-15 | C34: EXT | D34: 123430.81 | E34: ONL | F34: =Main!G34 -> 0000077206 | G34: =Main!H34 -> REMIT001 | H34: =Main!I34 -> 1 | I34: =Main!J34 -> 1 | K34: =Support!$B$3 -> 2019-08-15 | M34: =Main!$B$4 -> Riverboat Rev Sharing 2019-08 | N34: AS | O34: =Main!$B$3 -> Riverboat Rev Sharing 2019-08 | P34: =Support!$B$2 -> 2019-08-15 | Q34: 123430.81 | R34: =Main!E34 -> 123430.81 | S34: =Main!$B$3 -> Riverboat Rev Sharing 2019-08 | T34: =Main!L34 -> 00050 | U34: =Main!N34 -> 562000 | V34: =Main!M34 -> 37060 | W34: =Main!O34 -> 10000 | X34: =Main!K34 -> C25 | Y34: =Support!$B$10 -> 2020 | Z34: =Support!$B$4 -> 2019-08-15 | AA34: =Main!P34 -> 007005
A35: =Support!I41 -> 050SD081519RRS0026 | B35: =Support!$B$1 -> 2019-08-15 | C35: EXT | D35: 198469.12 | E35: ONL | F35: =Main!G35 -> 0000079008 | G35: =Main!H35 -> REMIT001 | H35: =Main!I35 -> 1 | I35: =Main!J35 -> 1 | K35: =Support!$B$3 -> 2019-08-15 | M35: =Main!$B$4 -> Riverboat Rev Sharing 2019-08 | N35: AS | O35: =Main!$B$3 -> Riverboat Rev Sharing 2019-08 | P35: =Support!$B$2 -> 2019-08-15 | Q35: 198469.12 | R35: =Main!E35 -> 198469.12 | S35: =Main!$B$3 -> Riverboat Rev Sharing 2019-08 | T35: =Main!L35 -> 00050 | U35: =Main!N35 -> 562000 | V35: =Main!M35 -> 37060 | W35: =Main!O35 -> 10000 | X35: =Main!K35 -> C26 | Y35: =Support!$B$10 -> 2020 | Z35: =Support!$B$4 -> 2019-08-15 | AA35: =Main!P35 -> 007005
A36: =Support!I42 -> 050SD081519RRS0027 | B36: =Support!$B$1 -> 2019-08-15 | C36: EXT | D36: 415035.81 | E36: ONL | F36: =Main!G36 -> 0000076781 | G36: =Main!H36 -> REMIT001 | H36: =Main!I36 -> 1 | I36: =Main!J36 -> 1 | K36: =Support!$B$3 -> 2019-08-15 | M36: =Main!$B$4 -> Riverboat Rev Sharing 2019-08 | N36: AS | O36: =Main!$B$3 -> Riverboat Rev Sharing 2019-08 | P36: =Support!$B$2 -> 2019-08-15 | Q36: 415035.81 | R36: =Main!E36 -> 415035.81 | S36: =Main!$B$3 -> Riverboat Rev Sharing 2019-08 | T36: =Main!L36 -> 00050 | U36: =Main!N36 -> 562000 | V36: =Main!M36 -> 37060 | W36: =Main!O36 -> 10000 | X36: =Main!K36 -> C27 | Y36: =Support!$B$10 -> 2020 | Z36: =Support!$B$4 -> 2019-08-15 | AA36: =Main!P36 -> 007005
A37: =Support!I43 -> 050SD081519RRS0028 | B37: =Support!$B$1 -> 2019-08-15 | C37: EXT | D37: 196466.83 | E37: ONL | F37: =Main!G37 -> 0000082965 | G37: =Main!H37 -> REMIT001 | H37: =Main!I37 -> 1 | I37: =Main!J37 -> 1 | K37: =Support!$B$3 -> 2019-08-15 | M37: =Main!$B$4 -> Riverboat Rev Sharing 2019-08 | N37: AS | O37: =Main!$B$3 -> Riverboat Rev Sharing 2019-08 | P37: =Support!$B$2 -> 2019-08-15 | Q37: 196466.83 | R37: =Main!E37 -> 196466.83 | S37: =Main!$B$3 -> Riverboat Rev Sharing 2019-08 | T37: =Main!L37 -> 00050 | U37: =Main!N37 -> 562000 | V37: =Main!M37 -> 37060 | W37: =Main!O37 -> 10000 | X37: =Main!K37 -> C28 | Y37: =Support!$B$10 -> 2020 | Z37: =Support!$B$4 -> 2019-08-15 | AA37: =Main!P37 -> 007005
A38: =Support!I44 -> 050SD081519RRS0029 | B38: =Support!$B$1 -> 2019-08-15 | C38: EXT | D38: 1626524.98 | E38: ONL | F38: =Main!G38 -> 0000075809 | G38: =Main!H38 -> REMIT001 | H38: =Main!I38 -> 1 | I38: =Main!J38 -> 1 | K38: =Support!$B$3 -> 2019-08-15 | M38: =Main!$B$4 -> Riverboat Rev Sharing 2019-08 | N38: AS | O38: =Main!$B$3 -> Riverboat Rev Sharing 2019-08 | P38: =Support!$B$2 -> 2019-08-15 | Q38: 1626524.98 | R38: =Main!E38 -> 1626524.98 | S38: =Main!$B$3 -> Riverboat Rev Sharing 2019-08 | T38: =Main!L38 -> 00050 | U38: =Main!N38 -> 562000 | V38: =Main!M38 -> 37060 | W38: =Main!O38 -> 10000 | X38: =Main!K38 -> C29 | Y38: =Support!$B$10 -> 2020 | Z38: =Support!$B$4 -> 2019-08-15 | AA38: =Main!P38 -> 007005
A39: =Support!I45 -> 050SD081519RRS0030 | B39: =Support!$B$1 -> 2019-08-15 | C39: EXT | D39: 414686.3 | E39: ONL | F39: =Main!G39 -> 0000082966 | G39: =Main!H39 -> REMIT001 | H39: =Main!I39 -> 1 | I39: =Main!J39 -> 1 | K39: =Support!$B$3 -> 2019-08-15 | M39: =Main!$B$4 -> Riverboat Rev Sharing 2019-08 | N39: AS | O39: =Main!$B$3 -> Riverboat Rev Sharing 2019-08 | P39: =Support!$B$2 -> 2019-08-15 | Q39: 414686.3 | R39: =Main!E39 -> 414686.3 | S39: =Main!$B$3 -> Riverboat Rev Sharing 2019-08 | T39: =Main!L39 -> 00050 | U39: =Main!N39 -> 562000 | V39: =Main!M39 -> 37060 | W39: =Main!O39 -> 10000 | X39: =Main!K39 -> C30 | Y39: =Support!$B$10 -> 2020 | Z39: =Support!$B$4 -> 2019-08-15 | AA39: =Main!P39 -> 007005
A40: =Support!I46 -> 050SD081519RRS0031 | B40: =Support!$B$1 -> 2019-08-15 | C40: EXT | D40: 0 | E40: ONL | F40: =Main!G40 -> 0000082967 | G40: =Main!H40 -> REMIT001 | H40: =Main!I40 -> 1 | I40: =Main!J40 -> 1 | K40: =Support!$B$3 -> 2019-08-15 | M40: =Main!$B$4 -> Riverboat Rev Sharing 2019-08 | N40: AS | O40: =Main!$B$3 -> Riverboat Rev Sharing 2019-08 | P40: =Support!$B$2 -> 2019-08-15 | Q40: 0 | R40: =Main!E40 -> 0 | S40: =Main!$B$3 -> Riverboat Rev Sharing 2019-08 | T40: =Main!L40 -> 00050 | U40: =Main!N40 -> 562000 | V40: =Main!M40 -> 37060 | W40: =Main!O40 -> 10000 | X40: =Main!K40 -> C31 | Y40: =Support!$B$10 -> 2020 | Z40: =Support!$B$4 -> 2019-08-15 | AA40: =Main!P40 -> 007005
A41: =Support!I47 -> 050SD081519RRS0032 | B41: =Support!$B$1 -> 2019-08-15 | C41: EXT | D41: 861622.42 | E41: ONL | F41: =Main!G41 -> 0000082968 | G41: =Main!H41 -> REMIT001 | H41: =Main!I41 -> 1 | I41: =Main!J41 -> 1 | K41: =Support!$B$3 -> 2019-08-15 | M41: =Main!$B$4 -> Riverboat Rev Sharing 2019-08 | N41: AS | O41: =Main!$B$3 -> Riverboat Rev Sharing 2019-08 | P41: =Support!$B$2 -> 2019-08-15 | Q41: 861622.42 | R41: =Main!E41 -> 861622.42 | S41: =Main!$B$3 -> Riverboat Rev Sharing 2019-08 | T41: =Main!L41 -> 00050 | U41: =Main!N41 -> 562000 | V41: =Main!M41 -> 37060 | W41: =Main!O41 -> 10000 | X41: =Main!K41 -> C32 | Y41: =Support!$B$10 -> 2020 | Z41: =Support!$B$4 -> 2019-08-15 | AA41: =Main!P41 -> 007005
A42: =Support!I48 -> 050SD081519RRS0033 | B42: =Support!$B$1 -> 2019-08-15 | C42: EXT | D42: 293008.97 | E42: ONL | F42: =Main!G42 -> 0000082969 | G42: =Main!H42 -> REMIT001 | H42: =Main!I42 -> 1 | I42: =Main!J42 -> 1 | K42: =Support!$B$3 -> 2019-08-15 | M42: =Main!$B$4 -> Riverboat Rev Sharing 2019-08 | N42: AS | O42: =Main!$B$3 -> Riverboat Rev Sharing 2019-08 | P42: =Support!$B$2 -> 2019-08-15 | Q42: 293008.97 | R42: =Main!E42 -> 293008.97 | S42: =Main!$B$3 -> Riverboat Rev Sharing 2019-08 | T42: =Main!L42 -> 00050 | U42: =Main!N42 -> 562000 | V42: =Main!M42 -> 37060 | W42: =Main!O42 -> 10000 | X42: =Main!K42 -> C33 | Y42: =Support!$B$10 -> 2020 | Z42: =Support!$B$4 -> 2019-08-15 | AA42: =Main!P42 -> 007005
A43: =Support!I49 -> 050SD081519RRS0034 | B43: =Support!$B$1 -> 2019-08-15 | C43: EXT | D43: 490216.29 | E43: ONL | F43: =Main!G43 -> 0000075284 | G43: =Main!H43 -> REMIT001 | H43: =Main!I43 -> 1 | I43: =Main!J43 -> 1 | K43: =Support!$B$3 -> 2019-08-15 | M43: =Main!$B$4 -> Riverboat Rev Sharing 2019-08 | N43: AS | O43: =Main!$B$3 -> Riverboat Rev Sharing 2019-08 | P43: =Support!$B$2 -> 2019-08-15 | Q43: 490216.29 | R43: =Main!E43 -> 490216.29 | S43: =Main!$B$3 -> Riverboat Rev Sharing 2019-08 | T43: =Main!L43 -> 00050 | U43: =Main!N43 -> 562000 | V43: =Main!M43 -> 37060 | W43: =Main!O43 -> 10000 | X43: =Main!K43 -> C34 | Y43: =Support!$B$10 -> 2020 | Z43: =Support!$B$4 -> 2019-08-15 | AA43: =Main!P43 -> 007005
A44: =Support!I50 -> 050SD081519RRS0035 | B44: =Support!$B$1 -> 2019-08-15 | C44: EXT | D44: 219919.63 | E44: ONL | F44: =Main!G44 -> 0000075168 | G44: =Main!H44 -> REMIT001 | H44: =Main!I44 -> 1 | I44: =Main!J44 -> 1 | K44: =Support!$B$3 -> 2019-08-15 | M44: =Main!$B$4 -> Riverboat Rev Sharing 2019-08 | N44: AS | O44: =Main!$B$3 -> Riverboat Rev Sharing 2019-08 | P44: =Support!$B$2 -> 2019-08-15 | Q44: 219919.63 | R44: =Main!E44 -> 219919.63 | S44: =Main!$B$3 -> Riverboat Rev Sharing 2019-08 | T44: =Main!L44 -> 00050 | U44: =Main!N44 -> 562000 | V44: =Main!M44 -> 37060 | W44: =Main!O44 -> 10000 | X44: =Main!K44 -> C35 | Y44: =Support!$B$10 -> 2020 | Z44: =Support!$B$4 -> 2019-08-15 | AA44: =Main!P44 -> 007005
A45: =Support!I51 -> 050SD081519RRS0036 | B45: =Support!$B$1 -> 2019-08-15 | C45: EXT | D45: 251032.06 | E45: ONL | F45: =Main!G45 -> 0000075169 | G45: =Main!H45 -> REMIT001 | H45: =Main!I45 -> 1 | I45: =Main!J45 -> 1 | K45: =Support!$B$3 -> 2019-08-15 | M45: =Main!$B$4 -> Riverboat Rev Sharing 2019-08 | N45: AS | O45: =Main!$B$3 -> Riverboat Rev Sharing 2019-08 | P45: =Support!$B$2 -> 2019-08-15 | Q45: 251032.06 | R45: =Main!E45 -> 251032.06 | S45: =Main!$B$3 -> Riverboat Rev Sharing 2019-08 | T45: =Main!L45 -> 00050 | U45: =Main!N45 -> 562000 | V45: =Main!M45 -> 37060 | W45: =Main!O45 -> 10000 | X45: =Main!K45 -> C36 | Y45: =Support!$B$10 -> 2020 | Z45: =Support!$B$4 -> 2019-08-15 | AA45: =Main!P45 -> 007005
A46: =Support!I52 -> 050SD081519RRS0037 | B46: =Support!$B$1 -> 2019-08-15 | C46: EXT | D46: 198321.02 | E46: ONL | F46: =Main!G46 -> 0000082970 | G46: =Main!H46 -> REMIT001 | H46: =Main!I46 -> 1 | I46: =Main!J46 -> 1 | K46: =Support!$B$3 -> 2019-08-15 | M46: =Main!$B$4 -> Riverboat Rev Sharing 2019-08 | N46: AS | O46: =Main!$B$3 -> Riverboat Rev Sharing 2019-08 | P46: =Support!$B$2 -> 2019-08-15 | Q46: 198321.02 | R46: =Main!E46 -> 198321.02 | S46: =Main!$B$3 -> Riverboat Rev Sharing 2019-08 | T46: =Main!L46 -> 00050 | U46: =Main!N46 -> 562000 | V46: =Main!M46 -> 37060 | W46: =Main!O46 -> 10000 | X46: =Main!K46 -> C37 | Y46: =Support!$B$10 -> 2020 | Z46: =Support!$B$4 -> 2019-08-15 | AA46: =Main!P46 -> 007005
A47: =Support!I53 -> 050SD081519RRS0038 | B47: =Support!$B$1 -> 2019-08-15 | C47: EXT | D47: 125901.09 | E47: ONL | F47: =Main!G47 -> 0000082971 | G47: =Main!H47 -> REMIT001 | H47: =Main!I47 -> 1 | I47: =Main!J47 -> 1 | K47: =Support!$B$3 -> 2019-08-15 | M47: =Main!$B$4 -> Riverboat Rev Sharing 2019-08 | N47: AS | O47: =Main!$B$3 -> Riverboat Rev Sharing 2019-08 | P47: =Support!$B$2 -> 2019-08-15 | Q47: 125901.09 | R47: =Main!E47 -> 125901.09 | S47: =Main!$B$3 -> Riverboat Rev Sharing 2019-08 | T47: =Main!L47 -> 00050 | U47: =Main!N47 -> 562000 | V47: =Main!M47 -> 37060 | W47: =Main!O47 -> 10000 | X47: =Main!K47 -> C38 | Y47: =Support!$B$10 -> 2020 | Z47: =Support!$B$4 -> 2019-08-15 | AA47: =Main!P47 -> 007005
A48: =Support!I54 -> 050SD081519RRS0039 | B48: =Support!$B$1 -> 2019-08-15 | C48: EXT | D48: 192100.9 | E48: ONL | F48: =Main!G48 -> 0000082972 | G48: =Main!H48 -> REMIT001 | H48: =Main!I48 -> 1 | I48: =Main!J48 -> 1 | K48: =Support!$B$3 -> 2019-08-15 | M48: =Main!$B$4 -> Riverboat Rev Sharing 2019-08 | N48: AS | O48: =Main!$B$3 -> Riverboat Rev Sharing 2019-08 | P48: =Support!$B$2 -> 2019-08-15 | Q48: 192100.9 | R48: =Main!E48 -> 192100.9 | S48: =Main!$B$3 -> Riverboat Rev Sharing 2019-08 | T48: =Main!L48 -> 00050 | U48: =Main!N48 -> 562000 | V48: =Main!M48 -> 37060 | W48: =Main!O48 -> 10000 | X48: =Main!K48 -> C39 | Y48: =Support!$B$10 -> 2020 | Z48: =Support!$B$4 -> 2019-08-15 | AA48: =Main!P48 -> 007005
A49: =Support!I55 -> 050SD081519RRS0040 | B49: =Support!$B$1 -> 2019-08-15 | C49: EXT | D49: 168979.84 | E49: ONL | F49: =Main!G49 -> 0000076144 | G49: =Main!H49 -> REMIT001 | H49: =Main!I49 -> 1 | I49: =Main!J49 -> 1 | K49: =Support!$B$3 -> 2019-08-15 | M49: =Main!$B$4 -> Riverboat Rev Sharing 2019-08 | N49: AS | O49: =Main!$B$3 -> Riverboat Rev Sharing 2019-08 | P49: =Support!$B$2 -> 2019-08-15 | Q49: 168979.84 | R49: =Main!E49 -> 168979.84 | S49: =Main!$B$3 -> Riverboat Rev Sharing 2019-08 | T49: =Main!L49 -> 00050 | U49: =Main!N49 -> 562000 | V49: =Main!M49 -> 37060 | W49: =Main!O49 -> 10000 | X49: =Main!K49 -> C40 | Y49: =Support!$B$10 -> 2020 | Z49: =Support!$B$4 -> 2019-08-15 | AA49: =Main!P49 -> 007005
A50: =Support!I56 -> 050SD081519RRS0041 | B50: =Support!$B$1 -> 2019-08-15 | C50: EXT | D50: 827299.22 | E50: ONL | F50: =Main!G50 -> 0000077904 | G50: =Main!H50 -> REMIT001 | H50: =Main!I50 -> 1 | I50: =Main!J50 -> 1 | K50: =Support!$B$3 -> 2019-08-15 | M50: =Main!$B$4 -> Riverboat Rev Sharing 2019-08 | N50: AS | O50: =Main!$B$3 -> Riverboat Rev Sharing 2019-08 | P50: =Support!$B$2 -> 2019-08-15 | Q50: 827299.22 | R50: =Main!E50 -> 827299.22 | S50: =Main!$B$3 -> Riverboat Rev Sharing 2019-08 | T50: =Main!L50 -> 00050 | U50: =Main!N50 -> 562000 | V50: =Main!M50 -> 37060 | W50: =Main!O50 -> 10000 | X50: =Main!K50 -> C41 | Y50: =Support!$B$10 -> 2020 | Z50: =Support!$B$4 -> 2019-08-15 | AA50: =Main!P50 -> 007005
A51: =Support!I57 -> 050SD081519RRS0042 | B51: =Support!$B$1 -> 2019-08-15 | C51: EXT | D51: 227715.51 | E51: ONL | F51: =Main!G51 -> 0000077216 | G51: =Main!H51 -> REMIT001 | H51: =Main!I51 -> 1 | I51: =Main!J51 -> 1 | K51: =Support!$B$3 -> 2019-08-15 | M51: =Main!$B$4 -> Riverboat Rev Sharing 2019-08 | N51: AS | O51: =Main!$B$3 -> Riverboat Rev Sharing 2019-08 | P51: =Support!$B$2 -> 2019-08-15 | Q51: 227715.51 | R51: =Main!E51 -> 227715.51 | S51: =Main!$B$3 -> Riverboat Rev Sharing 2019-08 | T51: =Main!L51 -> 00050 | U51: =Main!N51 -> 562000 | V51: =Main!M51 -> 37060 | W51: =Main!O51 -> 10000 | X51: =Main!K51 -> C42 | Y51: =Support!$B$10 -> 2020 | Z51: =Support!$B$4 -> 2019-08-15 | AA51: =Main!P51 -> 007005
A52: =Support!I58 -> 050SD081519RRS0043 | B52: =Support!$B$1 -> 2019-08-15 | C52: EXT | D52: 458262.66 | E52: ONL | F52: =Main!G52 -> 0000075246 | G52: =Main!H52 -> REMIT001 | H52: =Main!I52 -> 1 | I52: =Main!J52 -> 1 | K52: =Support!$B$3 -> 2019-08-15 | M52: =Main!$B$4 -> Riverboat Rev Sharing 2019-08 | N52: AS | O52: =Main!$B$3 -> Riverboat Rev Sharing 2019-08 | P52: =Support!$B$2 -> 2019-08-15 | Q52: 458262.66 | R52: =Main!E52 -> 458262.66 | S52: =Main!$B$3 -> Riverboat Rev Sharing 2019-08 | T52: =Main!L52 -> 00050 | U52: =Main!N52 -> 562000 | V52: =Main!M52 -> 37060 | W52: =Main!O52 -> 10000 | X52: =Main!K52 -> C43 | Y52: =Support!$B$10 -> 2020 | Z52: =Support!$B$4 -> 2019-08-15 | AA52: =Main!P52 -> 007005
A53: =Support!I59 -> 050SD081519RRS0044 | B53: =Support!$B$1 -> 2019-08-15 | C53: EXT | D53: 219943.33 | E53: ONL | F53: =Main!G53 -> 0000077908 | G53: =Main!H53 -> REMIT001 | H53: =Main!I53 -> 1 | I53: =Main!J53 -> 1 | K53: =Support!$B$3 -> 2019-08-15 | M53: =Main!$B$4 -> Riverboat Rev Sharing 2019-08 | N53: AS | O53: =Main!$B$3 -> Riverboat Rev Sharing 2019-08 | P53: =Support!$B$2 -> 2019-08-15 | Q53: 219943.33 | R53: =Main!E53 -> 219943.33 | S53: =Main!$B$3 -> Riverboat Rev Sharing 2019-08 | T53: =Main!L53 -> 00050 | U53: =Main!N53 -> 562000 | V53: =Main!M53 -> 37060 | W53: =Main!O53 -> 10000 | X53: =Main!K53 -> C44 | Y53: =Support!$B$10 -> 2020 | Z53: =Support!$B$4 -> 2019-08-15 | AA53: =Main!P53 -> 007005
A54: =Support!I60 -> 050SD081519RRS0045 | B54: =Support!$B$1 -> 2019-08-15 | C54: EXT | D54: 0 | E54: ONL | F54: =Main!G54 -> 0000075244 | G54: =Main!H54 -> REMIT001 | H54: =Main!I54 -> 1 | I54: =Main!J54 -> 1 | K54: =Support!$B$3 -> 2019-08-15 | M54: =Main!$B$4 -> Riverboat Rev Sharing 2019-08 | N54: AS | O54: =Main!$B$3 -> Riverboat Rev Sharing 2019-08 | P54: =Support!$B$2 -> 2019-08-15 | Q54: 0 | R54: =Main!E54 -> 0 | S54: =Main!$B$3 -> Riverboat Rev Sharing 2019-08 | T54: =Main!L54 -> 00050 | U54: =Main!N54 -> 562000 | V54: =Main!M54 -> 37060 | W54: =Main!O54 -> 10000 | X54: =Main!K54 -> C45 | Y54: =Support!$B$10 -> 2020 | Z54: =Support!$B$4 -> 2019-08-15 | AA54: =Main!P54 -> 007005
A55: =Support!I61 -> 050SD081519RRS0046 | B55: =Support!$B$1 -> 2019-08-15 | C55: EXT | D55: 0 | E55: ONL | F55: =Main!G55 -> 0000082973 | G55: =Main!H55 -> REMIT001 | H55: =Main!I55 -> 1 | I55: =Main!J55 -> 1 | K55: =Support!$B$3 -> 2019-08-15 | M55: =Main!$B$4 -> Riverboat Rev Sharing 2019-08 | N55: AS | O55: =Main!$B$3 -> Riverboat Rev Sharing 2019-08 | P55: =Support!$B$2 -> 2019-08-15 | Q55: 0 | R55: =Main!E55 -> 0 | S55: =Main!$B$3 -> Riverboat Rev Sharing 2019-08 | T55: =Main!L55 -> 00050 | U55: =Main!N55 -> 562000 | V55: =Main!M55 -> 37060 | W55: =Main!O55 -> 10000 | X55: =Main!K55 -> C46 | Y55: =Support!$B$10 -> 2020 | Z55: =Support!$B$4 -> 2019-08-15 | AA55: =Main!P55 -> 007005
A56: =Support!I62 -> 050SD081519RRS0047 | B56: =Support!$B$1 -> 2019-08-15 | C56: EXT | D56: 273294.16 | E56: ONL | F56: =Main!G56 -> 0000077084 | G56: =Main!H56 -> REMIT001 | H56: =Main!I56 -> 1 | I56: =Main!J56 -> 1 | K56: =Support!$B$3 -> 2019-08-15 | M56: =Main!$B$4 -> Riverboat Rev Sharing 2019-08 | N56: AS | O56: =Main!$B$3 -> Riverboat Rev Sharing 2019-08 | P56: =Support!$B$2 -> 2019-08-15 | Q56: 273294.16 | R56: =Main!E56 -> 273294.16 | S56: =Main!$B$3 -> Riverboat Rev Sharing 2019-08 | T56: =Main!L56 -> 00050 | U56: =Main!N56 -> 562000 | V56: =Main!M56 -> 37060 | W56: =Main!O56 -> 10000 | X56: =Main!K56 -> C47 | Y56: =Support!$B$10 -> 2020 | Z56: =Support!$B$4 -> 2019-08-15 | AA56: =Main!P56 -> 007005
A57: =Support!I63 -> 050SD081519RRS0048 | B57: =Support!$B$1 -> 2019-08-15 | C57: EXT | D57: 779801.23 | E57: ONL | F57: =Main!G57 -> 0000075404 | G57: =Main!H57 -> REMIT001 | H57: =Main!I57 -> 1 | I57: =Main!J57 -> 1 | K57: =Support!$B$3 -> 2019-08-15 | M57: =Main!$B$4 -> Riverboat Rev Sharing 2019-08 | N57: AS | O57: =Main!$B$3 -> Riverboat Rev Sharing 2019-08 | P57: =Support!$B$2 -> 2019-08-15 | Q57: 779801.23 | R57: =Main!E57 -> 779801.23 | S57: =Main!$B$3 -> Riverboat Rev Sharing 2019-08 | T57: =Main!L57 -> 00050 | U57: =Main!N57 -> 562000 | V57: =Main!M57 -> 37060 | W57: =Main!O57 -> 10000 | X57: =Main!K57 -> C48 | Y57: =Support!$B$10 -> 2020 | Z57: =Support!$B$4 -> 2019-08-15 | AA57: =Main!P57 -> 007005
A58: =Support!I64 -> 050SD081519RRS0049 | B58: =Support!$B$1 -> 2019-08-15 | C58: EXT | D58: 5351628.49 | E58: ONL | F58: =Main!G58 -> 0000076138 | G58: =Main!H58 -> REMIT001 | H58: =Main!I58 -> 1 | I58: =Main!J58 -> 1 | K58: =Support!$B$3 -> 2019-08-15 | M58: =Main!$B$4 -> Riverboat Rev Sharing 2019-08 | N58: AS | O58: =Main!$B$3 -> Riverboat Rev Sharing 2019-08 | P58: =Support!$B$2 -> 2019-08-15 | Q58: 5351628.49 | R58: =Main!E58 -> 5351628.49 | S58: =Main!$B$3 -> Riverboat Rev Sharing 2019-08 | T58: =Main!L58 -> 00050 | U58: =Main!N58 -> 562000 | V58: =Main!M58 -> 37060 | W58: =Main!O58 -> 10000 | X58: =Main!K58 -> C49 | Y58: =Support!$B$10 -> 2020 | Z58: =Support!$B$4 -> 2019-08-15 | AA58: =Main!P58 -> 007005
A59: =Support!I65 -> 050SD081519RRS0050 | B59: =Support!$B$1 -> 2019-08-15 | C59: EXT | D59: 278726.39 | E59: ONL | F59: =Main!G59 -> 0000075755 | G59: =Main!H59 -> REMIT001 | H59: =Main!I59 -> 1 | I59: =Main!J59 -> 1 | K59: =Support!$B$3 -> 2019-08-15 | M59: =Main!$B$4 -> Riverboat Rev Sharing 2019-08 | N59: AS | O59: =Main!$B$3 -> Riverboat Rev Sharing 2019-08 | P59: =Support!$B$2 -> 2019-08-15 | Q59: 278726.39 | R59: =Main!E59 -> 278726.39 | S59: =Main!$B$3 -> Riverboat Rev Sharing 2019-08 | T59: =Main!L59 -> 00050 | U59: =Main!N59 -> 562000 | V59: =Main!M59 -> 37060 | W59: =Main!O59 -> 10000 | X59: =Main!K59 -> C50 | Y59: =Support!$B$10 -> 2020 | Z59: =Support!$B$4 -> 2019-08-15 | AA59: =Main!P59 -> 007005
A60: =Support!I66 -> 050SD081519RRS0051 | B60: =Support!$B$1 -> 2019-08-15 | C60: EXT | D60: 61217.8 | E60: ONL | F60: =Main!G60 -> 0000082950 | G60: =Main!H60 -> REMIT001 | H60: =Main!I60 -> 1 | I60: =Main!J60 -> 1 | K60: =Support!$B$3 -> 2019-08-15 | M60: =Main!$B$4 -> Riverboat Rev Sharing 2019-08 | N60: AS | O60: =Main!$B$3 -> Riverboat Rev Sharing 2019-08 | P60: =Support!$B$2 -> 2019-08-15 | Q60: 61217.8 | R60: =Main!E60 -> 61217.8 | S60: =Main!$B$3 -> Riverboat Rev Sharing 2019-08 | T60: =Main!L60 -> 00050 | U60: =Main!N60 -> 562000 | V60: =Main!M60 -> 37060 | W60: =Main!O60 -> 10000 | X60: =Main!K60 -> C51 | Y60: =Support!$B$10 -> 2020 | Z60: =Support!$B$4 -> 2019-08-15 | AA60: =Main!P60 -> 007005
A61: =Support!I67 -> 050SD081519RRS0052 | B61: =Support!$B$1 -> 2019-08-15 | C61: EXT | D61: 218610.45 | E61: ONL | F61: =Main!G61 -> 0000075197 | G61: =Main!H61 -> REMIT001 | H61: =Main!I61 -> 1 | I61: =Main!J61 -> 1 | K61: =Support!$B$3 -> 2019-08-15 | M61: =Main!$B$4 -> Riverboat Rev Sharing 2019-08 | N61: AS | O61: =Main!$B$3 -> Riverboat Rev Sharing 2019-08 | P61: =Support!$B$2 -> 2019-08-15 | Q61: 218610.45 | R61: =Main!E61 -> 218610.45 | S61: =Main!$B$3 -> Riverboat Rev Sharing 2019-08 | T61: =Main!L61 -> 00050 | U61: =Main!N61 -> 562000 | V61: =Main!M61 -> 37060 | W61: =Main!O61 -> 10000 | X61: =Main!K61 -> C52 | Y61: =Support!$B$10 -> 2020 | Z61: =Support!$B$4 -> 2019-08-15 | AA61: =Main!P61 -> 007005
A62: =Support!I68 -> 050SD081519RRS0053 | B62: =Support!$B$1 -> 2019-08-15 | C62: EXT | D62: 817347.03 | E62: ONL | F62: =Main!G62 -> 0000082923 | G62: =Main!H62 -> REMIT001 | H62: =Main!I62 -> 1 | I62: =Main!J62 -> 1 | K62: =Support!$B$3 -> 2019-08-15 | M62: =Main!$B$4 -> Riverboat Rev Sharing 2019-08 | N62: AS | O62: =Main!$B$3 -> Riverboat Rev Sharing 2019-08 | P62: =Support!$B$2 -> 2019-08-15 | Q62: 817347.03 | R62: =Main!E62 -> 817347.03 | S62: =Main!$B$3 -> Riverboat Rev Sharing 2019-08 | T62: =Main!L62 -> 00050 | U62: =Main!N62 -> 562000 | V62: =Main!M62 -> 37060 | W62: =Main!O62 -> 10000 | X62: =Main!K62 -> C53 | Y62: =Support!$B$10 -> 2020 | Z62: =Support!$B$4 -> 2019-08-15 | AA62: =Main!P62 -> 007005
A63: =Support!I69 -> 050SD081519RRS0054 | B63: =Support!$B$1 -> 2019-08-15 | C63: EXT | D63: 225843.55 | E63: ONL | F63: =Main!G63 -> 0000076687 | G63: =Main!H63 -> REMIT001 | H63: =Main!I63 -> 1 | I63: =Main!J63 -> 1 | K63: =Support!$B$3 -> 2019-08-15 | M63: =Main!$B$4 -> Riverboat Rev Sharing 2019-08 | N63: AS | O63: =Main!$B$3 -> Riverboat Rev Sharing 2019-08 | P63: =Support!$B$2 -> 2019-08-15 | Q63: 225843.55 | R63: =Main!E63 -> 225843.55 | S63: =Main!$B$3 -> Riverboat Rev Sharing 2019-08 | T63: =Main!L63 -> 00050 | U63: =Main!N63 -> 562000 | V63: =Main!M63 -> 37060 | W63: =Main!O63 -> 10000 | X63: =Main!K63 -> C54 | Y63: =Support!$B$10 -> 2020 | Z63: =Support!$B$4 -> 2019-08-15 | AA63: =Main!P63 -> 007005
A64: =Support!I70 -> 050SD081519RRS0055 | B64: =Support!$B$1 -> 2019-08-15 | C64: EXT | D64: 408122.59 | E64: ONL | F64: =Main!G64 -> 0000077086 | G64: =Main!H64 -> REMIT001 | H64: =Main!I64 -> 1 | I64: =Main!J64 -> 1 | K64: =Support!$B$3 -> 2019-08-15 | M64: =Main!$B$4 -> Riverboat Rev Sharing 2019-08 | N64: AS | O64: =Main!$B$3 -> Riverboat Rev Sharing 2019-08 | P64: =Support!$B$2 -> 2019-08-15 | Q64: 408122.59 | R64: =Main!E64 -> 408122.59 | S64: =Main!$B$3 -> Riverboat Rev Sharing 2019-08 | T64: =Main!L64 -> 00050 | U64: =Main!N64 -> 562000 | V64: =Main!M64 -> 37060 | W64: =Main!O64 -> 10000 | X64: =Main!K64 -> C55 | Y64: =Support!$B$10 -> 2020 | Z64: =Support!$B$4 -> 2019-08-15 | AA64: =Main!P64 -> 007005
A65: =Support!I71 -> 050SD081519RRS0056 | B65: =Support!$B$1 -> 2019-08-15 | C65: EXT | D65: 84380.33 | E65: ONL | F65: =Main!G65 -> 0000082924 | G65: =Main!H65 -> REMIT001 | H65: =Main!I65 -> 1 | I65: =Main!J65 -> 1 | K65: =Support!$B$3 -> 2019-08-15 | M65: =Main!$B$4 -> Riverboat Rev Sharing 2019-08 | N65: AS | O65: =Main!$B$3 -> Riverboat Rev Sharing 2019-08 | P65: =Support!$B$2 -> 2019-08-15 | Q65: 84380.33 | R65: =Main!E65 -> 84380.33 | S65: =Main!$B$3 -> Riverboat Rev Sharing 2019-08 | T65: =Main!L65 -> 00050 | U65: =Main!N65 -> 562000 | V65: =Main!M65 -> 37060 | W65: =Main!O65 -> 10000 | X65: =Main!K65 -> C56 | Y65: =Support!$B$10 -> 2020 | Z65: =Support!$B$4 -> 2019-08-15 | AA65: =Main!P65 -> 007005
A66: =Support!I72 -> 050SD081519RRS0057 | B66: =Support!$B$1 -> 2019-08-15 | C66: EXT | D66: 281599.49 | E66: ONL | F66: =Main!G66 -> 0000082974 | G66: =Main!H66 -> REMIT001 | H66: =Main!I66 -> 1 | I66: =Main!J66 -> 1 | K66: =Support!$B$3 -> 2019-08-15 | M66: =Main!$B$4 -> Riverboat Rev Sharing 2019-08 | N66: AS | O66: =Main!$B$3 -> Riverboat Rev Sharing 2019-08 | P66: =Support!$B$2 -> 2019-08-15 | Q66: 281599.49 | R66: =Main!E66 -> 281599.49 | S66: =Main!$B$3 -> Riverboat Rev Sharing 2019-08 | T66: =Main!L66 -> 00050 | U66: =Main!N66 -> 562000 | V66: =Main!M66 -> 37060 | W66: =Main!O66 -> 10000 | X66: =Main!K66 -> C57 | Y66: =Support!$B$10 -> 2020 | Z66: =Support!$B$4 -> 2019-08-15 | AA66: =Main!P66 -> 007005
A67: =Support!I73 -> 050SD081519RRS0058 | B67: =Support!$B$1 -> 2019-08-15 | C67: EXT | D67: 0 | E67: ONL | F67: =Main!G67 -> 0000075167 | G67: =Main!H67 -> REMIT001 | H67: =Main!I67 -> 1 | I67: =Main!J67 -> 1 | K67: =Support!$B$3 -> 2019-08-15 | M67: =Main!$B$4 -> Riverboat Rev Sharing 2019-08 | N67: AS | O67: =Main!$B$3 -> Riverboat Rev Sharing 2019-08 | P67: =Support!$B$2 -> 2019-08-15 | Q67: 0 | R67: =Main!E67 -> 0 | S67: =Main!$B$3 -> Riverboat Rev Sharing 2019-08 | T67: =Main!L67 -> 00050 | U67: =Main!N67 -> 562000 | V67: =Main!M67 -> 37060 | W67: =Main!O67 -> 10000 | X67: =Main!K67 -> C58 | Y67: =Support!$B$10 -> 2020 | Z67: =Support!$B$4 -> 2019-08-15 | AA67: =Main!P67 -> 007005
A68: =Support!I74 -> 050SD081519RRS0059 | B68: =Support!$B$1 -> 2019-08-15 | C68: EXT | D68: 0 | E68: ONL | F68: =Main!G68 -> 0000082975 | G68: =Main!H68 -> REMIT001 | H68: =Main!I68 -> 1 | I68: =Main!J68 -> 1 | K68: =Support!$B$3 -> 2019-08-15 | M68: =Main!$B$4 -> Riverboat Rev Sharing 2019-08 | N68: AS | O68: =Main!$B$3 -> Riverboat Rev Sharing 2019-08 | P68: =Support!$B$2 -> 2019-08-15 | Q68: 0 | R68: =Main!E68 -> 0 | S68: =Main!$B$3 -> Riverboat Rev Sharing 2019-08 | T68: =Main!L68 -> 00050 | U68: =Main!N68 -> 562000 | V68: =Main!M68 -> 37060 | W68: =Main!O68 -> 10000 | X68: =Main!K68 -> C59 | Y68: =Support!$B$10 -> 2020 | Z68: =Support!$B$4 -> 2019-08-15 | AA68: =Main!P68 -> 007005
A69: =Support!I75 -> 050SD081519RRS0060 | B69: =Support!$B$1 -> 2019-08-15 | C69: EXT | D69: 127808.59 | E69: ONL | F69: =Main!G69 -> 0000082976 | G69: =Main!H69 -> REMIT001 | H69: =Main!I69 -> 1 | I69: =Main!J69 -> 1 | K69: =Support!$B$3 -> 2019-08-15 | M69: =Main!$B$4 -> Riverboat Rev Sharing 2019-08 | N69: AS | O69: =Main!$B$3 -> Riverboat Rev Sharing 2019-08 | P69: =Support!$B$2 -> 2019-08-15 | Q69: 127808.59 | R69: =Main!E69 -> 127808.59 | S69: =Main!$B$3 -> Riverboat Rev Sharing 2019-08 | T69: =Main!L69 -> 00050 | U69: =Main!N69 -> 562000 | V69: =Main!M69 -> 37060 | W69: =Main!O69 -> 10000 | X69: =Main!K69 -> C60 | Y69: =Support!$B$10 -> 2020 | Z69: =Support!$B$4 -> 2019-08-15 | AA69: =Main!P69 -> 007005
A70: =Support!I76 -> 050SD081519RRS0061 | B70: =Support!$B$1 -> 2019-08-15 | C70: EXT | D70: 102714.86 | E70: ONL | F70: =Main!G70 -> 0000075192 | G70: =Main!H70 -> REMIT001 | H70: =Main!I70 -> 1 | I70: =Main!J70 -> 1 | K70: =Support!$B$3 -> 2019-08-15 | M70: =Main!$B$4 -> Riverboat Rev Sharing 2019-08 | N70: AS | O70: =Main!$B$3 -> Riverboat Rev Sharing 2019-08 | P70: =Support!$B$2 -> 2019-08-15 | Q70: 102714.86 | R70: =Main!E70 -> 102714.86 | S70: =Main!$B$3 -> Riverboat Rev Sharing 2019-08 | T70: =Main!L70 -> 00050 | U70: =Main!N70 -> 562000 | V70: =Main!M70 -> 37060 | W70: =Main!O70 -> 10000 | X70: =Main!K70 -> C61 | Y70: =Support!$B$10 -> 2020 | Z70: =Support!$B$4 -> 2019-08-15 | AA70: =Main!P70 -> 007005
A71: =Support!I77 -> 050SD081519RRS0062 | B71: =Support!$B$1 -> 2019-08-15 | C71: EXT | D71: 114556.78 | E71: ONL | F71: =Main!G71 -> 0000081432 | G71: =Main!H71 -> REMIT001 | H71: =Main!I71 -> 1 | I71: =Main!J71 -> 1 | K71: =Support!$B$3 -> 2019-08-15 | M71: =Main!$B$4 -> Riverboat Rev Sharing 2019-08 | N71: AS | O71: =Main!$B$3 -> Riverboat Rev Sharing 2019-08 | P71: =Support!$B$2 -> 2019-08-15 | Q71: 114556.78 | R71: =Main!E71 -> 114556.78 | S71: =Main!$B$3 -> Riverboat Rev Sharing 2019-08 | T71: =Main!L71 -> 00050 | U71: =Main!N71 -> 562000 | V71: =Main!M71 -> 37060 | W71: =Main!O71 -> 10000 | X71: =Main!K71 -> C62 | Y71: =Support!$B$10 -> 2020 | Z71: =Support!$B$4 -> 2019-08-15 | AA71: =Main!P71 -> 007005
A72: =Support!I78 -> 050SD081519RRS0063 | B72: =Support!$B$1 -> 2019-08-15 | C72: EXT | D72: 76092.76 | E72: ONL | F72: =Main!G72 -> 0000082977 | G72: =Main!H72 -> REMIT001 | H72: =Main!I72 -> 1 | I72: =Main!J72 -> 1 | K72: =Support!$B$3 -> 2019-08-15 | M72: =Main!$B$4 -> Riverboat Rev Sharing 2019-08 | N72: AS | O72: =Main!$B$3 -> Riverboat Rev Sharing 2019-08 | P72: =Support!$B$2 -> 2019-08-15 | Q72: 76092.76 | R72: =Main!E72 -> 76092.76 | S72: =Main!$B$3 -> Riverboat Rev Sharing 2019-08 | T72: =Main!L72 -> 00050 | U72: =Main!N72 -> 562000 | V72: =Main!M72 -> 37060 | W72: =Main!O72 -> 10000 | X72: =Main!K72 -> C63 | Y72: =Support!$B$10 -> 2020 | Z72: =Support!$B$4 -> 2019-08-15 | AA72: =Main!P72 -> 007005
A73: =Support!I79 -> 050SD081519RRS0064 | B73: =Support!$B$1 -> 2019-08-15 | C73: EXT | D73: 973554.9 | E73: ONL | F73: =Main!G73 -> 0000082978 | G73: =Main!H73 -> REMIT001 | H73: =Main!I73 -> 1 | I73: =Main!J73 -> 1 | K73: =Support!$B$3 -> 2019-08-15 | M73: =Main!$B$4 -> Riverboat Rev Sharing 2019-08 | N73: AS | O73: =Main!$B$3 -> Riverboat Rev Sharing 2019-08 | P73: =Support!$B$2 -> 2019-08-15 | Q73: 973554.9 | R73: =Main!E73 -> 973554.9 | S73: =Main!$B$3 -> Riverboat Rev Sharing 2019-08 | T73: =Main!L73 -> 00050 | U73: =Main!N73 -> 562000 | V73: =Main!M73 -> 37060 | W73: =Main!O73 -> 10000 | X73: =Main!K73 -> C64 | Y73: =Support!$B$10 -> 2020 | Z73: =Support!$B$4 -> 2019-08-15 | AA73: =Main!P73 -> 007005
A74: =Support!I80 -> 050SD081519RRS0065 | B74: =Support!$B$1 -> 2019-08-15 | C74: EXT | D74: 153488.79 | E74: ONL | F74: =Main!G74 -> 0000075465 | G74: =Main!H74 -> REMIT001 | H74: =Main!I74 -> 1 | I74: =Main!J74 -> 1 | K74: =Support!$B$3 -> 2019-08-15 | M74: =Main!$B$4 -> Riverboat Rev Sharing 2019-08 | N74: AS | O74: =Main!$B$3 -> Riverboat Rev Sharing 2019-08 | P74: =Support!$B$2 -> 2019-08-15 | Q74: 153488.79 | R74: =Main!E74 -> 153488.79 | S74: =Main!$B$3 -> Riverboat Rev Sharing 2019-08 | T74: =Main!L74 -> 00050 | U74: =Main!N74 -> 562000 | V74: =Main!M74 -> 37060 | W74: =Main!O74 -> 10000 | X74: =Main!K74 -> C65 | Y74: =Support!$B$10 -> 2020 | Z74: =Support!$B$4 -> 2019-08-15 | AA74: =Main!P74 -> 007005
A75: =Support!I81 -> 050SD081519RRS0066 | B75: =Support!$B$1 -> 2019-08-15 | C75: EXT | D75: 79392.39 | E75: ONL | F75: =Main!G75 -> 0000075464 | G75: =Main!H75 -> REMIT001 | H75: =Main!I75 -> 1 | I75: =Main!J75 -> 1 | K75: =Support!$B$3 -> 2019-08-15 | M75: =Main!$B$4 -> Riverboat Rev Sharing 2019-08 | N75: AS | O75: =Main!$B$3 -> Riverboat Rev Sharing 2019-08 | P75: =Support!$B$2 -> 2019-08-15 | Q75: 79392.39 | R75: =Main!E75 -> 79392.39 | S75: =Main!$B$3 -> Riverboat Rev Sharing 2019-08 | T75: =Main!L75 -> 00050 | U75: =Main!N75 -> 562000 | V75: =Main!M75 -> 37060 | W75: =Main!O75 -> 10000 | X75: =Main!K75 -> C66 | Y75: =Support!$B$10 -> 2020 | Z75: =Support!$B$4 -> 2019-08-15 | AA75: =Main!P75 -> 007005
A76: =Support!I82 -> 050SD081519RRS0067 | B76: =Support!$B$1 -> 2019-08-15 | C76: EXT | D76: 224889.8 | E76: ONL | F76: =Main!G76 -> 0000077906 | G76: =Main!H76 -> REMIT001 | H76: =Main!I76 -> 1 | I76: =Main!J76 -> 1 | K76: =Support!$B$3 -> 2019-08-15 | M76: =Main!$B$4 -> Riverboat Rev Sharing 2019-08 | N76: AS | O76: =Main!$B$3 -> Riverboat Rev Sharing 2019-08 | P76: =Support!$B$2 -> 2019-08-15 | Q76: 224889.8 | R76: =Main!E76 -> 224889.8 | S76: =Main!$B$3 -> Riverboat Rev Sharing 2019-08 | T76: =Main!L76 -> 00050 | U76: =Main!N76 -> 562000 | V76: =Main!M76 -> 37060 | W76: =Main!O76 -> 10000 | X76: =Main!K76 -> C67 | Y76: =Support!$B$10 -> 2020 | Z76: =Support!$B$4 -> 2019-08-15 | AA76: =Main!P76 -> 007005
A77: =Support!I83 -> 050SD081519RRS0068 | B77: =Support!$B$1 -> 2019-08-15 | C77: EXT | D77: 155034.93 | E77: ONL | F77: =Main!G77 -> 0000075352 | G77: =Main!H77 -> REMIT001 | H77: =Main!I77 -> 1 | I77: =Main!J77 -> 1 | K77: =Support!$B$3 -> 2019-08-15 | M77: =Main!$B$4 -> Riverboat Rev Sharing 2019-08 | N77: AS | O77: =Main!$B$3 -> Riverboat Rev Sharing 2019-08 | P77: =Support!$B$2 -> 2019-08-15 | Q77: 155034.93 | R77: =Main!E77 -> 155034.93 | S77: =Main!$B$3 -> Riverboat Rev Sharing 2019-08 | T77: =Main!L77 -> 00050 | U77: =Main!N77 -> 562000 | V77: =Main!M77 -> 37060 | W77: =Main!O77 -> 10000 | X77: =Main!K77 -> C68 | Y77: =Support!$B$10 -> 2020 | Z77: =Support!$B$4 -> 2019-08-15 | AA77: =Main!P77 -> 007005
A78: =Support!I84 -> 050SD081519RRS0069 | B78: =Support!$B$1 -> 2019-08-15 | C78: EXT | D78: 170715.55 | E78: ONL | F78: =Main!G78 -> 0000082979 | G78: =Main!H78 -> REMIT001 | H78: =Main!I78 -> 1 | I78: =Main!J78 -> 1 | K78: =Support!$B$3 -> 2019-08-15 | M78: =Main!$B$4 -> Riverboat Rev Sharing 2019-08 | N78: AS | O78: =Main!$B$3 -> Riverboat Rev Sharing 2019-08 | P78: =Support!$B$2 -> 2019-08-15 | Q78: 170715.55 | R78: =Main!E78 -> 170715.55 | S78: =Main!$B$3 -> Riverboat Rev Sharing 2019-08 | T78: =Main!L78 -> 00050 | U78: =Main!N78 -> 562000 | V78: =Main!M78 -> 37060 | W78: =Main!O78 -> 10000 | X78: =Main!K78 -> C69 | Y78: =Support!$B$10 -> 2020 | Z78: =Support!$B$4 -> 2019-08-15 | AA78: =Main!P78 -> 007005
A79: =Support!I85 -> 050SD081519RRS0070 | B79: =Support!$B$1 -> 2019-08-15 | C79: EXT | D79: 103028.83 | E79: ONL | F79: =Main!G79 -> 0000077690 | G79: =Main!H79 -> REMIT001 | H79: =Main!I79 -> 1 | I79: =Main!J79 -> 1 | K79: =Support!$B$3 -> 2019-08-15 | M79: =Main!$B$4 -> Riverboat Rev Sharing 2019-08 | N79: AS | O79: =Main!$B$3 -> Riverboat Rev Sharing 2019-08 | P79: =Support!$B$2 -> 2019-08-15 | Q79: 103028.83 | R79: =Main!E79 -> 103028.83 | S79: =Main!$B$3 -> Riverboat Rev Sharing 2019-08 | T79: =Main!L79 -> 00050 | U79: =Main!N79 -> 562000 | V79: =Main!M79 -> 37060 | W79: =Main!O79 -> 10000 | X79: =Main!K79 -> C70 | Y79: =Support!$B$10 -> 2020 | Z79: =Support!$B$4 -> 2019-08-15 | AA79: =Main!P79 -> 007005
A80: =Support!I86 -> 050SD081519RRS0071 | B80: =Support!$B$1 -> 2019-08-15 | C80: EXT | D80: 1581278.08 | E80: ONL | F80: =Main!G80 -> 0000082980 | G80: =Main!H80 -> REMIT001 | H80: =Main!I80 -> 1 | I80: =Main!J80 -> 1 | K80: =Support!$B$3 -> 2019-08-15 | M80: =Main!$B$4 -> Riverboat Rev Sharing 2019-08 | N80: AS | O80: =Main!$B$3 -> Riverboat Rev Sharing 2019-08 | P80: =Support!$B$2 -> 2019-08-15 | Q80: 1581278.08 | R80: =Main!E80 -> 1581278.08 | S80: =Main!$B$3 -> Riverboat Rev Sharing 2019-08 | T80: =Main!L80 -> 00050 | U80: =Main!N80 -> 562000 | V80: =Main!M80 -> 37060 | W80: =Main!O80 -> 10000 | X80: =Main!K80 -> C71 | Y80: =Support!$B$10 -> 2020 | Z80: =Support!$B$4 -> 2019-08-15 | AA80: =Main!P80 -> 007005
A81: =Support!I87 -> 050SD081519RRS0072 | B81: =Support!$B$1 -> 2019-08-15 | C81: EXT | D81: 143246.33 | E81: ONL | F81: =Main!G81 -> 0000075171 | G81: =Main!H81 -> REMIT001 | H81: =Main!I81 -> 1 | I81: =Main!J81 -> 1 | K81: =Support!$B$3 -> 2019-08-15 | M81: =Main!$B$4 -> Riverboat Rev Sharing 2019-08 | N81: AS | O81: =Main!$B$3 -> Riverboat Rev Sharing 2019-08 | P81: =Support!$B$2 -> 2019-08-15 | Q81: 143246.33 | R81: =Main!E81 -> 143246.33 | S81: =Main!$B$3 -> Riverboat Rev Sharing 2019-08 | T81: =Main!L81 -> 00050 | U81: =Main!N81 -> 562000 | V81: =Main!M81 -> 37060 | W81: =Main!O81 -> 10000 | X81: =Main!K81 -> C72 | Y81: =Support!$B$10 -> 2020 | Z81: =Support!$B$4 -> 2019-08-15 | AA81: =Main!P81 -> 007005
A82: =Support!I88 -> 050SD081519RRS0073 | B82: =Support!$B$1 -> 2019-08-15 | C82: EXT | D82: 263235.34 | E82: ONL | F82: =Main!G82 -> 0000076143 | G82: =Main!H82 -> REMIT001 | H82: =Main!I82 -> 1 | I82: =Main!J82 -> 1 | K82: =Support!$B$3 -> 2019-08-15 | M82: =Main!$B$4 -> Riverboat Rev Sharing 2019-08 | N82: AS | O82: =Main!$B$3 -> Riverboat Rev Sharing 2019-08 | P82: =Support!$B$2 -> 2019-08-15 | Q82: 263235.34 | R82: =Main!E82 -> 263235.34 | S82: =Main!$B$3 -> Riverboat Rev Sharing 2019-08 | T82: =Main!L82 -> 00050 | U82: =Main!N82 -> 562000 | V82: =Main!M82 -> 37060 | W82: =Main!O82 -> 10000 | X82: =Main!K82 -> C73 | Y82: =Support!$B$10 -> 2020 | Z82: =Support!$B$4 -> 2019-08-15 | AA82: =Main!P82 -> 007005
A83: =Support!I89 -> 050SD081519RRS0074 | B83: =Support!$B$1 -> 2019-08-15 | C83: EXT | D83: 124117.99 | E83: ONL | F83: =Main!G83 -> 0000082981 | G83: =Main!H83 -> REMIT001 | H83: =Main!I83 -> 1 | I83: =Main!J83 -> 1 | K83: =Support!$B$3 -> 2019-08-15 | M83: =Main!$B$4 -> Riverboat Rev Sharing 2019-08 | N83: AS | O83: =Main!$B$3 -> Riverboat Rev Sharing 2019-08 | P83: =Support!$B$2 -> 2019-08-15 | Q83: 124117.99 | R83: =Main!E83 -> 124117.99 | S83: =Main!$B$3 -> Riverboat Rev Sharing 2019-08 | T83: =Main!L83 -> 00050 | U83: =Main!N83 -> 562000 | V83: =Main!M83 -> 37060 | W83: =Main!O83 -> 10000 | X83: =Main!K83 -> C74 | Y83: =Support!$B$10 -> 2020 | Z83: =Support!$B$4 -> 2019-08-15 | AA83: =Main!P83 -> 007005
A84: =Support!I90 -> 050SD081519RRS0075 | B84: =Support!$B$1 -> 2019-08-15 | C84: EXT | D84: 138400.56 | E84: ONL | F84: =Main!G84 -> 0000075170 | G84: =Main!H84 -> REMIT001 | H84: =Main!I84 -> 1 | I84: =Main!J84 -> 1 | K84: =Support!$B$3 -> 2019-08-15 | M84: =Main!$B$4 -> Riverboat Rev Sharing 2019-08 | N84: AS | O84: =Main!$B$3 -> Riverboat Rev Sharing 2019-08 | P84: =Support!$B$2 -> 2019-08-15 | Q84: 138400.56 | R84: =Main!E84 -> 138400.56 | S84: =Main!$B$3 -> Riverboat Rev Sharing 2019-08 | T84: =Main!L84 -> 00050 | U84: =Main!N84 -> 562000 | V84: =Main!M84 -> 37060 | W84: =Main!O84 -> 10000 | X84: =Main!K84 -> C75 | Y84: =Support!$B$10 -> 2020 | Z84: =Support!$B$4 -> 2019-08-15 | AA84: =Main!P84 -> 007005
A85: =Support!I91 -> 050SD081519RRS0076 | B85: =Support!$B$1 -> 2019-08-15 | C85: EXT | D85: 202509.23 | E85: ONL | F85: =Main!G85 -> 0000082982 | G85: =Main!H85 -> REMIT001 | H85: =Main!I85 -> 1 | I85: =Main!J85 -> 1 | K85: =Support!$B$3 -> 2019-08-15 | M85: =Main!$B$4 -> Riverboat Rev Sharing 2019-08 | N85: AS | O85: =Main!$B$3 -> Riverboat Rev Sharing 2019-08 | P85: =Support!$B$2 -> 2019-08-15 | Q85: 202509.23 | R85: =Main!E85 -> 202509.23 | S85: =Main!$B$3 -> Riverboat Rev Sharing 2019-08 | T85: =Main!L85 -> 00050 | U85: =Main!N85 -> 562000 | V85: =Main!M85 -> 37060 | W85: =Main!O85 -> 10000 | X85: =Main!K85 -> C76 | Y85: =Support!$B$10 -> 2020 | Z85: =Support!$B$4 -> 2019-08-15 | AA85: =Main!P85 -> 007005
A86: =Support!I92 -> 050SD081519RRS0077 | B86: =Support!$B$1 -> 2019-08-15 | C86: EXT | D86: 127216.2 | E86: ONL | F86: =Main!G86 -> 0000079009 | G86: =Main!H86 -> REMIT001 | H86: =Main!I86 -> 1 | I86: =Main!J86 -> 1 | K86: =Support!$B$3 -> 2019-08-15 | M86: =Main!$B$4 -> Riverboat Rev Sharing 2019-08 | N86: AS | O86: =Main!$B$3 -> Riverboat Rev Sharing 2019-08 | P86: =Support!$B$2 -> 2019-08-15 | Q86: 127216.2 | R86: =Main!E86 -> 127216.2 | S86: =Main!$B$3 -> Riverboat Rev Sharing 2019-08 | T86: =Main!L86 -> 00050 | U86: =Main!N86 -> 562000 | V86: =Main!M86 -> 37060 | W86: =Main!O86 -> 10000 | X86: =Main!K86 -> C77 | Y86: =Support!$B$10 -> 2020 | Z86: =Support!$B$4 -> 2019-08-15 | AA86: =Main!P86 -> 007005
A87: =Support!I93 -> 050SD081519RRS0078 | B87: =Support!$B$1 -> 2019-08-15 | C87: EXT | D87: 0 | E87: ONL | F87: =Main!G87 -> 0000075193 | G87: =Main!H87 -> REMIT001 | H87: =Main!I87 -> 1 | I87: =Main!J87 -> 1 | K87: =Support!$B$3 -> 2019-08-15 | M87: =Main!$B$4 -> Riverboat Rev Sharing 2019-08 | N87: AS | O87: =Main!$B$3 -> Riverboat Rev Sharing 2019-08 | P87: =Support!$B$2 -> 2019-08-15 | Q87: 0 | R87: =Main!E87 -> 0 | S87: =Main!$B$3 -> Riverboat Rev Sharing 2019-08 | T87: =Main!L87 -> 00050 | U87: =Main!N87 -> 562000 | V87: =Main!M87 -> 37060 | W87: =Main!O87 -> 10000 | X87: =Main!K87 -> C78 | Y87: =Support!$B$10 -> 2020 | Z87: =Support!$B$4 -> 2019-08-15 | AA87: =Main!P87 -> 007005
A88: =Support!I94 -> 050SD081519RRS0079 | B88: =Support!$B$1 -> 2019-08-15 | C88: EXT | D88: 1023535.02 | E88: ONL | F88: =Main!G88 -> 0000079010 | G88: =Main!H88 -> REMIT001 | H88: =Main!I88 -> 1 | I88: =Main!J88 -> 1 | K88: =Support!$B$3 -> 2019-08-15 | M88: =Main!$B$4 -> Riverboat Rev Sharing 2019-08 | N88: AS | O88: =Main!$B$3 -> Riverboat Rev Sharing 2019-08 | P88: =Support!$B$2 -> 2019-08-15 | Q88: 1023535.02 | R88: =Main!E88 -> 1023535.02 | S88: =Main!$B$3 -> Riverboat Rev Sharing 2019-08 | T88: =Main!L88 -> 00050 | U88: =Main!N88 -> 562000 | V88: =Main!M88 -> 37060 | W88: =Main!O88 -> 10000 | X88: =Main!K88 -> C79 | Y88: =Support!$B$10 -> 2020 | Z88: =Support!$B$4 -> 2019-08-15 | AA88: =Main!P88 -> 007005
A89: =Support!I95 -> 050SD081519RRS0080 | B89: =Support!$B$1 -> 2019-08-15 | C89: EXT | D89: 94403.6 | E89: ONL | F89: =Main!G89 -> 0000082983 | G89: =Main!H89 -> REMIT001 | H89: =Main!I89 -> 1 | I89: =Main!J89 -> 1 | K89: =Support!$B$3 -> 2019-08-15 | M89: =Main!$B$4 -> Riverboat Rev Sharing 2019-08 | N89: AS | O89: =Main!$B$3 -> Riverboat Rev Sharing 2019-08 | P89: =Support!$B$2 -> 2019-08-15 | Q89: 94403.6 | R89: =Main!E89 -> 94403.6 | S89: =Main!$B$3 -> Riverboat Rev Sharing 2019-08 | T89: =Main!L89 -> 00050 | U89: =Main!N89 -> 562000 | V89: =Main!M89 -> 37060 | W89: =Main!O89 -> 10000 | X89: =Main!K89 -> C80 | Y89: =Support!$B$10 -> 2020 | Z89: =Support!$B$4 -> 2019-08-15 | AA89: =Main!P89 -> 007005
A90: =Support!I96 -> 050SD081519RRS0081 | B90: =Support!$B$1 -> 2019-08-15 | C90: EXT | D90: 44524.19 | E90: ONL | F90: =Main!G90 -> 0000082984 | G90: =Main!H90 -> REMIT001 | H90: =Main!I90 -> 1 | I90: =Main!J90 -> 1 | K90: =Support!$B$3 -> 2019-08-15 | M90: =Main!$B$4 -> Riverboat Rev Sharing 2019-08 | N90: AS | O90: =Main!$B$3 -> Riverboat Rev Sharing 2019-08 | P90: =Support!$B$2 -> 2019-08-15 | Q90: 44524.19 | R90: =Main!E90 -> 44524.19 | S90: =Main!$B$3 -> Riverboat Rev Sharing 2019-08 | T90: =Main!L90 -> 00050 | U90: =Main!N90 -> 562000 | V90: =Main!M90 -> 37060 | W90: =Main!O90 -> 10000 | X90: =Main!K90 -> C81 | Y90: =Support!$B$10 -> 2020 | Z90: =Support!$B$4 -> 2019-08-15 | AA90: =Main!P90 -> 007005
A91: =Support!I97 -> 050SD081519RRS0082 | B91: =Support!$B$1 -> 2019-08-15 | C91: EXT | D91: 0 | E91: ONL | F91: =Main!G91 -> 0000076188 | G91: =Main!H91 -> REMIT001 | H91: =Main!I91 -> 1 | I91: =Main!J91 -> 1 | K91: =Support!$B$3 -> 2019-08-15 | M91: =Main!$B$4 -> Riverboat Rev Sharing 2019-08 | N91: AS | O91: =Main!$B$3 -> Riverboat Rev Sharing 2019-08 | P91: =Support!$B$2 -> 2019-08-15 | Q91: 0 | R91: =Main!E91 -> 0 | S91: =Main!$B$3 -> Riverboat Rev Sharing 2019-08 | T91: =Main!L91 -> 00050 | U91: =Main!N91 -> 562000 | V91: =Main!M91 -> 37060 | W91: =Main!O91 -> 10000 | X91: =Main!K91 -> C82 | Y91: =Support!$B$10 -> 2020 | Z91: =Support!$B$4 -> 2019-08-15 | AA91: =Main!P91 -> 007005
A92: =Support!I98 -> 050SD081519RRS0083 | B92: =Support!$B$1 -> 2019-08-15 | C92: EXT | D92: 96038.6 | E92: ONL | F92: =Main!G92 -> 0000075194 | G92: =Main!H92 -> REMIT001 | H92: =Main!I92 -> 1 | I92: =Main!J92 -> 1 | K92: =Support!$B$3 -> 2019-08-15 | M92: =Main!$B$4 -> Riverboat Rev Sharing 2019-08 | N92: AS | O92: =Main!$B$3 -> Riverboat Rev Sharing 2019-08 | P92: =Support!$B$2 -> 2019-08-15 | Q92: 96038.6 | R92: =Main!E92 -> 96038.6 | S92: =Main!$B$3 -> Riverboat Rev Sharing 2019-08 | T92: =Main!L92 -> 00050 | U92: =Main!N92 -> 562000 | V92: =Main!M92 -> 37060 | W92: =Main!O92 -> 10000 | X92: =Main!K92 -> C83 | Y92: =Support!$B$10 -> 2020 | Z92: =Support!$B$4 -> 2019-08-15 | AA92: =Main!P92 -> 007005
A93: =Support!I99 -> 050SD081519RRS0084 | B93: =Support!$B$1 -> 2019-08-15 | C93: EXT | D93: 638883 | E93: ONL | F93: =Main!G93 -> 0000082985 | G93: =Main!H93 -> REMIT001 | H93: =Main!I93 -> 1 | I93: =Main!J93 -> 1 | K93: =Support!$B$3 -> 2019-08-15 | M93: =Main!$B$4 -> Riverboat Rev Sharing 2019-08 | N93: AS | O93: =Main!$B$3 -> Riverboat Rev Sharing 2019-08 | P93: =Support!$B$2 -> 2019-08-15 | Q93: 638883 | R93: =Main!E93 -> 638883 | S93: =Main!$B$3 -> Riverboat Rev Sharing 2019-08 | T93: =Main!L93 -> 00050 | U93: =Main!N93 -> 562000 | V93: =Main!M93 -> 37060 | W93: =Main!O93 -> 10000 | X93: =Main!K93 -> C84 | Y93: =Support!$B$10 -> 2020 | Z93: =Support!$B$4 -> 2019-08-15 | AA93: =Main!P93 -> 007005
A94: =Support!I100 -> 050SD081519RRS0085 | B94: =Support!$B$1 -> 2019-08-15 | C94: EXT | D94: 194825.9 | E94: ONL | F94: =Main!G94 -> 0000082986 | G94: =Main!H94 -> REMIT001 | H94: =Main!I94 -> 1 | I94: =Main!J94 -> 1 | K94: =Support!$B$3 -> 2019-08-15 | M94: =Main!$B$4 -> Riverboat Rev Sharing 2019-08 | N94: AS | O94: =Main!$B$3 -> Riverboat Rev Sharing 2019-08 | P94: =Support!$B$2 -> 2019-08-15 | Q94: 194825.9 | R94: =Main!E94 -> 194825.9 | S94: =Main!$B$3 -> Riverboat Rev Sharing 2019-08 | T94: =Main!L94 -> 00050 | U94: =Main!N94 -> 562000 | V94: =Main!M94 -> 37060 | W94: =Main!O94 -> 10000 | X94: =Main!K94 -> C85 | Y94: =Support!$B$10 -> 2020 | Z94: =Support!$B$4 -> 2019-08-15 | AA94: =Main!P94 -> 007005
A95: =Support!I101 -> 050SD081519RRS0086 | B95: =Support!$B$1 -> 2019-08-15 | C95: EXT | D95: 50400.72 | E95: ONL | F95: =Main!G95 -> 0000075196 | G95: =Main!H95 -> REMIT001 | H95: =Main!I95 -> 1 | I95: =Main!J95 -> 1 | K95: =Support!$B$3 -> 2019-08-15 | M95: =Main!$B$4 -> Riverboat Rev Sharing 2019-08 | N95: AS | O95: =Main!$B$3 -> Riverboat Rev Sharing 2019-08 | P95: =Support!$B$2 -> 2019-08-15 | Q95: 50400.72 | R95: =Main!E95 -> 50400.72 | S95: =Main!$B$3 -> Riverboat Rev Sharing 2019-08 | T95: =Main!L95 -> 00050 | U95: =Main!N95 -> 562000 | V95: =Main!M95 -> 37060 | W95: =Main!O95 -> 10000 | X95: =Main!K95 -> C86 | Y95: =Support!$B$10 -> 2020 | Z95: =Support!$B$4 -> 2019-08-15 | AA95: =Main!P95 -> 007005
A96: =Support!I102 -> 050SD081519RRS0087 | B96: =Support!$B$1 -> 2019-08-15 | C96: EXT | D96: 353592.9 | E96: ONL | F96: =Main!G96 -> 0000077907 | G96: =Main!H96 -> REMIT001 | H96: =Main!I96 -> 1 | I96: =Main!J96 -> 1 | K96: =Support!$B$3 -> 2019-08-15 | M96: =Main!$B$4 -> Riverboat Rev Sharing 2019-08 | N96: AS | O96: =Main!$B$3 -> Riverboat Rev Sharing 2019-08 | P96: =Support!$B$2 -> 2019-08-15 | Q96: 353592.9 | R96: =Main!E96 -> 353592.9 | S96: =Main!$B$3 -> Riverboat Rev Sharing 2019-08 | T96: =Main!L96 -> 00050 | U96: =Main!N96 -> 562000 | V96: =Main!M96 -> 37060 | W96: =Main!O96 -> 10000 | X96: =Main!K96 -> C87 | Y96: =Support!$B$10 -> 2020 | Z96: =Support!$B$4 -> 2019-08-15 | AA96: =Main!P96 -> 007005
A97: =Support!I103 -> 050SD081519RRS0088 | B97: =Support!$B$1 -> 2019-08-15 | C97: EXT | D97: 167421.85 | E97: ONL | F97: =Main!G97 -> 0000082987 | G97: =Main!H97 -> REMIT001 | H97: =Main!I97 -> 1 | I97: =Main!J97 -> 1 | K97: =Support!$B$3 -> 2019-08-15 | M97: =Main!$B$4 -> Riverboat Rev Sharing 2019-08 | N97: AS | O97: =Main!$B$3 -> Riverboat Rev Sharing 2019-08 | P97: =Support!$B$2 -> 2019-08-15 | Q97: 167421.85 | R97: =Main!E97 -> 167421.85 | S97: =Main!$B$3 -> Riverboat Rev Sharing 2019-08 | T97: =Main!L97 -> 00050 | U97: =Main!N97 -> 562000 | V97: =Main!M97 -> 37060 | W97: =Main!O97 -> 10000 | X97: =Main!K97 -> C88 | Y97: =Support!$B$10 -> 2020 | Z97: =Support!$B$4 -> 2019-08-15 | AA97: =Main!P97 -> 007005
A98: =Support!I104 -> 050SD081519RRS0089 | B98: =Support!$B$1 -> 2019-08-15 | C98: EXT | D98: 408258.84 | E98: ONL | F98: =Main!G98 -> 0000082952 | G98: =Main!H98 -> REMIT001 | H98: =Main!I98 -> 1 | I98: =Main!J98 -> 1 | K98: =Support!$B$3 -> 2019-08-15 | M98: =Main!$B$4 -> Riverboat Rev Sharing 2019-08 | N98: AS | O98: =Main!$B$3 -> Riverboat Rev Sharing 2019-08 | P98: =Support!$B$2 -> 2019-08-15 | Q98: 408258.84 | R98: =Main!E98 -> 408258.84 | S98: =Main!$B$3 -> Riverboat Rev Sharing 2019-08 | T98: =Main!L98 -> 00050 | U98: =Main!N98 -> 562000 | V98: =Main!M98 -> 37060 | W98: =Main!O98 -> 10000 | X98: =Main!K98 -> C89 | Y98: =Support!$B$10 -> 2020 | Z98: =Support!$B$4 -> 2019-08-15 | AA98: =Main!P98 -> 007005
A99: =Support!I105 -> 050SD081519RRS0090 | B99: =Support!$B$1 -> 2019-08-15 | C99: EXT | D99: 163713.47 | E99: ONL | F99: =Main!G99 -> 0000082953 | G99: =Main!H99 -> REMIT001 | H99: =Main!I99 -> 1 | I99: =Main!J99 -> 1 | K99: =Support!$B$3 -> 2019-08-15 | M99: =Main!$B$4 -> Riverboat Rev Sharing 2019-08 | N99: AS | O99: =Main!$B$3 -> Riverboat Rev Sharing 2019-08 | P99: =Support!$B$2 -> 2019-08-15 | Q99: 163713.47 | R99: =Main!E99 -> 163713.47 | S99: =Main!$B$3 -> Riverboat Rev Sharing 2019-08 | T99: =Main!L99 -> 00050 | U99: =Main!N99 -> 562000 | V99: =Main!M99 -> 37060 | W99: =Main!O99 -> 10000 | X99: =Main!K99 -> C90 | Y99: =Support!$B$10 -> 2020 | Z99: =Support!$B$4 -> 2019-08-15 | AA99: =Main!P99 -> 007005
A100: =Support!I106 -> 050SD081519RRS0091 | B100: =Support!$B$1 -> 2019-08-15 | C100: EXT | D100: 145983.18 | E100: ONL | F100: =Main!G100 -> 0000082954 | G100: =Main!H100 -> REMIT001 | H100: =Main!I100 -> 1 | I100: =Main!J100 -> 1 | K100: =Support!$B$3 -> 2019-08-15 | M100: =Main!$B$4 -> Riverboat Rev Sharing 2019-08 | N100: AS | O100: =Main!$B$3 -> Riverboat Rev Sharing 2019-08 | P100: =Support!$B$2 -> 2019-08-15 | Q100: 145983.18 | R100: =Main!E100 -> 145983.18 | S100: =Main!$B$3 -> Riverboat Rev Sharing 2019-08 | T100: =Main!L100 -> 00050 | U100: =Main!N100 -> 562000 | V100: =Main!M100 -> 37060 | W100: =Main!O100 -> 10000 | X100: =Main!K100 -> C91 | Y100: =Support!$B$10 -> 2020 | Z100: =Support!$B$4 -> 2019-08-15 | AA100: =Main!P100 -> 007005
A101: =Support!I107 -> 050SD081519RRS0092 | B101: =Support!$B$1 -> 2019-08-15 | C101: EXT | D101: 197219.15 | E101: ONL | F101: =Main!G101 -> 0000076691 | G101: =Main!H101 -> REMIT001 | H101: =Main!I101 -> 1 | I101: =Main!J101 -> 1 | K101: =Support!$B$3 -> 2019-08-15 | M101: =Main!$B$4 -> Riverboat Rev Sharing 2019-08 | N101: AS | O101: =Main!$B$3 -> Riverboat Rev Sharing 2019-08 | P101: =Support!$B$2 -> 2019-08-15 | Q101: 197219.15 | R101: =Main!E101 -> 197219.15 | S101: =Main!$B$3 -> Riverboat Rev Sharing 2019-08 | T101: =Main!L101 -> 00050 | U101: =Main!N101 -> 562000 | V101: =Main!M101 -> 37060 | W101: =Main!O101 -> 10000 | X101: =Main!K101 -> C92 | Y101: =Support!$B$10 -> 2020 | Z101: =Support!$B$4 -> 2019-08-15 | AA101: =Main!P101 -> 007005

Sheet County Population (hidden)
A1: County | B1: 2010
A2: Adams | B2: 34387
A3: Allen | B3: 355329
A4: Bartholomew | B4: 76794
A5: Benton | B5: 8854
A6: Blackford | B6: 12766
A7: Boone | B7: 56640
A8: Brown | B8: 15242
A9: Carroll | B9: 20155
A10: Cass | B10: 38966
A11: Clark | B11: 110232
A12: Clay | B12: 26890
A13: Clinton | B13: 33224
A14: Crawford | B14: 10713
A15: Daviess | B15: 31648
A16: Dearborn | B16: 50047
A17: Decatur | B17: 25740
A18: DeKalb | B18: 42223
A19: Delaware | B19: 117671
A20: Dubois | B20: 41889
A21: Elkhart | B21: 197559
A22: Fayette | B22: 24277
A23: Floyd | B23: 74578
A24: Fountain | B24: 17240
A25: Franklin | B25: 23087
A26: Fulton | B26: 20836
A27: Gibson | B27: 33503
A28: Grant | B28: 70061
A29: Greene | B29: 33165
A30: Hamilton | B30: 274569
A31: Hancock | B31: 70002
A32: Harrison | B32: 39364
A33: Hendricks | B33: 145448
A34: Henry | B34: 49462
A35: Howard | B35: 82752
A36: Huntington | B36: 37124
A37: Jackson | B37: 42376
A38: Jasper | B38: 33478
A39: Jay | B39: 21253
A40: Jefferson | B40: 32428
A41: Jennings | B41: 28525
A42: Johnson | B42: 139654
A43: Knox | B43: 38440
A44: Kosciusko | B44: 77358
A45: LaGrange | B45: 37128
A46: Lake | B46: 496005
A47: LaPorte | B47: 111467
A48: Lawrence | B48: 46134
A49: Madison | B49: 131636
A50: Marion | B50: 903393
A51: Marshall | B51: 47051
A52: Martin | B52: 10334
A53: Miami | B53: 36903
A54: Monroe | B54: 137974
A55: Montgomery | B55: 38124
A56: Morgan | B56: 68894
A57: Newton | B57: 14244
A58: Noble | B58: 47536
A59: Ohio | B59: 6128
A60: Orange | B60: 19840
A61: Owen | B61: 21575
A62: Parke | B62: 17339
A63: Perry | B63: 19338
A64: Pike | B64: 12845
A65: Porter | B65: 164343
A66: Posey | B66: 25910
A67: Pulaski | B67: 13402
A68: Putnam | B68: 37963
A69: Randolph | B69: 26171
A70: Ripley | B70: 28818
A71: Rush | B71: 17392
A72: St. Joseph | B72: 266931
A73: Scott | B73: 24181
A74: Shelby | B74: 44436
A75: Spencer | B75: 20952
A76: Starke | B76: 23363
A77: Steuben | B77: 34185
A78: Sullivan | B78: 21475
A79: Switzerland | B79: 10613
A80: Tippecanoe | B80: 172780
A81: Tipton | B81: 15936
A82: Union | B82: 7516
A83: Vanderburgh | B83: 179703
A84: Vermillion | B84: 16212
A85: Vigo | B85: 107848
A86: Wabash | B86: 32888
A87: Warren | B87: 8508
A88: Warrick | B88: 59689
A89: Washington | B89: 28262
A90: Wayne | B90: 68917
A91: Wells | B91: 27636
A92: White | B92: 24643
A93: Whitley | B93: 33292
B94: =SUM(B2:B93) -> 6483802
A96: Source: 2010 Census Data
A98: http://www.stats.indiana.edu/population/PopTotals/historic_counts_counties.asp

Sheet City-Town Population (hidden)
A1: Auditor of State
A2: Population Base Distribution
A4: City/Town Populations
C6: Adjusted 2010 Population
A7: City/Town | C7: 2010 Census | E7: Adjustments | G7: Adjusted Population
A8: Advance town | C8: 477 | G8: =SUM(C8:E8) -> 477
A9: Akron town | C9: 1167 | G9: 1167
A10: Alamo town | C10: 66 | G10: 66
A11: Albany town | C11: 2165 | G11: 2165
A12: Albion town | C12: 2349 | G12: 2349
A13: Alexandria city | C13: 5145 | G13: 5145
A14: Alfordsville town | C14: 101 | G14: 101
A15: Alton town | C15: 55 | G15: 55
A16: Altona town | C16: 197 | G16: 197
A17: Ambia town | C17: 239 | G17: 239
A18: Amboy town | C18: 384 | G18: 384
A19: Amo town | C19: 401 | G19: 401
A20: Anderson city | C20: 56129 | G20: 56129
A21: Andrews town | C21: 1149 | G21: 1149
A22: Angola city | C22: 8612 | G22: 8612
A23: Arcadia town | C23: 1666 | G23: 1666
A24: Argos town | C24: 1691 | G24: 1691
A25: Ashley town | C25: 983 | G25: 983
A26: Atlanta town | C26: 725 | G26: 725
A27: Attica city | C27: 3245 | G27: 3245
A28: Auburn Town | C28: 12731 | G28: 12731
A29: Aurora city | C29: 3750 | G29: 3750
A30: Austin city | C30: 4295 | G30: 4295
A31: Avilla town | C31: 2401 | G31: 2401
A32: Avon town | C32: 12446 | G32: 12446
A33: Bainbridge town | C33: 746 | G33: 746
A34: Bargersville town | C34: 4013 | G34: 4013
A35: Batesville city | C35: 6520 | G35: 6520
A36: Battle Ground town | C36: 1334 | G36: 1334
A37: Bedford city | C37: 13413 | G37: 13413
A38: Beech Grove city | C38: 14192 | G38: 14192
A39: Berne city | C39: 3999 | G39: 3999
A40: Bethany town | C40: 81 | G40: 81
A41: Beverly Shores town | C41: 613 | G41: 613
A42: Bicknell city | C42: 2915 | G42: 2915
A43: Birdseye town | C43: 416 | G43: 416
A44: Bloomfield town | C44: 2405 | G44: 2405
A45: Bloomingdale town | C45: 335 | G45: 335
A46: Bloomington city | C46: 80405 | G46: 80405
A47: Blountsville town | C47: 134 | G47: 134
A48: Bluffton city | C48: 9897 | G48: 9897
A49: Boonville city | C49: 6246 | G49: 6246
A50: Borden town | C50: 808 | G50: 808
A51: Boston town | C51: 138 | G51: 138
A52: Boswell town | C52: 778 | G52: 778
A53: Bourbon town | C53: 1810 | G53: 1810
A54: Brazil city | C54: 7912 | G54: 7912
A55: Bremen town | C55: 4588 | G55: 4588
A56: Bristol town | C56: 1602 | G56: 1602
A57: Brook town | C57: 997 | G57: 997
A58: Brooklyn town | C58: 1598 | G58: 1598
A59: Brooksburg town | C59: 81 | G59: 81
A60: Brookston town | C60: 1554 | G60: 1554
A61: Brookville town | C61: 2596 | G61: 2596
A62: Brownsburg town | C62: 21285 | G62: 21285
A63: Brownstown town | C63: 2947 | G63: 2947
A64: Bruceville town | C64: 478 | G64: 478
A65: Bryant town | C65: 252 | G65: 252
A66: Bunker Hill town | C66: 888 | G66: 888
A67: Burket town | C67: 195 | G67: 195
A68: Burlington town | C68: 603 | G68: 603
A69: Burnettsville town | C69: 346 | G69: 346
A70: Burns Harbor town | C70: 1156 | G70: 1156
A71: Butler city | C71: 2684 | G71: 2684
A72: Cadiz town | C72: 150 | G72: =SUM(C72:E72) -> 150
A73: Cambridge City | C73: 1870 | G73: 1870
A74: Camden town | C74: 611 | G74: 611
A75: Campbellsburg town | C75: 585 | G75: 585
A76: Cannelburg town | C76: 135 | G76: 135
A77: Cannelton city | C77: 1563 | G77: 1563
A78: Carbon town | C78: 397 | G78: 397
A79: Carlisle town | C79: 692 | G79: 692
A80: Carmel city (1)(13) | C80: 79191 | E80: =91648-79191 -> 12457 | G80: 91648
A81: Carthage town | C81: 927 | G81: 927
A82: Cayuga town | C82: 1162 | G82: 1162
A83: Cedar Grove town | C83: 156 | G83: 156
A84: Cedar Lake town | C84: 11560 | G84: 11560
A85: Center Point town | C85: 242 | G85: 242
A86: Centerville town | C86: 2552 | G86: 2552
A87: Chalmers town | C87: 508 | G87: 508
A88: Chandler town | C88: 2887 | G88: 2887
A89: Charlestown city | C89: 7585 | G89: 7585
A90: Chesterfield town | C90: 2547 | G90: 2547
A91: Chesterton town | C91: 13068 | G91: 13068
A92: Chrisney town | C92: 481 | G92: 481
A93: Churubusco town | C93: 1796 | G93: 1796
A94: Cicero town | C94: 4812 | G94: 4812
A95: Clarks Hill town | C95: 611 | G95: 611
A96: Clarksville town | C96: 21724 | G96: 21724
A97: Clay City | C97: 861 | G97: 861
A98: Claypool town | C98: 431 | G98: 431
A99: Clayton town | C99: 972 | G99: 972
A100: Clear Lake town | C100: 339 | G100: 339
A101: Clermont town | C101: 1356 | G101: 1356
A102: Clifford town | C102: 233 | G102: 233
A103: Clinton city | C103: 4893 | G103: 4893
A104: Cloverdale town | C104: 2172 | G104: 2172
A105: Coatesville town | C105: 523 | G105: 523
A106: Colfax town | C106: 691 | G106: 691
A107: Columbia City | C107: 8750 | G107: 8750
A108: Columbus city | C108: 44061 | G108: 44061
A109: Connersville city | C109: 13481 | G109: 13481
A110: Converse town | C110: 1265 | G110: 1265
A111: Corunna town | C111: 254 | G111: 254
A112: Corydon town | C112: 3122 | G112: 3122
A113: Country Club Heights town | C113: 79 | G113: 79
A114: Covington city | C114: 2645 | G114: 2645
A115: Crandall town | C115: 152 | G115: 152
A116: Crane town | C116: 184 | G116: 184
A117: Crawfordsville city | C117: 15915 | G117: 15915
A118: Cromwell town | C118: 512 | G118: 512
A119: Crothersville town | C119: 1591 | G119: 1591
A120: Crown Point city | C120: 27317 | G120: 27317
A121: Crows Nest town | C121: 73 | G121: 73
A122: Culver town | C122: 1353 | G122: 1353
A123: Cumberland town | C123: 5169 | G123: 5169
A124: Cynthiana town | C124: 545 | G124: 545
A125: Dale town | C125: 1593 | G125: 1593
A126: Daleville town | C126: 1647 | G126: 1647
A127: Dana town | C127: 608 | G127: 608
A128: Danville town | C128: 9001 | G128: 9001
A129: Darlington town | C129: 843 | G129: 843
A130: Darmstadt town | C130: 1407 | G130: 1407
A131: Dayton town | C131: 1420 | G131: 1420
A132: De Motte town | C132: 3814 | G132: 3814
A133: Decatur city | C133: 9405 | G133: 9405
A134: Decker town | C134: 249 | G134: 249
A135: Delphi city | C135: 2893 | G135: 2893
A136: Denver town | C136: 482 | G136: =SUM(C136:E136) -> 482
A137: Dillsboro town | C137: 1327 | G137: 1327
A138: Dublin town | C138: 790 | G138: 790
A139: Dugger town | C139: 920 | G139: 920
A140: Dune Acres town | C140: 182 | G140: 182
A141: Dunkirk city | C141: 2362 | G141: 2362
A142: Dunreith town | C142: 177 | G142: 177
A143: Dupont town | C143: 339 | G143: 339
A144: Dyer town | C144: 16390 | G144: 16390
A145: Earl Park town | C145: 348 | G145: 348
A146: East Chicago city | C146: 29698 | G146: 29698
A147: East Germantown town | C147: 410 | G147: 410
A148: Eaton town | C148: 1805 | G148: 1805
A149: Economy town | C149: 187 | G149: 187
A150: Edgewood town | C150: 1913 | G150: 1913
A151: Edinburgh town | C151: 4480 | G151: 4480
A152: Edwardsport town | C152: 303 | G152: 303
A153: Elberfeld town | C153: 625 | G153: 625
A154: Elizabeth town | C154: 162 | G154: 162
A155: Elizabethtown town | C155: 504 | G155: 504
A156: Elkhart city | C156: 50949 | G156: 50949
A157: Ellettsville town | C157: 6378 | G157: 6378
A158: Elnora town | C158: 640 | G158: 640
A159: Elwood city | C159: 8614 | G159: 8614
A160: English town | C160: 645 | G160: 645
A161: Etna Green town | C161: 586 | G161: 586
A162: Evansville city | C162: 117429 | G162: 117429
A163: Fairland town (12) | C163: 315 | E163: 272 | G163: 587
A164: Fairmount town | C164: 2954 | G164: 2954
A165: Fairview Park town | C165: 1386 | G165: 1386
A166: Farmersburg town | C166: 1118 | G166: 1118
A167: Farmland town | C167: 1333 | G167: 1333
A168: Ferdinand town | C168: 2157 | G168: 2157
A169: Fillmore town | C169: 533 | G169: 533
A170: Fishers town (2) | C170: 76794 | E170: 9665 | G170: 86459
A171: Flora town | C171: 2036 | G171: 2036
A172: Fort Branch town | C172: 2771 | G172: 2771
A173: Fort Wayne city (11) | C173: 253691 | E173: -2 | G173: 253689
A174: Fortville town | C174: 3929 | G174: 3929
A175: Fountain City | C175: 796 | G175: 796
A176: Fowler town | C176: 2317 | G176: 2317
A177: Fowlerton town | C177: 261 | G177: 261
A178: Francesville town | C178: 879 | G178: 879
A179: Francisco town | C179: 469 | G179: 469
A180: Frankfort city | C180: 16422 | G180: 16422
A181: Franklin city | C181: 23712 | G181: 23712
A182: Frankton town | C182: 1862 | G182: 1862
A183: Fredericksburg town (3) | C183: 85 | E183: -85 | G183: 0
A184: Fremont town | C184: 2138 | G184: 2138
A185: French Lick town | C185: 1807 | G185: 1807
A186: Fulton town | C186: 333 | G186: 333
A187: Galveston town | C187: 1311 | G187: 1311
A188: Garrett city | C188: 6286 | G188: 6286
A189: Gary city | C189: 80294 | G189: 80294
A190: Gas City (4) | C190: 5965 | E190: 202 | G190: 6167
A191: Gaston town | C191: 871 | G191: 871
A192: Geneva town | C192: 1293 | G192: 1293
A193: Gentryville town | C193: 268 | G193: 268
A194: Georgetown town (Floyd County) | C194: 2876 | G194: 2876
A195: Glenwood town | C195: 250 | G195: 250
A196: Goodland town | C196: 1043 | G196: 1043
A197: Goshen city | C197: 31719 | G197: 31719
A198: Gosport town | C198: 826 | G198: 826
A199: Grabill town | C199: 1053 | G199: 1053
A200: Grandview town | C200: 749 | G200: =SUM(C200:E200) -> 749
A201: Greencastle city | C201: 10326 | G201: 10326
A202: Greendale city | C202: 4520 | G202: 4520
... 389 more rows

Sheet Review (hidden)
B1: 33 Million Report | E1: City-Town Population (adjusted balance)
B2: City/Town | C2: Population | E2: Population | F2: City/Town | H2: Variance | I2: Detail
A3: ='Website Report'!C53 -> City/Town | B3: ='Website Report'!E53 -> ADVANCE | C3: ='Website Report'!G53 -> 477 | E3: ='City-Town Population'!G8 -> 477 | F3: ='City-Town Population'!A8 -> Advance town | H3: =E3-C3 -> 0
A4: ='Website Report'!C209 -> City/Town | B4: ='Website Report'!E209 -> AKRON | C4: ='Website Report'!G209 -> 1167 | E4: ='City-Town Population'!G9 -> 1167 | F4: ='City-Town Population'!A9 -> Akron town | H4: 0
A5: ='Website Report'!C479 -> City/Town | B5: ='Website Report'!E479 -> ALAMO | C5: ='Website Report'!G479 -> 66 | E5: ='City-Town Population'!G10 -> 66 | F5: ='City-Town Population'!A10 -> Alamo town | H5: 0
A6: ='Website Report'!C149 -> City/Town | B6: ='Website Report'!E149 -> ALBANY | C6: ='Website Report'!G149 -> 1961 | E6: ='City-Town Population'!G11 -> 2165 | F6: ='City-Town Population'!A11 -> Albany town | H6: 204 | I6: Variance is due to City/Town being located in multiple taxing districtcs.
A7: ='Website Report'!C511 -> City/Town | B7: ='Website Report'!E511 -> ALBION | C7: ='Website Report'!G511 -> 2349 | E7: ='City-Town Population'!G12 -> 2349 | F7: ='City-Town Population'!A12 -> Albion town | H7: 0
A8: ='Website Report'!C412 -> City/Town | B8: ='Website Report'!E412 -> ALEXANDRIA | C8: ='Website Report'!G412 -> 5145 | E8: ='City-Town Population'!G13 -> 5145 | F8: ='City-Town Population'!A13 -> Alexandria city | H8: 0
A9: ='Website Report'!C119 -> City/Town | B9: ='Website Report'!E119 -> ALFORDSVILLE | C9: ='Website Report'!G119 -> 101 | E9: ='City-Town Population'!G14 -> 101 | F9: ='City-Town Population'!A14 -> Alfordsville town | H9: 0
A10: ='Website Report'!C111 -> City/Town | B10: ='Website Report'!E111 -> ALTON | C10: ='Website Report'!G111 -> 55 | E10: ='City-Town Population'!G15 -> 55 | F10: ='City-Town Population'!A15 -> Alton town | H10: 0
A11: ='Website Report'!C137 -> City/Town | B11: ='Website Report'!E137 -> ALTONA | C11: ='Website Report'!G137 -> 197 | E11: ='City-Town Population'!G16 -> 197 | F11: ='City-Town Population'!A16 -> Altona town | H11: 0
A12: ='Website Report'!C37 -> City/Town | B12: ='Website Report'!E37 -> AMBIA | C12: ='Website Report'!G37 -> 239 | E12: ='City-Town Population'!G17 -> 239 | F12: ='City-Town Population'!A17 -> Ambia town | H12: 0
A13: ='Website Report'!C464 -> City/Town | B13: ='Website Report'!E464 -> AMBOY | C13: ='Website Report'!G464 -> 384 | E13: ='City-Town Population'!G18 -> 384 | F13: ='City-Town Population'!A18 -> Amboy town | H13: 0
A14: ='Website Report'!C275 -> City/Town | B14: ='Website Report'!E275 -> AMO | C14: ='Website Report'!G275 -> 401 | E14: ='City-Town Population'!G19 -> 401 | F14: ='City-Town Population'!A19 -> Amo town | H14: 0
A15: ='Website Report'!C413 -> City/Town | B15: ='Website Report'!E413 -> ANDERSON | C15: ='Website Report'!G413 -> 56129 | E15: ='City-Town Population'!G20 -> 56129 | F15: ='City-Town Population'!A20 -> Anderson city | H15: 0
A16: ='Website Report'!C315 -> City/Town | B16: ='Website Report'!E315 -> ANDREWS | C16: ='Website Report'!G315 -> 1149 | E16: ='City-Town Population'!G21 -> 1149 | F16: ='City-Town Population'!A21 -> Andrews town | H16: 0
A17: ='Website Report'!C656 -> City/Town | B17: ='Website Report'!E656 -> ANGOLA | C17: ='Website Report'!G656 -> 8612 | E17: ='City-Town Population'!G22 -> 8612 | F17: ='City-Town Population'!A22 -> Angola city | H17: 0
A18: ='Website Report'!C253 -> City/Town | B18: ='Website Report'!E253 -> ARCADIA | C18: ='Website Report'!G253 -> 1666 | E18: ='City-Town Population'!G23 -> 1666 | F18: ='City-Town Population'!A23 -> Arcadia town | H18: 0
A19: ='Website Report'!C449 -> City/Town | B19: ='Website Report'!E449 -> ARGOS | C19: ='Website Report'!G449 -> 1691 | E19: ='City-Town Population'!G24 -> 1691 | F19: ='City-Town Population'!A24 -> Argos town | H19: 0
A20: ='Website Report'!C138 -> City/Town | B20: ='Website Report'!E138 -> ASHLEY | C20: ='Website Report'!G138 -> 644 | E20: ='City-Town Population'!G25 -> 983 | F20: ='City-Town Population'!A25 -> Ashley town | H20: 339 | I20: Variance is due to City/Town being located in multiple taxing districtcs.
A21: ='Website Report'!C254 -> City/Town | B21: ='Website Report'!E254 -> ATLANTA | C21: ='Website Report'!G254 -> 725 | E21: ='City-Town Population'!G26 -> 725 | F21: ='City-Town Population'!A26 -> Atlanta town | H21: 0
A22: ='Website Report'!C189 -> City/Town | B22: ='Website Report'!E189 -> ATTICA | C22: ='Website Report'!G189 -> 3245 | E22: ='City-Town Population'!G27 -> 3245 | F22: ='City-Town Population'!A27 -> Attica city | H22: 0
A23: ='Website Report'!C139 -> City/Town | B23: ='Website Report'!E139 -> AUBURN | C23: ='Website Report'!G139 -> 12731 | E23: ='City-Town Population'!G28 -> 12731 | F23: ='City-Town Population'!A28 -> Auburn Town | H23: 0
B24: Blank | E24: ='City-Town Population'!G29 -> 3750 | F24: ='City-Town Population'!A29 -> Aurora city | H24: 3750 | I24: Dearborn County - Does not receive riverboat sharing
A25: ='Website Report'!C626 -> City/Town | B25: ='Website Report'!E626 -> AUSTIN | C25: ='Website Report'!G626 -> 4295 | E25: ='City-Town Population'!G30 -> 4295 | F25: ='City-Town Population'!A30 -> Austin city | H25: 0
A26: ='Website Report'!C512 -> City/Town | B26: ='Website Report'!E512 -> AVILLA | C26: ='Website Report'!G512 -> 2401 | E26: ='City-Town Population'!G31 -> 2401 | F26: ='City-Town Population'!A31 -> Avilla town | H26: 0
A27: ='Website Report'!C276 -> City/Town | B27: ='Website Report'!E276 -> AVON | C27: ='Website Report'!G276 -> 12446 | E27: ='City-Town Population'!G32 -> 12446 | F27: ='City-Town Population'!A32 -> Avon town | H27: 0
A28: ='Website Report'!C576 -> City/Town | B28: ='Website Report'!E576 -> BAINBRIDGE | C28: ='Website Report'!G576 -> 746 | E28: ='City-Town Population'!G33 -> 746 | F28: ='City-Town Population'!A33 -> Bainbridge town | H28: 0
A29: ='Website Report'!C359 -> City/Town | B29: ='Website Report'!E359 -> BARGERSVILLE | C29: ='Website Report'!G359 -> 4013 | E29: ='City-Town Population'!G34 -> 4013 | F29: ='City-Town Population'!A34 -> Bargersville town | H29: 0
A30: ='Website Report'!C200 -> City/Town | B30: ='Website Report'!E200 -> BATESVILLE | C30: ='Website Report'!G200 -> 1639 | E30: ='City-Town Population'!G35 -> 6520 | F30: ='City-Town Population'!A35 -> Batesville city | H30: 4881 | I30: Variance is due to City/Town being located in multiple taxing districtcs.
A31: ='Website Report'!C676 -> City/Town | B31: ='Website Report'!E676 -> BATTLE GROUND | C31: ='Website Report'!G676 -> 1334 | E31: ='City-Town Population'!G36 -> 1334 | F31: ='City-Town Population'!A36 -> Battle Ground town | H31: 0
A32: ='Website Report'!C406 -> City/Town | B32: ='Website Report'!E406 -> BEDFORD | C32: ='Website Report'!G406 -> 13413 | E32: ='City-Town Population'!G37 -> 13413 | F32: ='City-Town Population'!A37 -> Bedford city | H32: 0
A33: ='Website Report'!C431 -> City/Town | B33: ='Website Report'!E431 -> BEECH GROVE | C33: ='Website Report'!G431 -> 14192 | E33: ='City-Town Population'!G38 -> 14192 | F33: ='City-Town Population'!A38 -> Beech Grove city | H33: 0
A34: ='Website Report'!C9 -> City/Town | B34: ='Website Report'!E9 -> BERNE | C34: ='Website Report'!G9 -> 3999 | E34: ='City-Town Population'!G39 -> 3999 | F34: ='City-Town Population'!A39 -> Berne city | H34: 0
A35: ='Website Report'!C493 -> City/Town | B35: ='Website Report'!E493 -> BETHANY | C35: ='Website Report'!G493 -> 81 | E35: ='City-Town Population'!G40 -> 81 | F35: ='City-Town Population'!A40 -> Bethany town | H35: 0
A36: ='Website Report'!C547 -> City/Town | B36: ='Website Report'!E547 -> BEVERLY SHORES | C36: ='Website Report'!G547 -> 613 | E36: ='City-Town Population'!G41 -> 613 | F36: ='City-Town Population'!A41 -> Beverly Shores town | H36: 0
A37: ='Website Report'!C370 -> City/Town | B37: ='Website Report'!E370 -> BICKNELL | C37: ='Website Report'!G370 -> 2915 | E37: ='City-Town Population'!G42 -> 2915 | F37: ='City-Town Population'!A42 -> Bicknell city | H37: 0
A38: ='Website Report'!C160 -> City/Town | B38: ='Website Report'!E160 -> BIRDSEYE | C38: ='Website Report'!G160 -> 416 | E38: ='City-Town Population'!G43 -> 416 | F38: ='City-Town Population'!A43 -> Birdseye town | H38: 0
A39: ='Website Report'!C243 -> City/Town | B39: ='Website Report'!E243 -> BLOOMFIELD | C39: ='Website Report'!G243 -> 2405 | E39: ='City-Town Population'!G44 -> 2405 | F39: ='City-Town Population'!A44 -> Bloomfield town | H39: 0
A40: ='Website Report'!C526 -> City/Town | B40: ='Website Report'!E526 -> BLOOMINGDALE | C40: ='Website Report'!G526 -> 335 | E40: ='City-Town Population'!G45 -> 335 | F40: ='City-Town Population'!A45 -> Bloomingdale town | H40: 0
A41: ='Website Report'!C473 -> City/Town | B41: ='Website Report'!E473 -> BLOOMINGTON | C41: ='Website Report'!G473 -> 80405 | E41: ='City-Town Population'!G46 -> 80405 | F41: ='City-Town Population'!A46 -> Bloomington city | H41: 0
A42: ='Website Report'!C290 -> City/Town | B42: ='Website Report'!E290 -> BLOUNTSVILLE | C42: ='Website Report'!G290 -> 134 | E42: ='City-Town Population'!G47 -> 134 | F42: ='City-Town Population'!A47 -> Blountsville town | H42: 0
A43: ='Website Report'!C767 -> City/Town | B43: ='Website Report'!E767 -> BLUFFTON | C43: ='Website Report'!G767 -> 9897 | E43: ='City-Town Population'!G48 -> 9897 | F43: ='City-Town Population'!A48 -> Bluffton city | H43: 0
A44: ='Website Report'!C731 -> City/Town | B44: ='Website Report'!E731 -> BOONVILLE | C44: ='Website Report'!G731 -> 6246 | E44: ='City-Town Population'!G49 -> 6246 | F44: ='City-Town Population'!A49 -> Boonville city | H44: 0
A45: ='Website Report'!C86 -> City/Town | B45: ='Website Report'!E86 -> BORDEN | C45: ='Website Report'!G86 -> 808 | E45: ='City-Town Population'!G50 -> 808 | F45: ='City-Town Population'!A50 -> Borden town | H45: 0
A46: ='Website Report'!C750 -> City/Town | B46: ='Website Report'!E750 -> BOSTON | C46: ='Website Report'!G750 -> 138 | E46: ='City-Town Population'!G51 -> 138 | F46: ='City-Town Population'!A51 -> Boston town | H46: 0
A47: ='Website Report'!C38 -> City/Town | B47: ='Website Report'!E38 -> BOSWELL | C47: ='Website Report'!G38 -> 778 | E47: ='City-Town Population'!G52 -> 778 | F47: ='City-Town Population'!A52 -> Boswell town | H47: 0
A48: ='Website Report'!C450 -> City/Town | B48: ='Website Report'!E450 -> BOURBON | C48: ='Website Report'!G450 -> 1810 | E48: ='City-Town Population'!G53 -> 1810 | F48: ='City-Town Population'!A53 -> Bourbon town | H48: 0
A49: ='Website Report'!C92 -> City/Town | B49: ='Website Report'!E92 -> BRAZIL | C49: ='Website Report'!G92 -> 7912 | E49: ='City-Town Population'!G54 -> 7912 | F49: ='City-Town Population'!A54 -> Brazil city | H49: 0
A50: ='Website Report'!C451 -> City/Town | B50: ='Website Report'!E451 -> BREMAN | C50: ='Website Report'!G451 -> 4588 | E50: ='City-Town Population'!G55 -> 4588 | F50: ='City-Town Population'!A55 -> Bremen town | H50: 0
A51: ='Website Report'!C168 -> City/Town | B51: ='Website Report'!E168 -> BRISTOL | C51: ='Website Report'!G168 -> 1602 | E51: ='City-Town Population'!G56 -> 1602 | F51: ='City-Town Population'!A56 -> Bristol town | H51: 0
A52: ='Website Report'!C503 -> City/Town | B52: ='Website Report'!E503 -> BROOK | C52: ='Website Report'!G503 -> 997 | E52: ='City-Town Population'!G57 -> 997 | F52: ='City-Town Population'!A57 -> Brook town | H52: 0
A53: ='Website Report'!C494 -> City/Town | B53: ='Website Report'!E494 -> BROOKLYN | C53: ='Website Report'!G494 -> 1598 | E53: ='City-Town Population'!G58 -> 1598 | F53: ='City-Town Population'!A58 -> Brooklyn town | H53: 0
A54: ='Website Report'!C347 -> City/Town | B54: ='Website Report'!E347 -> BROOKSBURG | C54: ='Website Report'!G347 -> 81 | E54: ='City-Town Population'!G59 -> 81 | F54: ='City-Town Population'!A59 -> Brooksburg town | H54: 0
A55: ='Website Report'!C777 -> City/Town | B55: ='Website Report'!E777 -> BROOKSTON | C55: ='Website Report'!G777 -> 1554 | E55: ='City-Town Population'!G60 -> 1554 | F55: ='City-Town Population'!A60 -> Brookston town | H55: 0
A56: ='Website Report'!C201 -> City/Town | B56: ='Website Report'!E201 -> BROOKVILLE | C56: ='Website Report'!G201 -> 2596 | E56: ='City-Town Population'!G61 -> 2596 | F56: ='City-Town Population'!A61 -> Brookville town | H56: 0
A57: ='Website Report'!C277 -> City/Town | B57: ='Website Report'!E277 -> BROWNSBURG | C57: ='Website Report'!G277 -> 21285 | E57: ='City-Town Population'!G62 -> 21285 | F57: ='City-Town Population'!A62 -> Brownsburg town | H57: 0
A58: ='Website Report'!C324 -> City/Town | B58: ='Website Report'!E324 -> BROWNSTOWN | C58: ='Website Report'!G324 -> 2947 | E58: ='City-Town Population'!G63 -> 2947 | F58: ='City-Town Population'!A63 -> Brownstown town | H58: 0
A59: ='Website Report'!C371 -> City/Town | B59: ='Website Report'!E371 -> BRUCEVILLE | C59: ='Website Report'!G371 -> 478 | E59: ='City-Town Population'!G64 -> 478 | F59: ='City-Town Population'!A64 -> Bruceville town | H59: 0
A60: ='Website Report'!C338 -> City/Town | B60: ='Website Report'!E338 -> BRYANT | C60: ='Website Report'!G338 -> 252 | E60: ='City-Town Population'!G65 -> 252 | F60: ='City-Town Population'!A65 -> Bryant town | H60: 0
A61: ='Website Report'!C465 -> City/Town | B61: ='Website Report'!E465 -> BUNKER HILL | C61: ='Website Report'!G465 -> 888 | E61: ='City-Town Population'!G66 -> 888 | F61: ='City-Town Population'!A66 -> Bunker Hill town | H61: 0
A62: ='Website Report'!C382 -> City/Town | B62: ='Website Report'!E382 -> BURKET | C62: ='Website Report'!G382 -> 195 | E62: ='City-Town Population'!G67 -> 195 | F62: ='City-Town Population'!A67 -> Burket town | H62: 0
A63: ='Website Report'!C67 -> City/Town | B63: ='Website Report'!E67 -> BURLINGTON | C63: ='Website Report'!G67 -> 603 | E63: ='City-Town Population'!G68 -> 603 | F63: ='City-Town Population'!A68 -> Burlington town | H63: 0
A64: ='Website Report'!C778 -> City/Town | B64: ='Website Report'!E778 -> BURNETTSVILLE | C64: ='Website Report'!G778 -> 346 | E64: ='City-Town Population'!G69 -> 346 | F64: ='City-Town Population'!A69 -> Burnettsville town | H64: =E64-C64 -> 0
A65: ='Website Report'!C548 -> City/Town | B65: ='Website Report'!E548 -> BURNS HARBOR | C65: ='Website Report'!G548 -> 1156 | E65: ='City-Town Population'!G70 -> 1156 | F65: ='City-Town Population'!A70 -> Burns Harbor town | H65: 0
A66: ='Website Report'!C140 -> City/Town | B66: ='Website Report'!E140 -> BUTLER | C66: ='Website Report'!G140 -> 2684 | E66: ='City-Town Population'!G71 -> 2684 | F66: ='City-Town Population'!A71 -> Butler city | H66: 0
A67: ='Website Report'!C291 -> City/Town | B67: ='Website Report'!E291 -> CADIZ | C67: ='Website Report'!G291 -> 150 | E67: ='City-Town Population'!G72 -> 150 | F67: ='City-Town Population'!A72 -> Cadiz town | H67: 0
A68: ='Website Report'!C751 -> City/Town | B68: ='Website Report'!E751 -> CAMBRIDGE | C68: ='Website Report'!G751 -> 1870 | E68: ='City-Town Population'!G73 -> 1870 | F68: ='City-Town Population'!A73 -> Cambridge City | H68: 0
A69: ='Website Report'!C68 -> City/Town | B69: ='Website Report'!E68 -> CAMDEN | C69: ='Website Report'!G68 -> 611 | E69: ='City-Town Population'!G74 -> 611 | F69: ='City-Town Population'!A74 -> Camden town | H69: 0
A70: ='Website Report'!C740 -> City/Town | B70: ='Website Report'!E740 -> CAMPBELLSBURG | C70: ='Website Report'!G740 -> 585 | E70: ='City-Town Population'!G75 -> 585 | F70: ='City-Town Population'!A75 -> Campbellsburg town | H70: 0
A71: ='Website Report'!C120 -> City/Town | B71: ='Website Report'!E120 -> CANNELBURG | C71: ='Website Report'!G120 -> 135 | E71: ='City-Town Population'!G76 -> 135 | F71: ='City-Town Population'!A76 -> Cannelburg town | H71: 0
A72: ='Website Report'!C535 -> City/Town | B72: ='Website Report'!E535 -> CANNELTON | C72: ='Website Report'!G535 -> 1563 | E72: ='City-Town Population'!G77 -> 1563 | F72: ='City-Town Population'!A77 -> Cannelton city | H72: 0
A73: ='Website Report'!C93 -> City/Town | B73: ='Website Report'!E93 -> CARBON | C73: ='Website Report'!G93 -> 397 | E73: ='City-Town Population'!G78 -> 397 | F73: ='City-Town Population'!A78 -> Carbon town | H73: 0
A74: ='Website Report'!C666 -> City/Town | B74: ='Website Report'!E666 -> CARLISLE | C74: ='Website Report'!G666 -> 692 | E74: ='City-Town Population'!G79 -> 692 | F74: ='City-Town Population'!A79 -> Carlisle town | H74: 0
A75: ='Website Report'!C255 -> City/Town | B75: ='Website Report'!E255 -> CARMEL | C75: ='Website Report'!G255 -> 79191 | E75: ='City-Town Population'!G80 -> 91648 | F75: ='City-Town Population'!A80 -> Carmel city (1)(13) | H75: 12457 | I75: Variance is due to state executive order increasing population
A76: ='Website Report'!C608 -> City/Town | B76: ='Website Report'!E608 -> CARTHAGE | C76: ='Website Report'!G608 -> 927 | E76: ='City-Town Population'!G81 -> 927 | F76: ='City-Town Population'!A81 -> Carthage town | H76: 0
A77: ='Website Report'!C699 -> City/Town | B77: ='Website Report'!E699 -> CAYUGA | C77: ='Website Report'!G699 -> 1162 | E77: ='City-Town Population'!G82 -> 1162 | F77: ='City-Town Population'!A82 -> Cayuga town | H77: 0
A78: ='Website Report'!C202 -> City/Town | B78: ='Website Report'!E202 -> CEDAR GROVE | C78: ='Website Report'!G202 -> 156 | E78: ='City-Town Population'!G83 -> 156 | F78: ='City-Town Population'!A83 -> Cedar Grove town | H78: 0
B79: Blank | E79: ='City-Town Population'!G84 -> 11560 | F79: ='City-Town Population'!A84 -> Cedar Lake town | H79: =E79-C80 -> 11318 | I79: Lake County - Does not receive riverboat sharing
A80: ='Website Report'!C94 -> City/Town | B80: ='Website Report'!E94 -> CENTER POINT | C80: ='Website Report'!G94 -> 242 | E80: ='City-Town Population'!G85 -> 242 | F80: ='City-Town Population'!A85 -> Center Point town | H80: 0
A81: ='Website Report'!C752 -> City/Town | B81: ='Website Report'!E752 -> CENTERVILLE | C81: ='Website Report'!G752 -> 2552 | E81: ='City-Town Population'!G86 -> 2552 | F81: ='City-Town Population'!A86 -> Centerville town | H81: 0
A82: ='Website Report'!C779 -> City/Town | B82: ='Website Report'!E779 -> CHALMERS | C82: ='Website Report'!G779 -> 508 | E82: ='City-Town Population'!G87 -> 508 | F82: ='City-Town Population'!A87 -> Chalmers town | H82: 0
A83: ='Website Report'!C732 -> City/Town | B83: ='Website Report'!E732 -> CHANDLER | C83: ='Website Report'!G732 -> 2887 | E83: ='City-Town Population'!G88 -> 2887 | F83: ='City-Town Population'!A88 -> Chandler town | H83: 0
A84: ='Website Report'!C83 -> City/Town | B84: ='Website Report'!E83 -> CHARLESTOWN | C84: ='Website Report'!G83 -> 7585 | E84: ='City-Town Population'!G89 -> 7585 | F84: ='City-Town Population'!A89 -> Charlestown city | H84: 0
A85: ='Website Report'!C150 -> City/Town | B85: ='Website Report'!E150 -> CHESTERFIELD | C85: ='Website Report'!G150 -> 1 | E85: ='City-Town Population'!G90 -> 2547 | F85: ='City-Town Population'!A90 -> Chesterfield town | H85: 2546 | I85: Variance is due to City/Town being located in multiple taxing districtcs.
A86: ='Website Report'!C549 -> City/Town | B86: ='Website Report'!E549 -> CHESTERTON | C86: ='Website Report'!G549 -> 13068 | E86: ='City-Town Population'!G91 -> 13068 | F86: ='City-Town Population'!A91 -> Chesterton town | H86: 0
A87: ='Website Report'!C639 -> City/Town | B87: ='Website Report'!E639 -> CHRISNEY | C87: ='Website Report'!G639 -> 481 | E87: ='City-Town Population'!G92 -> 481 | F87: ='City-Town Population'!A92 -> Chrisney town | H87: 0
A88: ='Website Report'!C787 -> City/Town | B88: ='Website Report'!E787 -> CHURUBUSCO | C88: ='Website Report'!G787 -> 1796 | E88: ='City-Town Population'!G93 -> 1796 | F88: ='City-Town Population'!A93 -> Churubusco town | H88: 0
A89: ='Website Report'!C256 -> City/Town | B89: ='Website Report'!E256 -> CICERO | C89: ='Website Report'!G256 -> 4812 | E89: ='City-Town Population'!G94 -> 4812 | F89: ='City-Town Population'!A94 -> Cicero town | H89: 0
A90: ='Website Report'!C677 -> City/Town | B90: ='Website Report'!E677 -> CLARKS HILL | C90: ='Website Report'!G677 -> 611 | E90: ='City-Town Population'!G95 -> 611 | F90: ='City-Town Population'!A95 -> Clarks Hill town | H90: 0
A91: ='Website Report'!C84 -> City/Town | B91: ='Website Report'!E84 -> CLARKSVILLE | C91: ='Website Report'!G84 -> 21724 | E91: ='City-Town Population'!G96 -> 21724 | F91: ='City-Town Population'!A96 -> Clarksville town | H91: 0
A92: ='Website Report'!C95 -> City/Town | B92: ='Website Report'!E95 -> CLAY | C92: ='Website Report'!G95 -> 861 | E92: ='City-Town Population'!G97 -> 861 | F92: ='City-Town Population'!A97 -> Clay City | H92: 0
A93: ='Website Report'!C383 -> City/Town | B93: ='Website Report'!E383 -> CLAYPOOL | C93: ='Website Report'!G383 -> 431 | E93: ='City-Town Population'!G98 -> 431 | F93: ='City-Town Population'!A98 -> Claypool town | H93: 0
A94: ='Website Report'!C278 -> City/Town | B94: ='Website Report'!E278 -> CLAYTON | C94: ='Website Report'!G278 -> 972 | E94: ='City-Town Population'!G99 -> 972 | F94: ='City-Town Population'!A99 -> Clayton town | H94: 0
A95: ='Website Report'!C658 -> City/Town | B95: ='Website Report'!E658 -> CLEAR LAKE | C95: ='Website Report'!G658 -> 339 | E95: ='City-Town Population'!G100 -> 339 | F95: ='City-Town Population'!A100 -> Clear Lake town | H95: 0
A96: ='Website Report'!C432 -> City/Town | B96: ='Website Report'!E432 -> CLERMONT | C96: ='Website Report'!G432 -> 1356 | E96: ='City-Town Population'!G101 -> 1356 | F96: ='City-Town Population'!A101 -> Clermont town | H96: 0
A97: ='Website Report'!C27 -> City/Town | B97: ='Website Report'!E27 -> CLIFFORD | C97: ='Website Report'!G27 -> 233 | E97: ='City-Town Population'!G102 -> 233 | F97: ='City-Town Population'!A102 -> Clifford town | H97: 0
A98: ='Website Report'!C700 -> City/Town | B98: ='Website Report'!E700 -> CLINTON | C98: ='Website Report'!G700 -> 4893 | E98: ='City-Town Population'!G103 -> 4893 | F98: ='City-Town Population'!A103 -> Clinton city | H98: 0
A99: ='Website Report'!C577 -> City/Town | B99: ='Website Report'!E577 -> CLOVERDALE | C99: ='Website Report'!G577 -> 2172 | E99: ='City-Town Population'!G104 -> 2172 | F99: ='City-Town Population'!A104 -> Cloverdale town | H99: 0
A100: ='Website Report'!C279 -> City/Town | B100: ='Website Report'!E279 -> COATESVILLE | C100: ='Website Report'!G279 -> 523 | E100: ='City-Town Population'!G105 -> 523 | F100: ='City-Town Population'!A105 -> Coatesville town | H100: 0
A101: ='Website Report'!C102 -> City/Town | B101: ='Website Report'!E102 -> COLFAX | C101: ='Website Report'!G102 -> 691 | E101: ='City-Town Population'!G106 -> 691 | F101: ='City-Town Population'!A106 -> Colfax town | H101: 0
A102: ='Website Report'!C788 -> City/Town | B102: ='Website Report'!E788 -> COLUMBIA CITY | C102: ='Website Report'!G788 -> 8750 | E102: ='City-Town Population'!G107 -> 8750 | F102: ='City-Town Population'!A107 -> Columbia City | H102: 0
A103: ='Website Report'!C28 -> City/Town | B103: ='Website Report'!E28 -> COLUMBUS | C103: ='Website Report'!G28 -> 44061 | E103: ='City-Town Population'!G108 -> 44061 | F103: ='City-Town Population'!A108 -> Columbus city | H103: 0
A104: ='Website Report'!C178 -> City/Town | B104: ='Website Report'!E178 -> CONNERSVILLE | C104: ='Website Report'!G178 -> 13481 | E104: ='City-Town Population'!G109 -> 13481 | F104: ='City-Town Population'!A109 -> Connersville city | H104: 0
A105: ='Website Report'!C229 -> City/Town | B105: ='Website Report'!E229 -> CONVERSE | C105: ='Website Report'!G229 -> 272 | E105: ='City-Town Population'!G110 -> 1265 | F105: ='City-Town Population'!A110 -> Converse town | H105: =E105-C105 -> 993 | I105: Variance is due to City/Town being located in multiple taxing districtcs.
A106: ='Website Report'!C141 -> City/Town | B106: ='Website Report'!E141 -> CORUNNA | C106: ='Website Report'!G141 -> 254 | E106: ='City-Town Population'!G111 -> 254 | F106: ='City-Town Population'!A111 -> Corunna town | H106: =E106-C106 -> 0
B107: Blank | E107: ='City-Town Population'!G112 -> 3122 | F107: ='City-Town Population'!A112 -> Corydon town | H107: =E107-C108 -> 3043 | I107: Harrison County - Does not receive riverboat sharing
A108: ='Website Report'!C415 -> City/Town | B108: ='Website Report'!E415 -> COUNTRY CLUB HTS | C108: ='Website Report'!G415 -> 79 | E108: ='City-Town Population'!G113 -> 79 | F108: ='City-Town Population'!A113 -> Country Club Heights town | H108: =E108-C108 -> 0
A109: ='Website Report'!C190 -> City/Town | B109: ='Website Report'!E190 -> COVINGTON | C109: ='Website Report'!G190 -> 2645 | E109: ='City-Town Population'!G114 -> 2645 | F109: ='City-Town Population'!A114 -> Covington city | H109: =E109-C109 -> 0
B110: Blank | E110: ='City-Town Population'!G115 -> 152 | F110: ='City-Town Population'!A115 -> Crandall town | H110: =E110-C110 -> 152 | I110: Harrison County - Does not receive riverboat sharing
A111: ='Website Report'!C458 -> City/Town | B111: ='Website Report'!E458 -> CRANE | C111: ='Website Report'!G458 -> 184 | E111: ='City-Town Population'!G116 -> 184 | F111: ='City-Town Population'!A116 -> Crane town | H111: =E111-C111 -> 0
A112: ='Website Report'!C480 -> City/Town | B112: ='Website Report'!E480 -> CRAWFORDSVILLE | C112: ='Website Report'!G480 -> 15915 | E112: ='City-Town Population'!G117 -> 15915 | F112: ='City-Town Population'!A117 -> Crawfordsville city | H112: =E112-C112 -> 0
A113: ='Website Report'!C513 -> City/Town | B113: ='Website Report'!E513 -> CROMWELL | C113: ='Website Report'!G513 -> 512 | E113: ='City-Town Population'!G118 -> 512 | F113: ='City-Town Population'!A118 -> Cromwell town | H113: 0
A114: ='Website Report'!C325 -> City/Town | B114: ='Website Report'!E325 -> CROTHERSVILLE | C114: ='Website Report'!G325 -> 1591 | E114: ='City-Town Population'!G119 -> 1591 | F114: ='City-Town Population'!A119 -> Crothersville town | H114: 0
B115: Blank | E115: ='City-Town Population'!G120 -> 27317 | F115: ='City-Town Population'!A120 -> Crown Point city | H115: 27317 | I115: Lake County - Does not receive riverboat sharing
A116: ='Website Report'!C433 -> City/Town | B116: ='Website Report'!E433 -> CROWS NEST | C116: ='Website Report'!G433 -> 73 | E116: ='City-Town Population'!G121 -> 73 | F116: ='City-Town Population'!A121 -> Crows Nest town | H116: 0
A117: ='Website Report'!C452 -> City/Town | B117: ='Website Report'!E452 -> CULVER | C117: ='Website Report'!G452 -> 1353 | E117: ='City-Town Population'!G122 -> 1353 | F117: ='City-Town Population'!A122 -> Culver town | H117: 0
A118: ='Website Report'!C434 -> City/Town | B118: ='Website Report'!E434 -> CUMBERLAND | C118: ='Website Report'!G434 -> 2597 | E118: ='City-Town Population'!G123 -> 5169 | F118: ='City-Town Population'!A123 -> Cumberland town | H118: 2572 | I118: Variance is due to City/Town being located in multiple taxing districtcs.
A119: ='Website Report'!C561 -> City/Town | B119: ='Website Report'!E561 -> CYNTHIANA | C119: ='Website Report'!G561 -> 545 | E119: ='City-Town Population'!G124 -> 545 | F119: ='City-Town Population'!A124 -> Cynthiana town | H119: 0
A120: ='Website Report'!C640 -> City/Town | B120: ='Website Report'!E640 -> DALE | C120: ='Website Report'!G640 -> 1593 | E120: ='City-Town Population'!G125 -> 1593 | F120: ='City-Town Population'!A125 -> Dale town | H120: 0
A121: ='Website Report'!C151 -> City/Town | B121: ='Website Report'!E151 -> DALEVILLE | C121: ='Website Report'!G151 -> 1647 | E121: ='City-Town Population'!G126 -> 1647 | F121: ='City-Town Population'!A126 -> Daleville town | H121: 0
A122: ='Website Report'!C701 -> City/Town | B122: ='Website Report'!E701 -> DANA | C122: ='Website Report'!G701 -> 608 | E122: ='City-Town Population'!G127 -> 608 | F122: ='City-Town Population'!A127 -> Dana town | H122: 0
A123: ='Website Report'!C280 -> City/Town | B123: ='Website Report'!E280 -> DANVILLE | C123: ='Website Report'!G280 -> 9001 | E123: ='City-Town Population'!G128 -> 9001 | F123: ='City-Town Population'!A128 -> Danville town | H123: 0
A124: ='Website Report'!C481 -> City/Town | B124: ='Website Report'!E481 -> DARLINGTON | C124: ='Website Report'!G481 -> 843 | E124: ='City-Town Population'!G129 -> 843 | F124: ='City-Town Population'!A129 -> Darlington town | H124: 0
B125: Blank | E125: ='City-Town Population'!G130 -> 1407 | F125: ='City-Town Population'!A130 -> Darmstadt town | H125: 1407 | I125: Vanderburgh County - Does not receive riverboat sharing
A126: ='Website Report'!C678 -> City/Town | B126: ='Website Report'!E678 -> DAYTON | C126: ='Website Report'!G678 -> 1420 | E126: ='City-Town Population'!G131 -> 1420 | F126: ='City-Town Population'!A131 -> Dayton town | H126: 0
A127: ='Website Report'!C331 -> City/Town | B127: ='Website Report'!E331 -> DEMOTTE | C127: ='Website Report'!G331 -> 3814 | E127: ='City-Town Population'!G132 -> 3814 | F127: ='City-Town Population'!A132 -> De Motte town | H127: 0
A128: ='Website Report'!C10 -> City/Town | B128: ='Website Report'!E10 -> DECATUR | C128: ='Website Report'!G10 -> 9405 | E128: ='City-Town Population'!G133 -> 9405 | F128: ='City-Town Population'!A133 -> Decatur city | H128: 0
A129: ='Website Report'!C372 -> City/Town | B129: ='Website Report'!E372 -> DECKER | C129: ='Website Report'!G372 -> 249 | E129: ='City-Town Population'!G134 -> 249 | F129: ='City-Town Population'!A134 -> Decker town | H129: 0
A130: ='Website Report'!C69 -> City/Town | B130: ='Website Report'!E69 -> DELPHI | C130: ='Website Report'!G69 -> 2893 | E130: ='City-Town Population'!G135 -> 2893 | F130: ='City-Town Population'!A135 -> Delphi city | H130: 0
A131: ='Website Report'!C467 -> City/Town | B131: ='Website Report'!E467 -> DENVER | C131: ='Website Report'!G467 -> 482 | E131: ='City-Town Population'!G136 -> 482 | F131: ='City-Town Population'!A136 -> Denver town | H131: 0
B132: Blank | E132: ='City-Town Population'!G137 -> 1327 | F132: ='City-Town Population'!A137 -> Dillsboro town | H132: 1327 | I132: Dearborn County - Does not receive riverboat sharing
A133: ='Website Report'!C753 -> City/Town | B133: ='Website Report'!E753 -> DUBLIN | C133: ='Website Report'!G753 -> 790 | E133: ='City-Town Population'!G138 -> 790 | F133: ='City-Town Population'!A138 -> Dublin town | H133: 0
A134: ='Website Report'!C667 -> City/Town | B134: ='Website Report'!E667 -> DUGGER | C134: ='Website Report'!G667 -> 920 | E134: ='City-Town Population'!G139 -> 920 | F134: ='City-Town Population'!A139 -> Dugger town | H134: 0
A135: ='Website Report'!C550 -> City/Town | B135: ='Website Report'!E550 -> DUNE ACRES | C135: ='Website Report'!G550 -> 182 | E135: ='City-Town Population'!G140 -> 182 | F135: ='City-Town Population'!A140 -> Dune Acres town | H135: 0
A136: ='Website Report'!C46 -> City/Town | B136: ='Website Report'!E46 -> DUNKIRK | C136: ='Website Report'!G46 -> 145 | E136: ='City-Town Population'!G141 -> 2362 | F136: ='City-Town Population'!A141 -> Dunkirk city | H136: 2217 | I136: Variance is due to City/Town being located in multiple taxing districtcs.
A137: ='Website Report'!C292 -> City/Town | B137: ='Website Report'!E292 -> DUNREITH | C137: ='Website Report'!G292 -> 177 | E137: ='City-Town Population'!G142 -> 177 | F137: ='City-Town Population'!A142 -> Dunreith town | H137: 0
A138: ='Website Report'!C348 -> City/Town | B138: ='Website Report'!E348 -> DUPONT | C138: ='Website Report'!G348 -> 339 | E138: ='City-Town Population'!G143 -> 339 | F138: ='City-Town Population'!A143 -> Dupont town | H138: 0
B139: Blank | E139: ='City-Town Population'!G144 -> 16390 | F139: ='City-Town Population'!A144 -> Dyer town | H139: 16390 | I139: Lake County - Does not receive riverboat sharing
A140: ='Website Report'!C39 -> City/Town | B140: ='Website Report'!E39 -> EARL PARK | C140: ='Website Report'!G39 -> 348 | E140: ='City-Town Population'!G145 -> 348 | F140: ='City-Town Population'!A145 -> Earl Park town | H140: 0
B141: Blank | E141: ='City-Town Population'!G146 -> 29698 | F141: ='City-Town Population'!A146 -> East Chicago city | H141: 29698 | I141: Lake County - Does not receive riverboat sharing
A142: ='Website Report'!C754 -> City/Town | B142: ='Website Report'!E754 -> EAST GERMAN | C142: ='Website Report'!G754 -> 410 | E142: ='City-Town Population'!G147 -> 410 | F142: ='City-Town Population'!A147 -> East Germantown town | H142: 0
A143: ='Website Report'!C152 -> City/Town | B143: ='Website Report'!E152 -> EATON | C143: ='Website Report'!G152 -> 1805 | E143: ='City-Town Population'!G148 -> 1805 | F143: ='City-Town Population'!A148 -> Eaton town | H143: 0
A144: ='Website Report'!C755 -> City/Town | B144: ='Website Report'!E755 -> ECONOMY | C144: ='Website Report'!G755 -> 187 | E144: ='City-Town Population'!G149 -> 187 | F144: ='City-Town Population'!A149 -> Economy town | H144: 0
A145: ='Website Report'!C416 -> City/Town | B145: ='Website Report'!E416 -> EDGEWOOD | C145: ='Website Report'!G416 -> 1913 | E145: ='City-Town Population'!G150 -> 1913 | F145: ='City-Town Population'!A150 -> Edgewood town | H145: 0
A146: ='Website Report'!C29 -> City/Town | B146: ='Website Report'!E29 -> EDINBURGH | C146: ='Website Report'!G29 -> 376 | E146: ='City-Town Population'!G151 -> 4480 | F146: ='City-Town Population'!A151 -> Edinburgh town | H146: 4104 | I146: Variance is due to City/Town being located in multiple taxing districtcs.
A147: ='Website Report'!C373 -> City/Town | B147: ='Website Report'!E373 -> EDWARDSPORT | C147: ='Website Report'!G373 -> 303 | E147: ='City-Town Population'!G152 -> 303 | F147: ='City-Town Population'!A152 -> Edwardsport town | H147: 0
A148: ='Website Report'!C733 -> City/Town | B148: ='Website Report'!E733 -> ELBERFELD | C148: ='Website Report'!G733 -> 625 | E148: ='City-Town Population'!G153 -> 625 | F148: ='City-Town Population'!A153 -> Elberfeld town | H148: 0
B149: Blank | E149: ='City-Town Population'!G154 -> 162 | F149: ='City-Town Population'!A154 -> Elizabeth town | H149: 162 | I149: Harrison County - Does not receive riverboat sharing
A150: ='Website Report'!C30 -> City/Town | B150: ='Website Report'!E30 -> ELIZABETHTOWN | C150: ='Website Report'!G30 -> 504 | E150: ='City-Town Population'!G155 -> 504 | F150: ='City-Town Population'!A155 -> Elizabethtown town | H150: 0
A151: ='Website Report'!C169 -> City/Town | B151: ='Website Report'!E169 -> ELKHART | C151: ='Website Report'!G169 -> 50949 | E151: ='City-Town Population'!G156 -> 50949 | F151: ='City-Town Population'!A156 -> Elkhart city | H151: 0
A152: ='Website Report'!C474 -> City/Town | B152: ='Website Report'!E474 -> ELLETTSVILLE | C152: ='Website Report'!G474 -> 6378 | E152: ='City-Town Population'!G157 -> 6378 | F152: ='City-Town Population'!A157 -> Ellettsville town | H152: 0
A153: ='Website Report'!C121 -> City/Town | B153: ='Website Report'!E121 -> ELNORA | C153: ='Website Report'!G121 -> 640 | E153: ='City-Town Population'!G158 -> 640 | F153: ='City-Town Population'!A158 -> Elnora town | H153: 0
A154: ='Website Report'!C417 -> City/Town | B154: ='Website Report'!E417 -> ELWOOD | C154: ='Website Report'!G417 -> 8608 | E154: ='City-Town Population'!G159 -> 8614 | F154: ='City-Town Population'!A159 -> Elwood city | H154: 6 | I154: Variance is due to City/Town being located in multiple taxing districtcs.
A155: ='Website Report'!C112 -> City/Town | B155: ='Website Report'!E112 -> ENGLISH | C155: ='Website Report'!G112 -> 645 | E155: ='City-Town Population'!G160 -> 645 | F155: ='City-Town Population'!A160 -> English town | H155: 0
A156: ='Website Report'!C384 -> City/Town | B156: ='Website Report'!E384 -> ETNA GREEN | C156: ='Website Report'!G384 -> 586 | E156: ='City-Town Population'!G161 -> 586 | F156: ='City-Town Population'!A161 -> Etna Green town | H156: 0
B157: Blank | E157: ='City-Town Population'!G162 -> 117429 | F157: ='City-Town Population'!A162 -> Evansville city | H157: 117429 | I157: Vanderburgh County - Does not receive riverboat sharing
A158: ='Website Report'!C631 -> City/Town | B158: ='Website Report'!E631 -> FAIRLAND | C158: ='Website Report'!G631 -> 315 | E158: ='City-Town Population'!G163 -> 587 | F158: ='City-Town Population'!A163 -> Fairland town (12) | H158: 272 | I158: Variance is due to state executive order increasing population
A159: ='Website Report'!C230 -> City/Town | B159: ='Website Report'!E230 -> FAIRMOUNT | C159: ='Website Report'!G230 -> 2954 | E159: ='City-Town Population'!G164 -> 2954 | F159: ='City-Town Population'!A164 -> Fairmount town | H159: 0
A160: ='Website Report'!C702 -> City/Town | B160: ='Website Report'!E702 -> FAIRVIEW PARK | C160: ='Website Report'!G702 -> 1386 | E160: ='City-Town Population'!G165 -> 1386 | F160: ='City-Town Population'!A165 -> Fairview Park town | H160: 0
A161: ='Website Report'!C668 -> City/Town | B161: ='Website Report'!E668 -> FARMERSBURG | C161: ='Website Report'!G668 -> 1118 | E161: ='City-Town Population'!G166 -> 1118 | F161: ='City-Town Population'!A166 -> Farmersburg town | H161: 0
A162: ='Website Report'!C586 -> City/Town | B162: ='Website Report'!E586 -> FARMLAND | C162: ='Website Report'!G586 -> 1333 | E162: ='City-Town Population'!G167 -> 1333 | F162: ='City-Town Population'!A167 -> Farmland town | H162: 0
A163: ='Website Report'!C161 -> City/Town | B163: ='Website Report'!E161 -> FERDINAND | C163: ='Website Report'!G161 -> 2157 | E163: ='City-Town Population'!G168 -> 2157 | F163: ='City-Town Population'!A168 -> Ferdinand town | H163: 0
A164: ='Website Report'!C578 -> City/Town | B164: ='Website Report'!E578 -> FILLMORE | C164: ='Website Report'!G578 -> 533 | E164: ='City-Town Population'!G169 -> 533 | F164: ='City-Town Population'!A169 -> Fillmore town | H164: 0
A165: ='Website Report'!C257 -> City/Town | B165: ='Website Report'!E257 -> FISHERS | C165: ='Website Report'!G257 -> 76794 | E165: ='City-Town Population'!G170 -> 86459 | F165: ='City-Town Population'!A170 -> Fishers town (2) | H165: 9665 | I165: Variance is due to state executive order increasing population
A166: ='Website Report'!C70 -> City/Town | B166: ='Website Report'!E70 -> FLORA | C166: ='Website Report'!G70 -> 2036 | E166: ='City-Town Population'!G171 -> 2036 | F166: ='City-Town Population'!A171 -> Flora town | H166: 0
A167: ='Website Report'!C216 -> City/Town | B167: ='Website Report'!E216 -> FORT BRANCH | C167: ='Website Report'!G216 -> 2771 | E167: ='City-Town Population'!G172 -> 2771 | F167: ='City-Town Population'!A172 -> Fort Branch town | H167: 0
A168: ='Website Report'!C265 -> City/Town | B168: ='Website Report'!E16 -> FORTWAYNE | C168: ='Website Report'!G16 -> 253689 | E168: ='City-Town Population'!G173 -> 253689 | F168: ='City-Town Population'!A173 -> Fort Wayne city (11) | H168: 0
A169: ='Website Report'!C16 -> City/Town | B169: ='Website Report'!E265 -> FORTVILLE | C169: ='Website Report'!G265 -> 3929 | E169: ='City-Town Population'!G174 -> 3929 | F169: ='City-Town Population'!A174 -> Fortville town | H169: 0
A170: ='Website Report'!C756 -> City/Town | B170: ='Website Report'!E756 -> FOUNTAIN | C170: ='Website Report'!G756 -> 796 | E170: ='City-Town Population'!G175 -> 796 | F170: ='City-Town Population'!A175 -> Fountain City | H170: 0
A171: ='Website Report'!C40 -> City/Town | B171: ='Website Report'!E40 -> FOWLER | C171: ='Website Report'!G40 -> 2317 | E171: ='City-Town Population'!G176 -> 2317 | F171: ='City-Town Population'!A176 -> Fowler town | H171: =E171-C171 -> 0
A172: ='Website Report'!C231 -> City/Town | B172: ='Website Report'!E231 -> FOWLERTON | C172: ='Website Report'!G231 -> 261 | E172: ='City-Town Population'!G177 -> 261 | F172: ='City-Town Population'!A177 -> Fowlerton town | H172: 0
A173: ='Website Report'!C569 -> City/Town | B173: ='Website Report'!E569 -> FRANCESVILLE | C173: ='Website Report'!G569 -> 879 | E173: ='City-Town Population'!G178 -> 879 | F173: ='City-Town Population'!A178 -> Francesville town | H173: 0
A174: ='Website Report'!C217 -> City/Town | B174: ='Website Report'!E217 -> FRANCISCO | C174: ='Website Report'!G217 -> 469 | E174: ='City-Town Population'!G179 -> 469 | F174: ='City-Town Population'!A179 -> Francisco town | H174: 0
A175: ='Website Report'!C103 -> City/Town | B175: ='Website Report'!E103 -> FRANKFORT | C175: ='Website Report'!G103 -> 16422 | E175: ='City-Town Population'!G180 -> 16422 | F175: ='City-Town Population'!A180 -> Frankfort city | H175: 0
A176: ='Website Report'!C361 -> City/Town | B176: ='Website Report'!E361 -> FRANKLIN | C176: ='Website Report'!G361 -> 23712 | E176: ='City-Town Population'!G181 -> 23712 | F176: ='City-Town Population'!A181 -> Franklin city | H176: 0
A177: ='Website Report'!C418 -> City/Town | B177: ='Website Report'!E418 -> FRANKTON | C177: ='Website Report'!G418 -> 1862 | E177: ='City-Town Population'!G182 -> 1862 | F177: ='City-Town Population'!A182 -> Frankton town | H177: 0
B178: Blank | E178: ='City-Town Population'!G183 -> 0 | F178: ='City-Town Population'!A183 -> Fredericksburg town (3) | H178: 0 | I178: Town was dissolved
A179: ='Website Report'!C659 -> City/Town | B179: ='Website Report'!E659 -> FREMONT | C179: ='Website Report'!G659 -> 2138 | E179: ='City-Town Population'!G184 -> 2138 | F179: ='City-Town Population'!A184 -> Fremont town | H179: 0
B180: Blank | E180: ='City-Town Population'!G185 -> 1807 | F180: ='City-Town Population'!A185 -> French Lick town | H180: 1807 | I180: Orange County - Does not receive riverboat sharing
A181: ='Website Report'!C210 -> City/Town | B181: ='Website Report'!E210 -> FULTON | C181: ='Website Report'!G210 -> 333 | E181: ='City-Town Population'!G186 -> 333 | F181: ='City-Town Population'!A186 -> Fulton town | H181: 0
A182: ='Website Report'!C75 -> City/Town | B182: ='Website Report'!E75 -> GALVESTON | C182: ='Website Report'!G75 -> 1311 | E182: ='City-Town Population'!G187 -> 1311 | F182: ='City-Town Population'!A187 -> Galveston town | H182: 0
A183: ='Website Report'!C142 -> City/Town | B183: ='Website Report'!E142 -> GARRETT | C183: ='Website Report'!G142 -> 6286 | E183: ='City-Town Population'!G188 -> 6286 | F183: ='City-Town Population'!A188 -> Garrett city | H183: 0
B184: Blank | E184: ='City-Town Population'!G189 -> 80294 | F184: ='City-Town Population'!A189 -> Gary city | H184: 80294 | I184: Lake County - Does not receive riverboat sharing
A185: ='Website Report'!C232 -> City/Town | B185: ='Website Report'!E232 -> GAS CITY | C185: ='Website Report'!G232 -> 5965 | E185: ='City-Town Population'!G190 -> 6167 | F185: ='City-Town Population'!A190 -> Gas City (4) | H185: 202 | I185: Variance is due to state executive order increasing population
A186: ='Website Report'!C153 -> City/Town | B186: ='Website Report'!E153 -> GASTON | C186: ='Website Report'!G153 -> 871 | E186: ='City-Town Population'!G191 -> 871 | F186: ='City-Town Population'!A191 -> Gaston town | H186: 0
A187: ='Website Report'!C11 -> City/Town | B187: ='Website Report'!E11 -> GENEVA | C187: ='Website Report'!G11 -> 1293 | E187: ='City-Town Population'!G192 -> 1293 | F187: ='City-Town Population'!A192 -> Geneva town | H187: 0
A188: ='Website Report'!C641 -> City/Town | B188: ='Website Report'!E641 -> GENTRYVILLE | C188: ='Website Report'!G641 -> 268 | E188: ='City-Town Population'!G193 -> 268 | F188: ='City-Town Population'!A193 -> Gentryville town | H188: 0
A189: ='Website Report'!C183 -> City/Town | B189: ='Website Report'!E183 -> GEORGETOWN | C189: ='Website Report'!G183 -> 2876 | E189: ='City-Town Population'!G194 -> 2876 | F189: ='City-Town Population'!A194 -> Georgetown town (Floyd County) | H189: 0
A190: ='Website Report'!C179 -> City/Town | B190: ='Website Report'!E179 -> GLENWOOD | C190: ='Website Report'!G179 -> 76 | E190: ='City-Town Population'!G195 -> 250 | F190: ='City-Town Population'!A195 -> Glenwood town | H190: 174
A191: ='Website Report'!C504 -> City/Town | B191: ='Website Report'!E504 -> GOODLAND | C191: ='Website Report'!G504 -> 1043 | E191: ='City-Town Population'!G196 -> 1043 | F191: ='City-Town Population'!A196 -> Goodland town | H191: 0
A192: ='Website Report'!C170 -> City/Town | B192: ='Website Report'!E170 -> GOSHEN | C192: ='Website Report'!G170 -> 31719 | E192: ='City-Town Population'!G197 -> 31719 | F192: ='City-Town Population'!A197 -> Goshen city | H192: 0
A193: ='Website Report'!C521 -> City/Town | B193: ='Website Report'!E521 -> GOSPORT | C193: ='Website Report'!G521 -> 826 | E193: ='City-Town Population'!G198 -> 826 | F193: ='City-Town Population'!A198 -> Gosport town | H193: 0
A194: ='Website Report'!C17 -> City/Town | B194: ='Website Report'!E17 -> GRABILL | C194: ='Website Report'!G17 -> 1053 | E194: ='City-Town Population'!G199 -> 1053 | F194: ='City-Town Population'!A199 -> Grabill town | H194: 0
A195: ='Website Report'!C642 -> City/Town | B195: ='Website Report'!E642 -> GRANDVIEW | C195: ='Website Report'!G642 -> 749 | E195: ='City-Town Population'!G200 -> 749 | F195: ='City-Town Population'!A200 -> Grandview town | H195: 0
A196: ='Website Report'!C579 -> City/Town | B196: ='Website Report'!E579 -> GREENCASTLE | C196: ='Website Report'!G579 -> 10326 | E196: ='City-Town Population'!G201 -> 10326 | F196: ='City-Town Population'!A201 -> Greencastle city | H196: 0
B197: Blank | E197: ='City-Town Population'!G202 -> 4520 | F197: ='City-Town Population'!A202 -> Greendale city | H197: 4520 | I197: Dearborn County - Does not receive riverboat sharing
A198: ='Website Report'!C266 -> City/Town | B198: ='Website Report'!E266 -> GREENFIELD | C198: ='Website Report'!G266 -> 20602 | E198: ='City-Town Population'!G203 -> 20602 | F198: ='City-Town Population'!A203 -> Greenfield city | H198: 0
A199: ='Website Report'!C757 -> City/Town | B199: ='Website Report'!E757 -> GREENSFORK | C199: ='Website Report'!G757 -> 423 | E199: ='City-Town Population'!G204 -> 423 | F199: ='City-Town Population'!A204 -> Greens Fork town | H199: 0
A200: ='Website Report'!C293 -> City/Town | B200: ='Website Report'!E293 -> GREENSBORO | C200: ='Website Report'!G293 -> 143 | E200: ='City-Town Population'!G205 -> 143 | F200: ='City-Town Population'!A205 -> Greensboro town | H200: 0
... 370 more rows
